Department Family,Entity,Date,Expense Type,Expense area,Supplier,Transaction Number,Amount,VAT registration Number
Department of Health,Salisbury NHS Foundation Trust,01-Aug-14,DRUGS,Clinical Support and Family Services,NOVARTIS PHARMACEUTICALS UK LTD,91379408,22847.02,
Department of Health,Salisbury NHS Foundation Trust,01-Aug-14,DRUGS,Clinical Support and Family Services,NOVARTIS PHARMACEUTICALS UK LTD,91379408,4569.4,
Department of Health,Salisbury NHS Foundation Trust,01-Aug-14,DRUGS,Clinical Support and Family Services,ROCHE PRODUCTS LTD,1321698997,22583.1,
Department of Health,Salisbury NHS Foundation Trust,01-Aug-14,DRUGS,Clinical Support and Family Services,ROCHE PRODUCTS LTD,1321698997,4516.62,
Department of Health,Salisbury NHS Foundation Trust,01-Aug-14,DRUGS,Clinical Support and Family Services,ROCHE PRODUCTS LTD,1321701640,34897.35,
Department of Health,Salisbury NHS Foundation Trust,01-Aug-14,DRUGS,Clinical Support and Family Services,ROCHE PRODUCTS LTD,1321701640,6979.47,
Department of Health,Salisbury NHS Foundation Trust,01-Aug-14,ETS UNITARY CHARGE,Facilities Directorate,SALISBURY HEALTHCARE FACILITIES LTD,213,283949.17,
Department of Health,Salisbury NHS Foundation Trust,01-Aug-14,MEDICAL EQUIPMENT 10 YEARS,Capital Projects,SIGMACON UK LTD,87273,76737.5,
Department of Health,Salisbury NHS Foundation Trust,01-Aug-14,MEDICAL EQUIPMENT 10 YEARS,Capital Projects,SIGMACON UK LTD,87273,15347.5,
Department of Health,Salisbury NHS Foundation Trust,01-Aug-14,MEDICAL EQUIPMENT 10 YEARS,Capital Projects,SPACELABS HEALTHCARE LTD,IN206435,17638.97,
Department of Health,Salisbury NHS Foundation Trust,01-Aug-14,MEDICAL EQUIPMENT 10 YEARS,Capital Projects,SPACELABS HEALTHCARE LTD,IN206435,6429.06,
Department of Health,Salisbury NHS Foundation Trust,01-Aug-14,MEDICAL EQUIPMENT 10 YEARS,Capital Projects,SPACELABS HEALTHCARE LTD,IN206435,14369.81,
Department of Health,Salisbury NHS Foundation Trust,01-Aug-14,MEDICAL EQUIPMENT 10 YEARS,Capital Projects,SPACELABS HEALTHCARE LTD,IN206435,3527.79,
Department of Health,Salisbury NHS Foundation Trust,01-Aug-14,MEDICAL EQUIPMENT 10 YEARS,Capital Projects,SPACELABS HEALTHCARE LTD,IN206435,1285.81,
Department of Health,Salisbury NHS Foundation Trust,01-Aug-14,MEDICAL EQUIPMENT 10 YEARS,Capital Projects,SPACELABS HEALTHCARE LTD,IN206435,2873.96,
Department of Health,Salisbury NHS Foundation Trust,01-Aug-14,MEDICAL EQUIPMENT 10 YEARS,Capital Projects,SPACELABS HEALTHCARE LTD,IN206435,0.01,
Department of Health,Salisbury NHS Foundation Trust,01-Aug-14,BLDG STRUCTURES MAIN CONTR,Capital Projects,STEPNELL LTD,10515,98233.29,
Department of Health,Salisbury NHS Foundation Trust,01-Aug-14,BLDG STRUCTURES MAIN CONTR,Capital Projects,STEPNELL LTD,10515,14167.2,
Department of Health,Salisbury NHS Foundation Trust,01-Aug-14,SERVICES  -  INSURANCE SERVICES,Facilities Directorate,BRIAN JOHNSTON & CO LTD,D14/15/2699,32020.64,
Department of Health,Salisbury NHS Foundation Trust,07-Aug-14,MEDICAL EQUIPMENT 10 YEARS,Capital Projects,AIRFLOW SOLUTIONS,AS1207,29990,
Department of Health,Salisbury NHS Foundation Trust,07-Aug-14,LAB EQUIP-LABORATORY APPARATUS,Clinical Support and Family Services,AIRFLOW SOLUTIONS,AS1207,420,
Department of Health,Salisbury NHS Foundation Trust,07-Aug-14,MEDICAL EQUIPMENT 10 YEARS,Capital Projects,AIRFLOW SOLUTIONS,AS1207,5998,
Department of Health,Salisbury NHS Foundation Trust,07-Aug-14,LAB EQUIP-LABORATORY APPARATUS,Clinical Support and Family Services,AIRFLOW SOLUTIONS,AS1207,84,
Department of Health,Salisbury NHS Foundation Trust,08-Aug-14,BLDGS ENGINEERING INSTALL,Capital Projects,AJK SERVICES LTD,32255,28000,
Department of Health,Salisbury NHS Foundation Trust,08-Aug-14,BLDGS ENGINEERING INSTALL,Capital Projects,AJK SERVICES LTD,32255,5600,
Department of Health,Salisbury NHS Foundation Trust,08-Aug-14,DRUGS,Clinical Support and Family Services,ROCHE PRODUCTS LTD,1321700467,59733.25,
Department of Health,Salisbury NHS Foundation Trust,08-Aug-14,DRUGS,Clinical Support and Family Services,ROCHE PRODUCTS LTD,1321700467,11946.65,
Department of Health,Salisbury NHS Foundation Trust,08-Aug-14,HEALTHCARE - NHS TRUSTS,Surgery,DORSET HEALTHCARE UNIVERSITY NHS FOUNDATION TRUST,D0008483,1406.5,
Department of Health,Salisbury NHS Foundation Trust,08-Aug-14,HEALTHCARE - NHS TRUSTS,Surgery,DORSET HEALTHCARE UNIVERSITY NHS FOUNDATION TRUST,D0008483,354.75,
Department of Health,Salisbury NHS Foundation Trust,08-Aug-14,HEALTHCARE - NHS TRUSTS,Medicine,DORSET HEALTHCARE UNIVERSITY NHS FOUNDATION TRUST,D0008483,2267,
Department of Health,Salisbury NHS Foundation Trust,08-Aug-14,HEALTHCARE - NHS TRUSTS,Medicine,DORSET HEALTHCARE UNIVERSITY NHS FOUNDATION TRUST,D0008483,3900.25,
Department of Health,Salisbury NHS Foundation Trust,08-Aug-14,HEALTHCARE - NHS TRUSTS,Medicine,DORSET HEALTHCARE UNIVERSITY NHS FOUNDATION TRUST,D0008483,1369,
Department of Health,Salisbury NHS Foundation Trust,08-Aug-14,HEALTHCARE - NHS TRUSTS,Medicine,DORSET HEALTHCARE UNIVERSITY NHS FOUNDATION TRUST,D0008483,198.25,
Department of Health,Salisbury NHS Foundation Trust,08-Aug-14,HEALTHCARE - NHS TRUSTS,Critical care,DORSET HEALTHCARE UNIVERSITY NHS FOUNDATION TRUST,D0008483,1632,
Department of Health,Salisbury NHS Foundation Trust,08-Aug-14,HEALTHCARE - NHS TRUSTS,Clinical Support and Family Services,DORSET HEALTHCARE UNIVERSITY NHS FOUNDATION TRUST,D0008483,2455,
Department of Health,Salisbury NHS Foundation Trust,08-Aug-14,HEALTHCARE - NHS TRUSTS,Surgery,DORSET HEALTHCARE UNIVERSITY NHS FOUNDATION TRUST,D0008483,5304.75,
Department of Health,Salisbury NHS Foundation Trust,08-Aug-14,HEALTHCARE - NHS TRUSTS,Critical care,DORSET HEALTHCARE UNIVERSITY NHS FOUNDATION TRUST,D0008483,4751.5,
Department of Health,Salisbury NHS Foundation Trust,08-Aug-14,HEALTHCARE - NHS TRUSTS,Clinical Support and Family Services,DORSET HEALTHCARE UNIVERSITY NHS FOUNDATION TRUST,D0008483,900.25,
Department of Health,Salisbury NHS Foundation Trust,08-Aug-14,HEALTHCARE - NHS TRUSTS,Critical care,DORSET HEALTHCARE UNIVERSITY NHS FOUNDATION TRUST,D0008483,898.5,
Department of Health,Salisbury NHS Foundation Trust,08-Aug-14,HEALTHCARE - NHS TRUSTS,Surgery,DORSET HEALTHCARE UNIVERSITY NHS FOUNDATION TRUST,D0008483,975.25,
Department of Health,Salisbury NHS Foundation Trust,08-Aug-14,HEALTHCARE - NHS TRUSTS,Surgery,DORSET HEALTHCARE UNIVERSITY NHS FOUNDATION TRUST,D0008483,2267.25,
Department of Health,Salisbury NHS Foundation Trust,08-Aug-14,HEALTHCARE - NHS TRUSTS,Medicine,DORSET HEALTHCARE UNIVERSITY NHS FOUNDATION TRUST,D0008483,198.25,
Department of Health,Salisbury NHS Foundation Trust,08-Aug-14,BLOOD PRODUCTS,Clinical Support and Family Services,NATIONAL BLOOD SERVICE,834245,56239.73,
Department of Health,Salisbury NHS Foundation Trust,08-Aug-14,SERVICES - AUDIT FEES INTERNAL,Directorate of Finance and Procurement,TIAA LTD,140719/91,2639,
Department of Health,Salisbury NHS Foundation Trust,08-Aug-14,SERVICES - AUDIT FEES INTERNAL,Directorate of Finance and Procurement,TIAA LTD,140719/91,19215,
Department of Health,Salisbury NHS Foundation Trust,15-Aug-14,HEALTHCARE - NHS TRUSTS,Medicine,UNIVERSITY HOSPITAL SOUTHAMPTON NHS FOUNDATION TRUST,7246015,37200,
Department of Health,Salisbury NHS Foundation Trust,15-Aug-14,RATES,Facilities Directorate,WILTSHIRE COUNCIL,Aug-14,106406,
Department of Health,Salisbury NHS Foundation Trust,15-Aug-14,RATES,Facilities Directorate,WILTSHIRE COUNCIL,Aug-14,8561,
Department of Health,Salisbury NHS Foundation Trust,15-Aug-14,DRUGS,Clinical Support and Family Services,ROCHE PRODUCTS LTD,1321703720,20955.5,
Department of Health,Salisbury NHS Foundation Trust,15-Aug-14,DRUGS,Clinical Support and Family Services,ROCHE PRODUCTS LTD,1321703720,4191.1,
Department of Health,Salisbury NHS Foundation Trust,15-Aug-14,ENERGY WATER - ELECTRICITY,Facilities Directorate,EDF ENERGY,38,62945.01,
Department of Health,Salisbury NHS Foundation Trust,15-Aug-14,ENERGY WATER - ELECTRICITY,Facilities Directorate,EDF ENERGY,38,7779.72,
Department of Health,Salisbury NHS Foundation Trust,15-Aug-14,ENERGY WATER - ELECTRICITY,Facilities Directorate,EDF ENERGY,38,388.99,
Department of Health,Salisbury NHS Foundation Trust,15-Aug-14,ENERGY WATER - ELECTRICITY,Facilities Directorate,EDF ENERGY,38,12589,
Department of Health,Salisbury NHS Foundation Trust,15-Aug-14,MEDICAL EQUIPMENT 10 YEARS,Capital Projects,ESCHMANN EQUIPMENT,105165,1128.8,
Department of Health,Salisbury NHS Foundation Trust,15-Aug-14,MEDICAL EQUIPMENT 10 YEARS,Capital Projects,ESCHMANN EQUIPMENT,105165,24586,
Department of Health,Salisbury NHS Foundation Trust,15-Aug-14,MEDICAL EQUIPMENT 10 YEARS,Capital Projects,ESCHMANN EQUIPMENT,105165,10155.8,
Department of Health,Salisbury NHS Foundation Trust,15-Aug-14,MEDICAL EQUIPMENT 10 YEARS,Capital Projects,ESCHMANN EQUIPMENT,105165,225.76,
Department of Health,Salisbury NHS Foundation Trust,15-Aug-14,MEDICAL EQUIPMENT 10 YEARS,Capital Projects,ESCHMANN EQUIPMENT,105165,4917.2,
Department of Health,Salisbury NHS Foundation Trust,15-Aug-14,MEDICAL EQUIPMENT 10 YEARS,Capital Projects,ESCHMANN EQUIPMENT,105165,2031.16,
Department of Health,Salisbury NHS Foundation Trust,21-Aug-14,COMPUTERS,Capital Projects,JAYEX TECHNOLOGY LIMITED,JT031153,1200,
Department of Health,Salisbury NHS Foundation Trust,21-Aug-14,COMPUTERS,Capital Projects,JAYEX TECHNOLOGY LIMITED,JT031153,4000,
Department of Health,Salisbury NHS Foundation Trust,21-Aug-14,COMPUTERS,Capital Projects,JAYEX TECHNOLOGY LIMITED,JT031153,10000,
Department of Health,Salisbury NHS Foundation Trust,21-Aug-14,COMPUTERS,Capital Projects,JAYEX TECHNOLOGY LIMITED,JT031153,8000,
Department of Health,Salisbury NHS Foundation Trust,21-Aug-14,COMPUTERS,Capital Projects,JAYEX TECHNOLOGY LIMITED,JT031153,7500,
Department of Health,Salisbury NHS Foundation Trust,21-Aug-14,COMPUTERS,Capital Projects,JAYEX TECHNOLOGY LIMITED,JT031153,10000,
Department of Health,Salisbury NHS Foundation Trust,21-Aug-14,COMPUTERS,Capital Projects,JAYEX TECHNOLOGY LIMITED,JT031153,15000,
Department of Health,Salisbury NHS Foundation Trust,21-Aug-14,COMPUTERS,Capital Projects,JAYEX TECHNOLOGY LIMITED,JT031153,3600,
Department of Health,Salisbury NHS Foundation Trust,21-Aug-14,COMPUTERS,Capital Projects,JAYEX TECHNOLOGY LIMITED,JT031153,240,
Department of Health,Salisbury NHS Foundation Trust,21-Aug-14,COMPUTERS,Capital Projects,JAYEX TECHNOLOGY LIMITED,JT031153,800,
Department of Health,Salisbury NHS Foundation Trust,21-Aug-14,COMPUTERS,Capital Projects,JAYEX TECHNOLOGY LIMITED,JT031153,2000,
Department of Health,Salisbury NHS Foundation Trust,21-Aug-14,COMPUTERS,Capital Projects,JAYEX TECHNOLOGY LIMITED,JT031153,1600,
Department of Health,Salisbury NHS Foundation Trust,21-Aug-14,COMPUTERS,Capital Projects,JAYEX TECHNOLOGY LIMITED,JT031153,1500,
Department of Health,Salisbury NHS Foundation Trust,21-Aug-14,COMPUTERS,Capital Projects,JAYEX TECHNOLOGY LIMITED,JT031153,2000,
Department of Health,Salisbury NHS Foundation Trust,21-Aug-14,COMPUTERS,Capital Projects,JAYEX TECHNOLOGY LIMITED,JT031153,3000,
Department of Health,Salisbury NHS Foundation Trust,21-Aug-14,COMPUTERS,Capital Projects,JAYEX TECHNOLOGY LIMITED,JT031153,720,
Department of Health,Salisbury NHS Foundation Trust,22-Aug-14,M & S EQUIPELECTEQUIPINST - OTHER,Surgery,BARD LTD,1317466,1482,
Department of Health,Salisbury NHS Foundation Trust,22-Aug-14,M & S EQUIPELECTEQUIPINST - OTHER,Surgery,BARD LTD,1317466,1482,
Department of Health,Salisbury NHS Foundation Trust,22-Aug-14,M & S EQUIPELECTEQUIPINST - OTHER,Surgery,BARD LTD,1317466,741,
Department of Health,Salisbury NHS Foundation Trust,22-Aug-14,M & S EQUIPELECTEQUIPINST - OTHER,Surgery,BARD LTD,1317466,741,
Department of Health,Salisbury NHS Foundation Trust,22-Aug-14,M & S EQUIPELECTEQUIPINST - OTHER,Surgery,BARD LTD,1317466,700,
Department of Health,Salisbury NHS Foundation Trust,22-Aug-14,M & S EQUIPELECTEQUIPINST - OTHER,Surgery,BARD LTD,1317466,600,
Department of Health,Salisbury NHS Foundation Trust,22-Aug-14,M & S EQUIPELECTEQUIPINST - OTHER,Surgery,BARD LTD,1317466,1200,
Department of Health,Salisbury NHS Foundation Trust,22-Aug-14,M & S EQUIPELECTEQUIPINST - OTHER,Surgery,BARD LTD,1317466,1040,
Department of Health,Salisbury NHS Foundation Trust,22-Aug-14,M & S EQUIPELECTEQUIPINST - OTHER,Surgery,BARD LTD,1317466,2600,
Department of Health,Salisbury NHS Foundation Trust,22-Aug-14,M & S EQUIPELECTEQUIPINST - OTHER,Surgery,BARD LTD,1317466,2700,
Department of Health,Salisbury NHS Foundation Trust,22-Aug-14,M & S EQUIPELECTEQUIPINST - OTHER,Surgery,BARD LTD,1317466,4020,
Department of Health,Salisbury NHS Foundation Trust,22-Aug-14,M & S EQUIPELECTEQUIPINST - OTHER,Surgery,BARD LTD,1317466,3448,
Department of Health,Salisbury NHS Foundation Trust,22-Aug-14,M & S EQUIPELECTEQUIPINST - OTHER,Surgery,BARD LTD,1317466,296.4,
Department of Health,Salisbury NHS Foundation Trust,22-Aug-14,M & S EQUIPELECTEQUIPINST - OTHER,Surgery,BARD LTD,1317466,296.4,
Department of Health,Salisbury NHS Foundation Trust,22-Aug-14,M & S EQUIPELECTEQUIPINST - OTHER,Surgery,BARD LTD,1317466,148.2,
Department of Health,Salisbury NHS Foundation Trust,22-Aug-14,M & S EQUIPELECTEQUIPINST - OTHER,Surgery,BARD LTD,1317466,148.2,
Department of Health,Salisbury NHS Foundation Trust,22-Aug-14,M & S EQUIPELECTEQUIPINST - OTHER,Surgery,BARD LTD,1317466,140,
Department of Health,Salisbury NHS Foundation Trust,22-Aug-14,M & S EQUIPELECTEQUIPINST - OTHER,Surgery,BARD LTD,1317466,120,
Department of Health,Salisbury NHS Foundation Trust,22-Aug-14,M & S EQUIPELECTEQUIPINST - OTHER,Surgery,BARD LTD,1317466,240,
Department of Health,Salisbury NHS Foundation Trust,22-Aug-14,M & S EQUIPELECTEQUIPINST - OTHER,Surgery,BARD LTD,1317466,208,
Department of Health,Salisbury NHS Foundation Trust,22-Aug-14,M & S EQUIPELECTEQUIPINST - OTHER,Surgery,BARD LTD,1317466,520,
Department of Health,Salisbury NHS Foundation Trust,22-Aug-14,M & S EQUIPELECTEQUIPINST - OTHER,Surgery,BARD LTD,1317466,540,
Department of Health,Salisbury NHS Foundation Trust,22-Aug-14,M & S EQUIPELECTEQUIPINST - OTHER,Surgery,BARD LTD,1317466,804,
Department of Health,Salisbury NHS Foundation Trust,22-Aug-14,M & S EQUIPELECTEQUIPINST - OTHER,Surgery,BARD LTD,1317466,689.6,
Department of Health,Salisbury NHS Foundation Trust,22-Aug-14,M & S EQUIPELECTEQUIPINST - OTHER,Surgery,BARD LTD,1317466,2820,
Department of Health,Salisbury NHS Foundation Trust,22-Aug-14,M & S EQUIPELECTEQUIPINST - OTHER,Surgery,BARD LTD,1317466,564,
Department of Health,Salisbury NHS Foundation Trust,22-Aug-14,MEDICAL EQUIPMENT 10 YEARS,Capital Projects,HILL-ROM,3089763,50000,
Department of Health,Salisbury NHS Foundation Trust,22-Aug-14,MEDICAL EQUIPMENT 10 YEARS,Capital Projects,HILL-ROM,3089763,10000,
Department of Health,Salisbury NHS Foundation Trust,22-Aug-14,ENERGY WATER - WATER MAINS,Facilities Directorate,BWBSL,5091709983,37857.98,
Department of Health,Salisbury NHS Foundation Trust,22-Aug-14,ENERGY WATER - SEWERAGE CHARGES,Facilities Directorate,BWBSL,5091709983,12098.23,
Department of Health,Salisbury NHS Foundation Trust,22-Aug-14,HEALTHCARE - NHS TRUSTS,Corporate Directorate,CARE QUALITY COMMISSION,41891042,71750,
Department of Health,Salisbury NHS Foundation Trust,22-Aug-14,ENERGY WATER - GAS MAINS,Facilities Directorate,CORONA ENERGY,9461718,6660.95,
Department of Health,Salisbury NHS Foundation Trust,22-Aug-14,ENERGY WATER - GAS MAINS,Facilities Directorate,CORONA ENERGY,9461718,56511.03,
Department of Health,Salisbury NHS Foundation Trust,22-Aug-14,ENERGY WATER - GAS MAINS,Facilities Directorate,CORONA ENERGY,9461718,333.05,
Department of Health,Salisbury NHS Foundation Trust,22-Aug-14,ENERGY WATER - GAS MAINS,Facilities Directorate,CORONA ENERGY,9461718,11302.21,
Department of Health,Salisbury NHS Foundation Trust,22-Aug-14,MISCELLANEOUS CAPITAL,Capital Projects,TYNETEC,114273,32562.92,
Department of Health,Salisbury NHS Foundation Trust,22-Aug-14,MISCELLANEOUS CAPITAL,Capital Projects,TYNETEC,114273,6512.58,
Department of Health,Salisbury NHS Foundation Trust,22-Aug-14,ADULTS HEARING AIDS,Surgery,NHS LOGISTICS,1015070077,872.67,
Department of Health,Salisbury NHS Foundation Trust,22-Aug-14,MEDSURGCONS - OTHER,Clinical Support and Family Services,NHS LOGISTICS,1015070077,38.42,
Department of Health,Salisbury NHS Foundation Trust,22-Aug-14,DRUGS,Clinical Support and Family Services,NHS LOGISTICS,1015070077,11.38,
Department of Health,Salisbury NHS Foundation Trust,22-Aug-14,DRUGS,Clinical Support and Family Services,NHS LOGISTICS,1015070077,100.05,
Department of Health,Salisbury NHS Foundation Trust,22-Aug-14,PATIENT APPLIANCES,Surgery,NHS LOGISTICS,1015070077,33.17,
Department of Health,Salisbury NHS Foundation Trust,22-Aug-14,STATIONERY SUNDRIES,Human Resources,NHS LOGISTICS,1015070077,8.23,
Department of Health,Salisbury NHS Foundation Trust,22-Aug-14,OTHER MEDICAL SUPPLIES,Clinical Support and Family Services,NHS LOGISTICS,1015070077,38.72,
Department of Health,Salisbury NHS Foundation Trust,22-Aug-14,MEDSURGCONS - OTHER,Human Resources,NHS LOGISTICS,1015070077,2.63,
Department of Health,Salisbury NHS Foundation Trust,22-Aug-14,OTHER MEDICAL SUPPLIES,Medicine,NHS LOGISTICS,1015070077,132.47,
Department of Health,Salisbury NHS Foundation Trust,22-Aug-14,TISSUES HAND TOWELS & TOILET PAPER,Human Resources,NHS LOGISTICS,1015070077,4.67,
Department of Health,Salisbury NHS Foundation Trust,22-Aug-14,STATIONERY SUNDRIES,Corporate Directorate,NHS LOGISTICS,1015070077,0.32,
Department of Health,Salisbury NHS Foundation Trust,22-Aug-14,PAPER ITEMS GENERAL STATIONERY SUNDRIES,Clinical Support and Family Services,NHS LOGISTICS,1015070077,13.9,
Department of Health,Salisbury NHS Foundation Trust,22-Aug-14,STATIONERY SUNDRIES,Critical care,NHS LOGISTICS,1015070077,2.27,
Department of Health,Salisbury NHS Foundation Trust,22-Aug-14,PAPER ITEMS GENERAL STATIONERY SUNDRIES,Clinical Effctiveness Directorate,NHS LOGISTICS,1015070077,2.8,
Department of Health,Salisbury NHS Foundation Trust,22-Aug-14,PAPER ITEMS GENERAL STATIONERY SUNDRIES,Clinical Effctiveness Directorate,NHS LOGISTICS,1015070077,2.25,
Department of Health,Salisbury NHS Foundation Trust,22-Aug-14,PAPER ITEMS GENERAL STATIONERY SUNDRIES,Clinical Effctiveness Directorate,NHS LOGISTICS,1015070077,0.88,
Department of Health,Salisbury NHS Foundation Trust,22-Aug-14,PAPER ITEMS GENERAL STATIONERY SUNDRIES,Human Resources,NHS LOGISTICS,1015070077,35.55,
Department of Health,Salisbury NHS Foundation Trust,22-Aug-14,STATIONERY SUNDRIES,Human Resources,NHS LOGISTICS,1015070077,8.8,
Department of Health,Salisbury NHS Foundation Trust,22-Aug-14,STATIONERY SUNDRIES,Human Resources,NHS LOGISTICS,1015070077,16.47,
Department of Health,Salisbury NHS Foundation Trust,22-Aug-14,MEDSURGCONS - OTHER,Clinical Support and Family Services,NHS LOGISTICS,1015070077,46.74,
Department of Health,Salisbury NHS Foundation Trust,22-Aug-14,PAPER ITEMS GENERAL STATIONERY SUNDRIES,Clinical Support and Family Services,NHS LOGISTICS,1015070077,49.07,
Department of Health,Salisbury NHS Foundation Trust,22-Aug-14,PAPER ITEMS GENERAL STATIONERY SUNDRIES,Clinical Support and Family Services,NHS LOGISTICS,1015070077,23,
Department of Health,Salisbury NHS Foundation Trust,22-Aug-14,ANAESTHETIC EQUIPMENT ACCESSORIES,Surgery,NHS LOGISTICS,1015070077,55.85,
Department of Health,Salisbury NHS Foundation Trust,22-Aug-14,STATIONERY SUNDRIES,Medicine,NHS LOGISTICS,1015070077,1.45,
Department of Health,Salisbury NHS Foundation Trust,22-Aug-14,STATIONERY SUNDRIES,Medicine,NHS LOGISTICS,1015070077,0.93,
Department of Health,Salisbury NHS Foundation Trust,22-Aug-14,STATIONERY SUNDRIES,Medicine,NHS LOGISTICS,1015070077,0.57,
Department of Health,Salisbury NHS Foundation Trust,22-Aug-14,PATIENTS BEDWEAR UNISEX,Medicine,NHS LOGISTICS,1015070077,65.43,
Department of Health,Salisbury NHS Foundation Trust,22-Aug-14,PATIENTS BEDWEAR UNISEX,Medicine,NHS LOGISTICS,1015070077,65.43,
Department of Health,Salisbury NHS Foundation Trust,22-Aug-14,LAB EQUIP-LABORATORY APPARATUS,Clinical Support and Family Services,NHS LOGISTICS,1015070077,45.52,
Department of Health,Salisbury NHS Foundation Trust,22-Aug-14,PAPER ITEMS GENERAL STATIONERY SUNDRIES,Surgery,NHS LOGISTICS,1015070077,9.82,
Department of Health,Salisbury NHS Foundation Trust,22-Aug-14,MEDSURGCONS - OTHER,Critical care,NHS LOGISTICS,1015070077,30.42,
Department of Health,Salisbury NHS Foundation Trust,22-Aug-14,TISSUES HAND TOWELS & TOILET PAPER,Critical care,NHS LOGISTICS,1015070077,3.77,
Department of Health,Salisbury NHS Foundation Trust,22-Aug-14,DISPOSABLE THEATRE DRAPES WIPES,Critical care,NHS LOGISTICS,1015070077,3.24,
Department of Health,Salisbury NHS Foundation Trust,22-Aug-14,PAPER ITEMS GENERAL STATIONERY SUNDRIES,Critical care,NHS LOGISTICS,1015070077,2.78,
Department of Health,Salisbury NHS Foundation Trust,22-Aug-14,PAPER ITEMS GENERAL STATIONERY SUNDRIES,Critical care,NHS LOGISTICS,1015070077,2.67,
Department of Health,Salisbury NHS Foundation Trust,22-Aug-14,PAPER ITEMS GENERAL STATIONERY SUNDRIES,Critical care,NHS LOGISTICS,1015070077,27.8,
Department of Health,Salisbury NHS Foundation Trust,22-Aug-14,MEDSURGCONS - OTHER,Clinical Support and Family Services,NHS LOGISTICS,1015070077,27.72,
Department of Health,Salisbury NHS Foundation Trust,22-Aug-14,STATIONERY SUNDRIES,Clinical Support and Family Services,NHS LOGISTICS,1015070077,3.79,
Department of Health,Salisbury NHS Foundation Trust,22-Aug-14,PAPER ITEMS GENERAL STATIONERY SUNDRIES,Medicine,NHS LOGISTICS,1015070077,33.7,
Department of Health,Salisbury NHS Foundation Trust,22-Aug-14,PAPER ITEMS GENERAL STATIONERY SUNDRIES,Medicine,NHS LOGISTICS,1015070077,11.9,
Department of Health,Salisbury NHS Foundation Trust,22-Aug-14,STATIONERY SUNDRIES,Critical care,NHS LOGISTICS,1015070077,1.04,
Department of Health,Salisbury NHS Foundation Trust,22-Aug-14,DRESSINGS - PRE STERILE,Critical care,NHS LOGISTICS,1015070077,102.08,
Department of Health,Salisbury NHS Foundation Trust,22-Aug-14,STATIONERY SUNDRIES,Critical care,NHS LOGISTICS,1015070077,1.13,
Department of Health,Salisbury NHS Foundation Trust,22-Aug-14,STATIONERY SUNDRIES,Medicine,NHS LOGISTICS,1015070077,1.63,
Department of Health,Salisbury NHS Foundation Trust,22-Aug-14,STATIONERY SUNDRIES,Medicine,NHS LOGISTICS,1015070077,4.1,
Department of Health,Salisbury NHS Foundation Trust,22-Aug-14,STATIONERY SUNDRIES,Medicine,NHS LOGISTICS,1015070077,1.3,
Department of Health,Salisbury NHS Foundation Trust,22-Aug-14,PAPER ITEMS GENERAL STATIONERY SUNDRIES,Medicine,NHS LOGISTICS,1015070077,3.97,
Department of Health,Salisbury NHS Foundation Trust,22-Aug-14,STATIONERY SUNDRIES,Medicine,NHS LOGISTICS,1015070077,2.92,
Department of Health,Salisbury NHS Foundation Trust,22-Aug-14,STATIONERY SUNDRIES,Medicine,NHS LOGISTICS,1015070077,2.92,
Department of Health,Salisbury NHS Foundation Trust,22-Aug-14,STATIONERY SUNDRIES,Medicine,NHS LOGISTICS,1015070077,2.47,
Department of Health,Salisbury NHS Foundation Trust,22-Aug-14,STATIONERY SUNDRIES,Medicine,NHS LOGISTICS,1015070077,3.21,
Department of Health,Salisbury NHS Foundation Trust,22-Aug-14,STATIONERY SUNDRIES,Medicine,NHS LOGISTICS,1015070077,2.2,
Department of Health,Salisbury NHS Foundation Trust,22-Aug-14,STATIONERY SUNDRIES,Medicine,NHS LOGISTICS,1015070077,0.83,
Department of Health,Salisbury NHS Foundation Trust,22-Aug-14,STATIONERY SUNDRIES,Medicine,NHS LOGISTICS,1015070077,2.08,
Department of Health,Salisbury NHS Foundation Trust,22-Aug-14,STATIONERY SUNDRIES,Medicine,NHS LOGISTICS,1015070077,1.18,
Department of Health,Salisbury NHS Foundation Trust,22-Aug-14,STATIONERY SUNDRIES,Medicine,NHS LOGISTICS,1015070077,1.01,
Department of Health,Salisbury NHS Foundation Trust,22-Aug-14,PAPER ITEMS GENERAL STATIONERY SUNDRIES,Clinical Support and Family Services,NHS LOGISTICS,1015070077,2.08,
Department of Health,Salisbury NHS Foundation Trust,22-Aug-14,PAPER ITEMS GENERAL STATIONERY SUNDRIES,Clinical Support and Family Services,NHS LOGISTICS,1015070077,3.5,
Department of Health,Salisbury NHS Foundation Trust,22-Aug-14,STATIONERY SUNDRIES,Clinical Support and Family Services,NHS LOGISTICS,1015070077,19.93,
Department of Health,Salisbury NHS Foundation Trust,22-Aug-14,STATIONERY SUNDRIES,Clinical Support and Family Services,NHS LOGISTICS,1015070077,1.04,
Department of Health,Salisbury NHS Foundation Trust,22-Aug-14,PAPER ITEMS GENERAL STATIONERY SUNDRIES,Facilities Directorate,NHS LOGISTICS,1015070077,11.23,
Department of Health,Salisbury NHS Foundation Trust,22-Aug-14,STATIONERY SUNDRIES,Facilities Directorate,NHS LOGISTICS,1015070077,2,
Department of Health,Salisbury NHS Foundation Trust,22-Aug-14,STATIONERY SUNDRIES,Facilities Directorate,NHS LOGISTICS,1015070077,2.74,
Department of Health,Salisbury NHS Foundation Trust,22-Aug-14,STATIONERY SUNDRIES,Facilities Directorate,NHS LOGISTICS,1015070077,20.33,
Department of Health,Salisbury NHS Foundation Trust,22-Aug-14,STATIONERY SUNDRIES,Facilities Directorate,NHS LOGISTICS,1015070077,1.13,
Department of Health,Salisbury NHS Foundation Trust,22-Aug-14,M & S EQUIPELECTEQUIPINST - OTHER,Medicine,NHS LOGISTICS,1015070077,99.03,
Department of Health,Salisbury NHS Foundation Trust,22-Aug-14,DRESSINGS - PRE STERILE,Critical care,NHS LOGISTICS,1015070077,53.35,
Department of Health,Salisbury NHS Foundation Trust,22-Aug-14,DRESSINGS - PRE STERILE,Critical care,NHS LOGISTICS,1015070077,29.12,
Department of Health,Salisbury NHS Foundation Trust,22-Aug-14,SEATING GENERAL,Critical care,NHS LOGISTICS,1015070077,59.79,
Department of Health,Salisbury NHS Foundation Trust,22-Aug-14,NON DISPOSABLE THEATRE DRAPES WIPES,Clinical Support and Family Services,NHS LOGISTICS,1015070077,35.35,
Department of Health,Salisbury NHS Foundation Trust,22-Aug-14,PATIENT APPLIANCES,Medicine,NHS LOGISTICS,1015070077,12.15,
Department of Health,Salisbury NHS Foundation Trust,22-Aug-14,PATIENT APPLIANCES,Medicine,NHS LOGISTICS,1015070077,12.15,
Department of Health,Salisbury NHS Foundation Trust,22-Aug-14,PATIENT APPLIANCES,Medicine,NHS LOGISTICS,1015070077,12.15,
Department of Health,Salisbury NHS Foundation Trust,22-Aug-14,PATIENT APPLIANCES,Critical care,NHS LOGISTICS,1015070077,32.8,
Department of Health,Salisbury NHS Foundation Trust,22-Aug-14,PATIENT APPLIANCES,Critical care,NHS LOGISTICS,1015070077,5.47,
Department of Health,Salisbury NHS Foundation Trust,22-Aug-14,PATIENT APPLIANCES,Critical care,NHS LOGISTICS,1015070077,32.8,
Department of Health,Salisbury NHS Foundation Trust,22-Aug-14,PATIENT APPLIANCES,Critical care,NHS LOGISTICS,1015070077,32.8,
Department of Health,Salisbury NHS Foundation Trust,22-Aug-14,PATIENT APPLIANCES,Critical care,NHS LOGISTICS,1015070077,32.8,
Department of Health,Salisbury NHS Foundation Trust,22-Aug-14,PATIENT APPLIANCES,Critical care,NHS LOGISTICS,1015070077,32.8,
Department of Health,Salisbury NHS Foundation Trust,22-Aug-14,PATIENT APPLIANCES,Critical care,NHS LOGISTICS,1015070077,24.7,
Department of Health,Salisbury NHS Foundation Trust,22-Aug-14,PATIENT APPLIANCES,Critical care,NHS LOGISTICS,1015070077,24.7,
Department of Health,Salisbury NHS Foundation Trust,22-Aug-14,PATIENT APPLIANCES,Critical care,NHS LOGISTICS,1015070077,24.7,
Department of Health,Salisbury NHS Foundation Trust,22-Aug-14,PATIENT APPLIANCES,Critical care,NHS LOGISTICS,1015070077,24.7,
Department of Health,Salisbury NHS Foundation Trust,22-Aug-14,STATIONERY SUNDRIES,Clinical Effctiveness Directorate,NHS LOGISTICS,1015070077,0.19,
Department of Health,Salisbury NHS Foundation Trust,22-Aug-14,ELECTRICAL EQUIPMENT x,Clinical Effctiveness Directorate,NHS LOGISTICS,1015070077,1.67,
Department of Health,Salisbury NHS Foundation Trust,22-Aug-14,STATIONERY SUNDRIES,Clinical Effctiveness Directorate,NHS LOGISTICS,1015070077,0.22,
Department of Health,Salisbury NHS Foundation Trust,22-Aug-14,STATIONERY SUNDRIES,Clinical Effctiveness Directorate,NHS LOGISTICS,1015070077,1.23,
Department of Health,Salisbury NHS Foundation Trust,22-Aug-14,PAPER ITEMS GENERAL STATIONERY SUNDRIES,Clinical Effctiveness Directorate,NHS LOGISTICS,1015070077,5.25,
Department of Health,Salisbury NHS Foundation Trust,22-Aug-14,STATIONERY SUNDRIES,Clinical Effctiveness Directorate,NHS LOGISTICS,1015070077,1.04,
Department of Health,Salisbury NHS Foundation Trust,22-Aug-14,CLEANING MATERIALS PRODUCTS SUNDRIES,Clinical Effctiveness Directorate,NHS LOGISTICS,1015070077,8.39,
Department of Health,Salisbury NHS Foundation Trust,22-Aug-14,STATIONERY SUNDRIES,Clinical Effctiveness Directorate,NHS LOGISTICS,1015070077,1.04,
Department of Health,Salisbury NHS Foundation Trust,22-Aug-14,STATIONERY SUNDRIES,Clinical Effctiveness Directorate,NHS LOGISTICS,1015070077,1.04,
Department of Health,Salisbury NHS Foundation Trust,22-Aug-14,STATIONERY SUNDRIES,Clinical Effctiveness Directorate,NHS LOGISTICS,1015070077,0.38,
Department of Health,Salisbury NHS Foundation Trust,22-Aug-14,NON DISPOSABLE BED LINEN,Clinical Support and Family Services,NHS LOGISTICS,1015070077,11.3,
Department of Health,Salisbury NHS Foundation Trust,22-Aug-14,STATIONERY SUNDRIES,Human Resources,NHS LOGISTICS,1015070077,1.27,
Department of Health,Salisbury NHS Foundation Trust,22-Aug-14,STATIONERY SUNDRIES,Human Resources,NHS LOGISTICS,1015070077,6.17,
Department of Health,Salisbury NHS Foundation Trust,22-Aug-14,REFUSE DISPOSAL - CLINICAL CONT SERVICES,Facilities Directorate,NHS LOGISTICS,1015070077,184.3,
Department of Health,Salisbury NHS Foundation Trust,22-Aug-14,TISSUES HAND TOWELS & TOILET PAPER,Clinical Support and Family Services,NHS LOGISTICS,1015070077,20.8,
Department of Health,Salisbury NHS Foundation Trust,22-Aug-14,MEDSURGCONS - OTHER,Clinical Support and Family Services,NHS LOGISTICS,1015070077,22.67,
Department of Health,Salisbury NHS Foundation Trust,22-Aug-14,ELECTRICAL EQUIPMENT x,Human Resources,NHS LOGISTICS,1015070077,1.67,
Department of Health,Salisbury NHS Foundation Trust,22-Aug-14,ELECTRICAL EQUIPMENT x,Human Resources,NHS LOGISTICS,1015070077,1.33,
Department of Health,Salisbury NHS Foundation Trust,22-Aug-14,STATIONERY SUNDRIES,Human Resources,NHS LOGISTICS,1015070077,1.17,
Department of Health,Salisbury NHS Foundation Trust,22-Aug-14,PAPER ITEMS GENERAL STATIONERY SUNDRIES,Medicine,NHS LOGISTICS,1015070077,10.01,
Department of Health,Salisbury NHS Foundation Trust,22-Aug-14,PAPER ITEMS GENERAL STATIONERY SUNDRIES,Critical care,NHS LOGISTICS,1015070077,19,
Department of Health,Salisbury NHS Foundation Trust,22-Aug-14,PATIENT APPLIANCES,Surgery,NHS LOGISTICS,1015070077,25.07,
Department of Health,Salisbury NHS Foundation Trust,22-Aug-14,PATIENT APPLIANCES,Surgery,NHS LOGISTICS,1015070077,33.18,
Department of Health,Salisbury NHS Foundation Trust,22-Aug-14,PATIENT APPLIANCES,Surgery,NHS LOGISTICS,1015070077,59.08,
Department of Health,Salisbury NHS Foundation Trust,22-Aug-14,BAGS SACKS - OTHER,Facilities Directorate,NHS LOGISTICS,1015070077,20.27,
Department of Health,Salisbury NHS Foundation Trust,22-Aug-14,CLEANING MATERIALS PRODUCTS SUNDRIES,Facilities Directorate,NHS LOGISTICS,1015070077,34.5,
Department of Health,Salisbury NHS Foundation Trust,22-Aug-14,CLEANING MATERIALS PRODUCTS SUNDRIES,Facilities Directorate,NHS LOGISTICS,1015070077,40.2,
Department of Health,Salisbury NHS Foundation Trust,22-Aug-14,LIQUID REFRESHMENTS,Facilities Directorate,NHS LOGISTICS,1015070077,7.67,
Department of Health,Salisbury NHS Foundation Trust,22-Aug-14,CLEANING MATERIALS PRODUCTS SUNDRIES,Facilities Directorate,NHS LOGISTICS,1015070077,28.53,
Department of Health,Salisbury NHS Foundation Trust,22-Aug-14,CLEANING MATERIALS PRODUCTS SUNDRIES,Facilities Directorate,NHS LOGISTICS,1015070077,7.05,
Department of Health,Salisbury NHS Foundation Trust,22-Aug-14,DRUGS,Facilities Directorate,NHS LOGISTICS,1015070077,33.35,
Department of Health,Salisbury NHS Foundation Trust,22-Aug-14,CLEANING MATERIALS PRODUCTS SUNDRIES,Facilities Directorate,NHS LOGISTICS,1015070077,29.25,
Department of Health,Salisbury NHS Foundation Trust,22-Aug-14,MEDSURGCONS - OTHER,Facilities Directorate,NHS LOGISTICS,1015070077,4.53,
Department of Health,Salisbury NHS Foundation Trust,22-Aug-14,MEDSURGCONS - OTHER,Facilities Directorate,NHS LOGISTICS,1015070077,4.53,
Department of Health,Salisbury NHS Foundation Trust,22-Aug-14,DISPOSABLE THEATRE DRAPES WIPES,Facilities Directorate,NHS LOGISTICS,1015070077,70.93,
Department of Health,Salisbury NHS Foundation Trust,22-Aug-14,PAPER ITEMS GENERAL STATIONERY SUNDRIES,Clinical Support and Family Services,NHS LOGISTICS,1015070077,3.99,
Department of Health,Salisbury NHS Foundation Trust,22-Aug-14,PAPER ITEMS GENERAL STATIONERY SUNDRIES,Clinical Support and Family Services,NHS LOGISTICS,1015070077,19,
Department of Health,Salisbury NHS Foundation Trust,22-Aug-14,REFUSE DISPOSAL - CLINICAL CONT SERVICES,Facilities Directorate,NHS LOGISTICS,1015070077,184.3,
Department of Health,Salisbury NHS Foundation Trust,22-Aug-14,DRESSINGS - PRE STERILE,Critical care,NHS LOGISTICS,1015070077,2.23,
Department of Health,Salisbury NHS Foundation Trust,22-Aug-14,MEDSURGCONS-SUTURES,Critical care,NHS LOGISTICS,1015070077,26.95,
Department of Health,Salisbury NHS Foundation Trust,22-Aug-14,MEDSURGCONS-SUTURES,Critical care,NHS LOGISTICS,1015070077,56,
Department of Health,Salisbury NHS Foundation Trust,22-Aug-14,DRESSINGS - PRE STERILE,Critical care,NHS LOGISTICS,1015070077,6.5,
Department of Health,Salisbury NHS Foundation Trust,22-Aug-14,MEDSURGCONS-SUTURES,Critical care,NHS LOGISTICS,1015070077,90.2,
Department of Health,Salisbury NHS Foundation Trust,22-Aug-14,LAB EQUIP-LABORATORY APPARATUS,Critical care,NHS LOGISTICS,1015070077,2.26,
Department of Health,Salisbury NHS Foundation Trust,22-Aug-14,OTHER MEDICAL SUPPLIES,Clinical Support and Family Services,NHS LOGISTICS,1015070077,16.53,
Department of Health,Salisbury NHS Foundation Trust,22-Aug-14,MEDSURGCONS - OTHER,Clinical Support and Family Services,NHS LOGISTICS,1015070077,8.63,
Department of Health,Salisbury NHS Foundation Trust,22-Aug-14,DRUGS,Clinical Support and Family Services,NHS LOGISTICS,1015070077,9.92,
Department of Health,Salisbury NHS Foundation Trust,22-Aug-14,DISPOSABLE THEATRE DRAPES WIPES,Clinical Support and Family Services,NHS LOGISTICS,1015070077,3.24,
Department of Health,Salisbury NHS Foundation Trust,22-Aug-14,OTHER MEDICAL SUPPLIES,Medicine,NHS LOGISTICS,1015070077,39.17,
Department of Health,Salisbury NHS Foundation Trust,22-Aug-14,PATIENTS INCONTINENCE,Medicine,NHS LOGISTICS,1015070077,8.79,
Department of Health,Salisbury NHS Foundation Trust,22-Aug-14,MEDSURGCONS - OTHER,Medicine,NHS LOGISTICS,1015070077,6.25,
Department of Health,Salisbury NHS Foundation Trust,22-Aug-14,MEDSURGCONS - OTHER,Medicine,NHS LOGISTICS,1015070077,12.5,
Department of Health,Salisbury NHS Foundation Trust,22-Aug-14,MEDSURGCONS - OTHER,Medicine,NHS LOGISTICS,1015070077,7.44,
Department of Health,Salisbury NHS Foundation Trust,22-Aug-14,TISSUES HAND TOWELS & TOILET PAPER,Medicine,NHS LOGISTICS,1015070077,0.37,
Department of Health,Salisbury NHS Foundation Trust,22-Aug-14,SURGICAL INSTRUMENTS: GENERAL,Medicine,NHS LOGISTICS,1015070077,4.69,
Department of Health,Salisbury NHS Foundation Trust,22-Aug-14,NON DISPOSABLE BED LINEN,Medicine,NHS LOGISTICS,1015070077,11.3,
Department of Health,Salisbury NHS Foundation Trust,22-Aug-14,PATIENT APPLIANCES,Medicine,NHS LOGISTICS,1015070077,8.17,
Department of Health,Salisbury NHS Foundation Trust,22-Aug-14,LAB EQUIP-LABORATORY APPARATUS,Clinical Support and Family Services,NHS LOGISTICS,1015070077,37.85,
Department of Health,Salisbury NHS Foundation Trust,22-Aug-14,LAB EQUIP-LABORATORY APPARATUS,Clinical Support and Family Services,NHS LOGISTICS,1015070077,296.67,
Department of Health,Salisbury NHS Foundation Trust,22-Aug-14,LAB EQUIP-LABORATORY APPARATUS,Clinical Support and Family Services,NHS LOGISTICS,1015070077,30.92,
Department of Health,Salisbury NHS Foundation Trust,22-Aug-14,LAB EQUIP-LABORATORY APPARATUS,Clinical Support and Family Services,NHS LOGISTICS,1015070077,59.67,
Department of Health,Salisbury NHS Foundation Trust,22-Aug-14,LAB EQUIP-LABORATORY APPARATUS,Clinical Support and Family Services,NHS LOGISTICS,1015070077,6.46,
Department of Health,Salisbury NHS Foundation Trust,22-Aug-14,LAB EQUIP-LABORATORY APPARATUS,Clinical Support and Family Services,NHS LOGISTICS,1015070077,655.08,
Department of Health,Salisbury NHS Foundation Trust,22-Aug-14,LAB EQUIP-LABORATORY APPARATUS,Clinical Support and Family Services,NHS LOGISTICS,1015070077,6.16,
Department of Health,Salisbury NHS Foundation Trust,22-Aug-14,LAB EQUIP-LABORATORY APPARATUS,Clinical Support and Family Services,NHS LOGISTICS,1015070077,55.43,
Department of Health,Salisbury NHS Foundation Trust,22-Aug-14,LAB EQUIP-LABORATORY APPARATUS,Clinical Support and Family Services,NHS LOGISTICS,1015070077,32.08,
Department of Health,Salisbury NHS Foundation Trust,22-Aug-14,LAB EQUIP-LABORATORY APPARATUS,Clinical Support and Family Services,NHS LOGISTICS,1015070077,62.08,
Department of Health,Salisbury NHS Foundation Trust,22-Aug-14,LAB EQUIP-ANALYSERS,Clinical Support and Family Services,NHS LOGISTICS,1015070077,10.19,
Department of Health,Salisbury NHS Foundation Trust,22-Aug-14,LAB EQUIP-LABORATORY APPARATUS,Clinical Support and Family Services,NHS LOGISTICS,1015070077,234.38,
Department of Health,Salisbury NHS Foundation Trust,22-Aug-14,LAB EQUIP-LABORATORY APPARATUS,Clinical Support and Family Services,NHS LOGISTICS,1015070077,3.04,
Department of Health,Salisbury NHS Foundation Trust,22-Aug-14,LAB EQUIP-LABORATORY APPARATUS,Clinical Support and Family Services,NHS LOGISTICS,1015070077,70.8,
Department of Health,Salisbury NHS Foundation Trust,22-Aug-14,OTHER MEDICAL SUPPLIES,Clinical Support and Family Services,NHS LOGISTICS,1015070077,500.5,
Department of Health,Salisbury NHS Foundation Trust,22-Aug-14,OTHER MEDICAL SUPPLIES,Clinical Support and Family Services,NHS LOGISTICS,1015070077,91,
Department of Health,Salisbury NHS Foundation Trust,22-Aug-14,OTHER MEDICAL SUPPLIES,Medicine,NHS LOGISTICS,1015070077,22.08,
Department of Health,Salisbury NHS Foundation Trust,22-Aug-14,MEDSURGCONS - OTHER,Medicine,NHS LOGISTICS,1015070077,6.25,
Department of Health,Salisbury NHS Foundation Trust,22-Aug-14,MEDSURGCONS - OTHER,Medicine,NHS LOGISTICS,1015070077,6.25,
Department of Health,Salisbury NHS Foundation Trust,22-Aug-14,PATIENTS INCONTINENCE,Medicine,NHS LOGISTICS,1015070077,4.29,
Department of Health,Salisbury NHS Foundation Trust,22-Aug-14,TUBES,Medicine,NHS LOGISTICS,1015070077,6.19,
Department of Health,Salisbury NHS Foundation Trust,22-Aug-14,PATIENTS INCONTINENCE,Medicine,NHS LOGISTICS,1015070077,10.1,
Department of Health,Salisbury NHS Foundation Trust,22-Aug-14,MEDSURGCONS - OTHER,Medicine,NHS LOGISTICS,1015070077,7.44,
Department of Health,Salisbury NHS Foundation Trust,22-Aug-14,TISSUES HAND TOWELS & TOILET PAPER,Medicine,NHS LOGISTICS,1015070077,0.73,
Department of Health,Salisbury NHS Foundation Trust,22-Aug-14,NON DISPOSABLE BED LINEN,Medicine,NHS LOGISTICS,1015070077,5.65,
Department of Health,Salisbury NHS Foundation Trust,22-Aug-14,PATIENT APPLIANCES,Medicine,NHS LOGISTICS,1015070077,1.83,
Department of Health,Salisbury NHS Foundation Trust,22-Aug-14,DISPOSABLE THEATRE DRAPES WIPES,Medicine,NHS LOGISTICS,1015070077,3.24,
Department of Health,Salisbury NHS Foundation Trust,22-Aug-14,OTHER MEDICAL SUPPLIES,Clinical Support and Family Services,NHS LOGISTICS,1015070077,81.68,
Department of Health,Salisbury NHS Foundation Trust,22-Aug-14,BABY TEXTURE MODIFIED FOODS,Clinical Support and Family Services,NHS LOGISTICS,1015070077,29.53,
Department of Health,Salisbury NHS Foundation Trust,22-Aug-14,MEDSURGCONS - OTHER,Clinical Support and Family Services,NHS LOGISTICS,1015070077,14.88,
Department of Health,Salisbury NHS Foundation Trust,22-Aug-14,NON DISPOSABLE BED LINEN,Clinical Support and Family Services,NHS LOGISTICS,1015070077,11.3,
Department of Health,Salisbury NHS Foundation Trust,22-Aug-14,TISSUES HAND TOWELS & TOILET PAPER,Clinical Support and Family Services,NHS LOGISTICS,1015070077,10.4,
Department of Health,Salisbury NHS Foundation Trust,22-Aug-14,DRESSINGS - PRE STERILE,Clinical Support and Family Services,NHS LOGISTICS,1015070077,0.7,
Department of Health,Salisbury NHS Foundation Trust,22-Aug-14,MEDSURGCONS - OTHER,Clinical Support and Family Services,NHS LOGISTICS,1015070077,7.44,
Department of Health,Salisbury NHS Foundation Trust,22-Aug-14,TISSUES HAND TOWELS & TOILET PAPER,Clinical Support and Family Services,NHS LOGISTICS,1015070077,5.65,
Department of Health,Salisbury NHS Foundation Trust,22-Aug-14,TISSUES HAND TOWELS & TOILET PAPER,Clinical Support and Family Services,NHS LOGISTICS,1015070077,0.93,
Department of Health,Salisbury NHS Foundation Trust,22-Aug-14,OTHER MEDICAL SUPPLIES,Clinical Support and Family Services,NHS LOGISTICS,1015070077,4.69,
Department of Health,Salisbury NHS Foundation Trust,22-Aug-14,DRESSINGS - PRE STERILE,Clinical Support and Family Services,NHS LOGISTICS,1015070077,1.34,
Department of Health,Salisbury NHS Foundation Trust,22-Aug-14,DRESSINGS - PRE STERILE,Clinical Support and Family Services,NHS LOGISTICS,1015070077,0.7,
Department of Health,Salisbury NHS Foundation Trust,22-Aug-14,NON DISPOSABLE BED LINEN,Clinical Support and Family Services,NHS LOGISTICS,1015070077,5.65,
Department of Health,Salisbury NHS Foundation Trust,22-Aug-14,OTHER MEDICAL SUPPLIES,Medicine,NHS LOGISTICS,1015070077,8.83,
Department of Health,Salisbury NHS Foundation Trust,22-Aug-14,TISSUES HAND TOWELS & TOILET PAPER,Medicine,NHS LOGISTICS,1015070077,0.93,
Department of Health,Salisbury NHS Foundation Trust,22-Aug-14,MEDSURGCONS - OTHER,Medicine,NHS LOGISTICS,1015070077,4.53,
Department of Health,Salisbury NHS Foundation Trust,22-Aug-14,MEDSURGCONS - OTHER,Medicine,NHS LOGISTICS,1015070077,4.53,
Department of Health,Salisbury NHS Foundation Trust,22-Aug-14,MEDSURGCONS - OTHER,Medicine,NHS LOGISTICS,1015070077,15.63,
Department of Health,Salisbury NHS Foundation Trust,22-Aug-14,MEDSURGCONS - OTHER,Medicine,NHS LOGISTICS,1015070077,7.44,
Department of Health,Salisbury NHS Foundation Trust,22-Aug-14,NON DISPOSABLE BED LINEN,Medicine,NHS LOGISTICS,1015070077,2.83,
Department of Health,Salisbury NHS Foundation Trust,22-Aug-14,TOILETRIES PERSONAL HYGIENE PRODUCTS,Clinical Support and Family Services,NHS LOGISTICS,1015070077,0.76,
Department of Health,Salisbury NHS Foundation Trust,22-Aug-14,PATIENT APPLIANCES,Clinical Support and Family Services,NHS LOGISTICS,1015070077,22.83,
Department of Health,Salisbury NHS Foundation Trust,22-Aug-14,TISSUES HAND TOWELS & TOILET PAPER,Clinical Support and Family Services,NHS LOGISTICS,1015070077,5.65,
Department of Health,Salisbury NHS Foundation Trust,22-Aug-14,PATIENT APPLIANCES,Clinical Support and Family Services,NHS LOGISTICS,1015070077,18.08,
Department of Health,Salisbury NHS Foundation Trust,22-Aug-14,OTHER MEDICAL SUPPLIES,Clinical Support and Family Services,NHS LOGISTICS,1015070077,4.69,
Department of Health,Salisbury NHS Foundation Trust,22-Aug-14,OTHER MEDICAL SUPPLIES,Clinical Support and Family Services,NHS LOGISTICS,1015070077,4.69,
Department of Health,Salisbury NHS Foundation Trust,22-Aug-14,PAPER ITEMS GENERAL STATIONERY SUNDRIES,Clinical Support and Family Services,NHS LOGISTICS,1015070077,7.98,
Department of Health,Salisbury NHS Foundation Trust,22-Aug-14,PAPER ITEMS GENERAL STATIONERY SUNDRIES,Clinical Support and Family Services,NHS LOGISTICS,1015070077,6.13,
Department of Health,Salisbury NHS Foundation Trust,22-Aug-14,PAPER ITEMS GENERAL STATIONERY SUNDRIES,Clinical Support and Family Services,NHS LOGISTICS,1015070077,12.42,
Department of Health,Salisbury NHS Foundation Trust,22-Aug-14,DRESSINGS - PRE STERILE,Clinical Support and Family Services,NHS LOGISTICS,1015070077,10.08,
Department of Health,Salisbury NHS Foundation Trust,22-Aug-14,TISSUES HAND TOWELS & TOILET PAPER,Surgery,NHS LOGISTICS,1015070077,10.4,
Department of Health,Salisbury NHS Foundation Trust,22-Aug-14,SURGICAL INSTRUMENTS: DISPOSABLE,Surgery,NHS LOGISTICS,1015070077,130.42,
Department of Health,Salisbury NHS Foundation Trust,22-Aug-14,OTHER MEDICAL SUPPLIES,Medicine,NHS LOGISTICS,1015070077,17.67,
Department of Health,Salisbury NHS Foundation Trust,22-Aug-14,M & S EQUIPELECTEQUIPINST - OTHER,Medicine,NHS LOGISTICS,1015070077,16.13,
Department of Health,Salisbury NHS Foundation Trust,22-Aug-14,PATIENTS INCONTINENCE,Medicine,NHS LOGISTICS,1015070077,8.58,
Department of Health,Salisbury NHS Foundation Trust,22-Aug-14,PATIENTS INCONTINENCE,Medicine,NHS LOGISTICS,1015070077,40.4,
Department of Health,Salisbury NHS Foundation Trust,22-Aug-14,PATIENT APPLIANCES,Medicine,NHS LOGISTICS,1015070077,3.35,
Department of Health,Salisbury NHS Foundation Trust,22-Aug-14,PATIENT APPLIANCES,Medicine,NHS LOGISTICS,1015070077,3.35,
Department of Health,Salisbury NHS Foundation Trust,22-Aug-14,PATIENT APPLIANCES,Medicine,NHS LOGISTICS,1015070077,3.35,
Department of Health,Salisbury NHS Foundation Trust,22-Aug-14,PATIENT APPLIANCES,Medicine,NHS LOGISTICS,1015070077,4.15,
Department of Health,Salisbury NHS Foundation Trust,22-Aug-14,PATIENT APPLIANCES,Medicine,NHS LOGISTICS,1015070077,4.15,
Department of Health,Salisbury NHS Foundation Trust,22-Aug-14,NON DISPOSABLE BED LINEN,Medicine,NHS LOGISTICS,1015070077,11.3,
Department of Health,Salisbury NHS Foundation Trust,22-Aug-14,PATIENT APPLIANCES,Medicine,NHS LOGISTICS,1015070077,8.17,
Department of Health,Salisbury NHS Foundation Trust,22-Aug-14,PATIENT APPLIANCES,Medicine,NHS LOGISTICS,1015070077,8.17,
Department of Health,Salisbury NHS Foundation Trust,22-Aug-14,PATIENT APPLIANCES,Medicine,NHS LOGISTICS,1015070077,7.33,
Department of Health,Salisbury NHS Foundation Trust,22-Aug-14,DISPOSABLE THEATRE DRAPES WIPES,Medicine,NHS LOGISTICS,1015070077,3.24,
Department of Health,Salisbury NHS Foundation Trust,22-Aug-14,M & S EQUIPELECTEQUIPINST - OTHER,Medicine,NHS LOGISTICS,1015070077,105.15,
Department of Health,Salisbury NHS Foundation Trust,22-Aug-14,OTHER MEDICAL SUPPLIES,Medicine,NHS LOGISTICS,1015070077,1.75,
Department of Health,Salisbury NHS Foundation Trust,22-Aug-14,MEDSURGCONS - OTHER,Medicine,NHS LOGISTICS,1015070077,3,
Department of Health,Salisbury NHS Foundation Trust,22-Aug-14,MED SURG EQUIP REP MAINT CLEANING,Medicine,NHS LOGISTICS,1015070077,41.35,
Department of Health,Salisbury NHS Foundation Trust,22-Aug-14,MEDSURGCONS - OTHER,Medicine,NHS LOGISTICS,1015070077,5.21,
Department of Health,Salisbury NHS Foundation Trust,22-Aug-14,NON DISPOSABLE BED LINEN,Medicine,NHS LOGISTICS,1015070077,5.65,
Department of Health,Salisbury NHS Foundation Trust,22-Aug-14,DISPOSABLE THEATRE DRAPES WIPES,Medicine,NHS LOGISTICS,1015070077,12.58,
Department of Health,Salisbury NHS Foundation Trust,22-Aug-14,STATIONERY SUNDRIES,Human Resources,NHS LOGISTICS,1015070077,13.2,
Department of Health,Salisbury NHS Foundation Trust,22-Aug-14,OTHER MEDICAL SUPPLIES,Medicine,NHS LOGISTICS,1015070077,8.83,
Department of Health,Salisbury NHS Foundation Trust,22-Aug-14,MEDSURGCONS - OTHER,Medicine,NHS LOGISTICS,1015070077,6.25,
Department of Health,Salisbury NHS Foundation Trust,22-Aug-14,MEDSURGCONS - OTHER,Medicine,NHS LOGISTICS,1015070077,9.38,
Department of Health,Salisbury NHS Foundation Trust,22-Aug-14,TISSUES HAND TOWELS & TOILET PAPER,Medicine,NHS LOGISTICS,1015070077,1.88,
Department of Health,Salisbury NHS Foundation Trust,22-Aug-14,PATIENTS INCONTINENCE,Medicine,NHS LOGISTICS,1015070077,20.2,
Department of Health,Salisbury NHS Foundation Trust,22-Aug-14,PATIENT APPLIANCES,Medicine,NHS LOGISTICS,1015070077,3.35,
Department of Health,Salisbury NHS Foundation Trust,22-Aug-14,PATIENT APPLIANCES,Medicine,NHS LOGISTICS,1015070077,3.35,
Department of Health,Salisbury NHS Foundation Trust,22-Aug-14,PATIENT APPLIANCES,Medicine,NHS LOGISTICS,1015070077,3.35,
Department of Health,Salisbury NHS Foundation Trust,22-Aug-14,TISSUES HAND TOWELS & TOILET PAPER,Medicine,NHS LOGISTICS,1015070077,0.37,
Department of Health,Salisbury NHS Foundation Trust,22-Aug-14,NON DISPOSABLE BED LINEN,Medicine,NHS LOGISTICS,1015070077,14.12,
Department of Health,Salisbury NHS Foundation Trust,22-Aug-14,PATIENT APPLIANCES,Medicine,NHS LOGISTICS,1015070077,5.49,
Department of Health,Salisbury NHS Foundation Trust,22-Aug-14,COOKING & KITCHEN UTENSILS,Surgery,NHS LOGISTICS,1015070077,17.01,
Department of Health,Salisbury NHS Foundation Trust,22-Aug-14,DRUGS,Surgery,NHS LOGISTICS,1015070077,17.08,
Department of Health,Salisbury NHS Foundation Trust,22-Aug-14,M & S EQUIPELECTEQUIPINST - OTHER,Surgery,NHS LOGISTICS,1015070077,38.5,
Department of Health,Salisbury NHS Foundation Trust,22-Aug-14,MEDSURGCONS - OTHER,Surgery,NHS LOGISTICS,1015070077,10.76,
Department of Health,Salisbury NHS Foundation Trust,22-Aug-14,MEDSURGCONS - OTHER,Surgery,NHS LOGISTICS,1015070077,10.76,
Department of Health,Salisbury NHS Foundation Trust,22-Aug-14,MEDSURGCONS - OTHER,Surgery,NHS LOGISTICS,1015070077,10.76,
Department of Health,Salisbury NHS Foundation Trust,22-Aug-14,MEDSURGCONS - OTHER,Surgery,NHS LOGISTICS,1015070077,20.99,
Department of Health,Salisbury NHS Foundation Trust,22-Aug-14,CLEANING MATERIALS PRODUCTS SUNDRIES,Surgery,NHS LOGISTICS,1015070077,3.55,
Department of Health,Salisbury NHS Foundation Trust,22-Aug-14,DISPOSABLE THEATRE DRAPES WIPES,Surgery,NHS LOGISTICS,1015070077,6.48,
Department of Health,Salisbury NHS Foundation Trust,22-Aug-14,MEDSURGCONS - OTHER,Medicine,NHS LOGISTICS,1015070077,1.52,
Department of Health,Salisbury NHS Foundation Trust,22-Aug-14,OTHER MEDICAL SUPPLIES,Surgery,NHS LOGISTICS,1015070077,22.08,
Department of Health,Salisbury NHS Foundation Trust,22-Aug-14,MEDSURGCONS - OTHER,Surgery,NHS LOGISTICS,1015070077,12.5,
Department of Health,Salisbury NHS Foundation Trust,22-Aug-14,MEDSURGCONS - OTHER,Surgery,NHS LOGISTICS,1015070077,60.83,
Department of Health,Salisbury NHS Foundation Trust,22-Aug-14,OPTICAL  -  OTHER,Surgery,NHS LOGISTICS,1015070077,53,
Department of Health,Salisbury NHS Foundation Trust,22-Aug-14,DRESSINGS - PRE STERILE,Surgery,NHS LOGISTICS,1015070077,4.01,
Department of Health,Salisbury NHS Foundation Trust,22-Aug-14,NON DISPOSABLE THEATRE DRAPES WIPES,Surgery,NHS LOGISTICS,1015070077,41.75,
Department of Health,Salisbury NHS Foundation Trust,22-Aug-14,BEVERAGES & AMBIENT FOOD,Surgery,NHS LOGISTICS,1015070077,0.87,
Department of Health,Salisbury NHS Foundation Trust,22-Aug-14,DRUGS,Surgery,NHS LOGISTICS,1015070077,11.65,
Department of Health,Salisbury NHS Foundation Trust,22-Aug-14,MEDSURGCONS-SUTURES,Surgery,NHS LOGISTICS,1015070077,26.68,
Department of Health,Salisbury NHS Foundation Trust,22-Aug-14,MEDSURGCONS-SUTURES,Surgery,NHS LOGISTICS,1015070077,24.3,
Department of Health,Salisbury NHS Foundation Trust,22-Aug-14,PATIENT APPLIANCES,Surgery,NHS LOGISTICS,1015070077,8.17,
Department of Health,Salisbury NHS Foundation Trust,22-Aug-14,PATIENT APPLIANCES,Surgery,NHS LOGISTICS,1015070077,8.17,
Department of Health,Salisbury NHS Foundation Trust,22-Aug-14,DRESSINGS - PRE STERILE,Surgery,NHS LOGISTICS,1015070077,0.35,
Department of Health,Salisbury NHS Foundation Trust,22-Aug-14,NON DISPOSABLE BED LINEN,Clinical Support and Family Services,NHS LOGISTICS,1015070077,14.65,
Department of Health,Salisbury NHS Foundation Trust,22-Aug-14,OTHER MEDICAL SUPPLIES,Clinical Support and Family Services,NHS LOGISTICS,1015070077,4.42,
Department of Health,Salisbury NHS Foundation Trust,22-Aug-14,MED SURG EQUIP REP MAINT CLEANING,Clinical Support and Family Services,NHS LOGISTICS,1015070077,11.1,
Department of Health,Salisbury NHS Foundation Trust,22-Aug-14,NON DISPOSABLE BED LINEN,Clinical Support and Family Services,NHS LOGISTICS,1015070077,22.6,
Department of Health,Salisbury NHS Foundation Trust,22-Aug-14,PATIENT APPLIANCES,Clinical Support and Family Services,NHS LOGISTICS,1015070077,5.49,
Department of Health,Salisbury NHS Foundation Trust,22-Aug-14,DISPOSABLE THEATRE DRAPES WIPES,Clinical Support and Family Services,NHS LOGISTICS,1015070077,3.24,
Department of Health,Salisbury NHS Foundation Trust,22-Aug-14,DRESSINGS - PRE STERILE,Surgery,NHS LOGISTICS,1015070077,9.48,
Department of Health,Salisbury NHS Foundation Trust,22-Aug-14,DRESSINGS - PRE STERILE,Surgery,NHS LOGISTICS,1015070077,2.3,
Department of Health,Salisbury NHS Foundation Trust,22-Aug-14,DRESSINGS - PRE STERILE,Surgery,NHS LOGISTICS,1015070077,3.36,
Department of Health,Salisbury NHS Foundation Trust,22-Aug-14,DRESSINGS - PRE STERILE,Surgery,NHS LOGISTICS,1015070077,10.19,
Department of Health,Salisbury NHS Foundation Trust,22-Aug-14,DRESSINGS - PRE STERILE,Surgery,NHS LOGISTICS,1015070077,10.19,
Department of Health,Salisbury NHS Foundation Trust,22-Aug-14,TISSUES HAND TOWELS & TOILET PAPER,Surgery,NHS LOGISTICS,1015070077,5.65,
Department of Health,Salisbury NHS Foundation Trust,22-Aug-14,TISSUES HAND TOWELS & TOILET PAPER,Surgery,NHS LOGISTICS,1015070077,10.4,
Department of Health,Salisbury NHS Foundation Trust,22-Aug-14,PATIENT APPLIANCES,Surgery,NHS LOGISTICS,1015070077,21.4,
Department of Health,Salisbury NHS Foundation Trust,22-Aug-14,MEDSURGCONS - OTHER,Medicine,NHS LOGISTICS,1015070077,6.58,
Department of Health,Salisbury NHS Foundation Trust,22-Aug-14,MEDSURGCONS - OTHER,Medicine,NHS LOGISTICS,1015070077,9.83,
Department of Health,Salisbury NHS Foundation Trust,22-Aug-14,MEDSURGCONS - OTHER,Clinical Support and Family Services,NHS LOGISTICS,1015070077,6.25,
Department of Health,Salisbury NHS Foundation Trust,22-Aug-14,MEDSURGCONS - OTHER,Clinical Support and Family Services,NHS LOGISTICS,1015070077,6.25,
Department of Health,Salisbury NHS Foundation Trust,22-Aug-14,TOILETRIES PERSONAL HYGIENE PRODUCTS,Clinical Support and Family Services,NHS LOGISTICS,1015070077,3.83,
Department of Health,Salisbury NHS Foundation Trust,22-Aug-14,TISSUES HAND TOWELS & TOILET PAPER,Surgery,NHS LOGISTICS,1015070077,3.77,
Department of Health,Salisbury NHS Foundation Trust,22-Aug-14,OTHER MEDICAL SUPPLIES,Critical care,NHS LOGISTICS,1015070077,39.17,
Department of Health,Salisbury NHS Foundation Trust,22-Aug-14,MEDSURGCONS - OTHER,Critical care,NHS LOGISTICS,1015070077,18.75,
Department of Health,Salisbury NHS Foundation Trust,22-Aug-14,OTHER MEDICAL SUPPLIES,Critical care,NHS LOGISTICS,1015070077,5.68,
Department of Health,Salisbury NHS Foundation Trust,22-Aug-14,PATIENTS INCONTINENCE,Critical care,NHS LOGISTICS,1015070077,18.17,
Department of Health,Salisbury NHS Foundation Trust,22-Aug-14,PATIENT APPLIANCES,Critical care,NHS LOGISTICS,1015070077,4.15,
Department of Health,Salisbury NHS Foundation Trust,22-Aug-14,MEDSURGCONS - OTHER,Critical care,NHS LOGISTICS,1015070077,17.91,
Department of Health,Salisbury NHS Foundation Trust,22-Aug-14,MEDSURGCONS - OTHER,Critical care,NHS LOGISTICS,1015070077,7.44,
Department of Health,Salisbury NHS Foundation Trust,22-Aug-14,TOILETRIES PERSONAL HYGIENE PRODUCTS,Critical care,NHS LOGISTICS,1015070077,3.22,
Department of Health,Salisbury NHS Foundation Trust,22-Aug-14,NON DISPOSABLE BED LINEN,Critical care,NHS LOGISTICS,1015070077,33.9,
Department of Health,Salisbury NHS Foundation Trust,22-Aug-14,PATIENT APPLIANCES,Critical care,NHS LOGISTICS,1015070077,5.49,
Department of Health,Salisbury NHS Foundation Trust,22-Aug-14,DISPOSABLE THEATRE DRAPES WIPES,Critical care,NHS LOGISTICS,1015070077,3.24,
Department of Health,Salisbury NHS Foundation Trust,22-Aug-14,DISPOSABLE THEATRE DRAPES WIPES,Critical care,NHS LOGISTICS,1015070077,14.6,
Department of Health,Salisbury NHS Foundation Trust,22-Aug-14,OTHER MEDICAL SUPPLIES,Medicine,NHS LOGISTICS,1015070077,4.42,
Department of Health,Salisbury NHS Foundation Trust,22-Aug-14,PATIENTS INCONTINENCE,Medicine,NHS LOGISTICS,1015070077,9.12,
Department of Health,Salisbury NHS Foundation Trust,22-Aug-14,TISSUES HAND TOWELS & TOILET PAPER,Medicine,NHS LOGISTICS,1015070077,5.65,
Department of Health,Salisbury NHS Foundation Trust,22-Aug-14,TISSUES HAND TOWELS & TOILET PAPER,Medicine,NHS LOGISTICS,1015070077,1.4,
Department of Health,Salisbury NHS Foundation Trust,22-Aug-14,PATIENTS INCONTINENCE,Medicine,NHS LOGISTICS,1015070077,5.05,
Department of Health,Salisbury NHS Foundation Trust,22-Aug-14,PATIENT APPLIANCES,Medicine,NHS LOGISTICS,1015070077,3.35,
Department of Health,Salisbury NHS Foundation Trust,22-Aug-14,PATIENT APPLIANCES,Medicine,NHS LOGISTICS,1015070077,4.15,
Department of Health,Salisbury NHS Foundation Trust,22-Aug-14,PATIENT APPLIANCES,Medicine,NHS LOGISTICS,1015070077,4.15,
Department of Health,Salisbury NHS Foundation Trust,22-Aug-14,PATIENT APPLIANCES,Medicine,NHS LOGISTICS,1015070077,4.15,
Department of Health,Salisbury NHS Foundation Trust,22-Aug-14,MEDSURGCONS - OTHER,Medicine,NHS LOGISTICS,1015070077,17.91,
Department of Health,Salisbury NHS Foundation Trust,22-Aug-14,MEDSURGCONS - OTHER,Medicine,NHS LOGISTICS,1015070077,14.07,
Department of Health,Salisbury NHS Foundation Trust,22-Aug-14,NON DISPOSABLE BED LINEN,Medicine,NHS LOGISTICS,1015070077,11.3,
Department of Health,Salisbury NHS Foundation Trust,22-Aug-14,PATIENT APPLIANCES,Medicine,NHS LOGISTICS,1015070077,3.67,
Department of Health,Salisbury NHS Foundation Trust,22-Aug-14,DISPOSABLE THEATRE DRAPES WIPES,Medicine,NHS LOGISTICS,1015070077,3.24,
Department of Health,Salisbury NHS Foundation Trust,22-Aug-14,DRESSINGS - PRE STERILE,Medicine,NHS LOGISTICS,1015070077,109.8,
Department of Health,Salisbury NHS Foundation Trust,22-Aug-14,OTHER MEDICAL SUPPLIES,Critical care,NHS LOGISTICS,1015070077,22.08,
Department of Health,Salisbury NHS Foundation Trust,22-Aug-14,DRESSINGS - PRE STERILE,Critical care,NHS LOGISTICS,1015070077,15.28,
Department of Health,Salisbury NHS Foundation Trust,22-Aug-14,DRESSINGS - PRE STERILE,Critical care,NHS LOGISTICS,1015070077,9.03,
Department of Health,Salisbury NHS Foundation Trust,22-Aug-14,DRESSINGS - PRE STERILE,Critical care,NHS LOGISTICS,1015070077,6.16,
Department of Health,Salisbury NHS Foundation Trust,22-Aug-14,MEDSURGCONS - OTHER,Critical care,NHS LOGISTICS,1015070077,3.13,
Department of Health,Salisbury NHS Foundation Trust,22-Aug-14,MEDSURGCONS - OTHER,Critical care,NHS LOGISTICS,1015070077,3.13,
Department of Health,Salisbury NHS Foundation Trust,22-Aug-14,TISSUES HAND TOWELS & TOILET PAPER,Critical care,NHS LOGISTICS,1015070077,1.88,
Department of Health,Salisbury NHS Foundation Trust,22-Aug-14,ELECTRICAL EQUIPMENT x,Medicine,NHS LOGISTICS,1015070077,5,
Department of Health,Salisbury NHS Foundation Trust,22-Aug-14,ELECTRICAL EQUIPMENT x,Medicine,NHS LOGISTICS,1015070077,4,
Department of Health,Salisbury NHS Foundation Trust,22-Aug-14,STATIONERY SUNDRIES,Medicine,NHS LOGISTICS,1015070077,0.6,
Department of Health,Salisbury NHS Foundation Trust,22-Aug-14,STATIONERY SUNDRIES,Medicine,NHS LOGISTICS,1015070077,0.3,
Department of Health,Salisbury NHS Foundation Trust,22-Aug-14,M & S EQUIPELECTEQUIPINST - OTHER,Clinical Support and Family Services,NHS LOGISTICS,1015070077,120.5,
Department of Health,Salisbury NHS Foundation Trust,22-Aug-14,TISSUES HAND TOWELS & TOILET PAPER,Human Resources,NHS LOGISTICS,1015070077,7.47,
Department of Health,Salisbury NHS Foundation Trust,22-Aug-14,DRESSINGS - PRE STERILE,Clinical Support and Family Services,NHS LOGISTICS,1015070077,208.33,
Department of Health,Salisbury NHS Foundation Trust,22-Aug-14,DRESSINGS - PRE STERILE,Clinical Support and Family Services,NHS LOGISTICS,1015070077,143.05,
Department of Health,Salisbury NHS Foundation Trust,22-Aug-14,DRESSINGS - PRE STERILE,Clinical Support and Family Services,NHS LOGISTICS,1015070077,93.5,
Department of Health,Salisbury NHS Foundation Trust,22-Aug-14,DRESSINGS - PRE STERILE,Clinical Support and Family Services,NHS LOGISTICS,1015070077,36.08,
Department of Health,Salisbury NHS Foundation Trust,22-Aug-14,DRESSINGS - PRE STERILE,Clinical Support and Family Services,NHS LOGISTICS,1015070077,288.27,
Department of Health,Salisbury NHS Foundation Trust,22-Aug-14,DRESSINGS - PRE STERILE,Clinical Support and Family Services,NHS LOGISTICS,1015070077,45.2,
Department of Health,Salisbury NHS Foundation Trust,22-Aug-14,DRESSINGS - PRE STERILE,Clinical Support and Family Services,NHS LOGISTICS,1015070077,204.5,
Department of Health,Salisbury NHS Foundation Trust,22-Aug-14,DRESSINGS - PRE STERILE,Clinical Support and Family Services,NHS LOGISTICS,1015070077,31.33,
Department of Health,Salisbury NHS Foundation Trust,22-Aug-14,MED SURG EQUIP REP MAINT CLEANING,Clinical Support and Family Services,NHS LOGISTICS,1015070077,100.33,
Department of Health,Salisbury NHS Foundation Trust,22-Aug-14,DRUGS,Clinical Support and Family Services,NHS LOGISTICS,1015070077,78,
Department of Health,Salisbury NHS Foundation Trust,22-Aug-14,SERVICES FROM NHS BODIES,Clinical Support and Family Services,NHS LOGISTICS,1015070077,216,
Department of Health,Salisbury NHS Foundation Trust,22-Aug-14,DISPOSABLE THEATRE DRAPES WIPES,Clinical Support and Family Services,NHS LOGISTICS,1015070077,6.48,
Department of Health,Salisbury NHS Foundation Trust,22-Aug-14,DRESSINGS - PRE STERILE,Clinical Support and Family Services,NHS LOGISTICS,1015070077,442.67,
Department of Health,Salisbury NHS Foundation Trust,22-Aug-14,DRESSINGS - PRE STERILE,Medicine,NHS LOGISTICS,1015070077,2.31,
Department of Health,Salisbury NHS Foundation Trust,22-Aug-14,TISSUES HAND TOWELS & TOILET PAPER,Medicine,NHS LOGISTICS,1015070077,7.53,
Department of Health,Salisbury NHS Foundation Trust,22-Aug-14,TISSUES HAND TOWELS & TOILET PAPER,Medicine,NHS LOGISTICS,1015070077,1.4,
Department of Health,Salisbury NHS Foundation Trust,22-Aug-14,TISSUES HAND TOWELS & TOILET PAPER,Surgery,NHS LOGISTICS,1015070077,7.53,
Department of Health,Salisbury NHS Foundation Trust,22-Aug-14,PATIENTS INCONTINENCE,Surgery,NHS LOGISTICS,1015070077,18.17,
Department of Health,Salisbury NHS Foundation Trust,22-Aug-14,OTHER MEDICAL SUPPLIES,Medicine,NHS LOGISTICS,1015070077,22.08,
Department of Health,Salisbury NHS Foundation Trust,22-Aug-14,MEDSURGCONS - OTHER,Medicine,NHS LOGISTICS,1015070077,6.25,
Department of Health,Salisbury NHS Foundation Trust,22-Aug-14,MEDSURGCONS - OTHER,Medicine,NHS LOGISTICS,1015070077,6.25,
Department of Health,Salisbury NHS Foundation Trust,22-Aug-14,PATIENTS INCONTINENCE,Medicine,NHS LOGISTICS,1015070077,4.29,
Department of Health,Salisbury NHS Foundation Trust,22-Aug-14,PATIENTS INCONTINENCE,Medicine,NHS LOGISTICS,1015070077,40.4,
Department of Health,Salisbury NHS Foundation Trust,22-Aug-14,PATIENT APPLIANCES,Medicine,NHS LOGISTICS,1015070077,3.35,
Department of Health,Salisbury NHS Foundation Trust,22-Aug-14,PATIENT APPLIANCES,Medicine,NHS LOGISTICS,1015070077,3.35,
Department of Health,Salisbury NHS Foundation Trust,22-Aug-14,PATIENT APPLIANCES,Medicine,NHS LOGISTICS,1015070077,4.15,
Department of Health,Salisbury NHS Foundation Trust,22-Aug-14,PATIENT APPLIANCES,Medicine,NHS LOGISTICS,1015070077,4.15,
Department of Health,Salisbury NHS Foundation Trust,22-Aug-14,MEDSURGCONS - OTHER,Medicine,NHS LOGISTICS,1015070077,7.44,
Department of Health,Salisbury NHS Foundation Trust,22-Aug-14,NON DISPOSABLE BED LINEN,Medicine,NHS LOGISTICS,1015070077,22.6,
Department of Health,Salisbury NHS Foundation Trust,22-Aug-14,PATIENT APPLIANCES,Medicine,NHS LOGISTICS,1015070077,8.17,
Department of Health,Salisbury NHS Foundation Trust,22-Aug-14,PATIENT APPLIANCES,Medicine,NHS LOGISTICS,1015070077,1.83,
Department of Health,Salisbury NHS Foundation Trust,22-Aug-14,DISPOSABLE THEATRE DRAPES WIPES,Medicine,NHS LOGISTICS,1015070077,3.24,
Department of Health,Salisbury NHS Foundation Trust,22-Aug-14,OTHER MEDICAL SUPPLIES,Surgery,NHS LOGISTICS,1015070077,39.17,
Department of Health,Salisbury NHS Foundation Trust,22-Aug-14,MEDSURGCONS - OTHER,Surgery,NHS LOGISTICS,1015070077,12.5,
Department of Health,Salisbury NHS Foundation Trust,22-Aug-14,CLEANING MATERIALS PRODUCTS SUNDRIES,Surgery,NHS LOGISTICS,1015070077,6.48,
Department of Health,Salisbury NHS Foundation Trust,22-Aug-14,PATIENTS INCONTINENCE,Surgery,NHS LOGISTICS,1015070077,3.63,
Department of Health,Salisbury NHS Foundation Trust,22-Aug-14,PATIENTS INCONTINENCE,Surgery,NHS LOGISTICS,1015070077,4.29,
Department of Health,Salisbury NHS Foundation Trust,22-Aug-14,PATIENTS INCONTINENCE,Surgery,NHS LOGISTICS,1015070077,9.08,
Department of Health,Salisbury NHS Foundation Trust,22-Aug-14,MEDSURGCONS - OTHER,Surgery,NHS LOGISTICS,1015070077,7.44,
Department of Health,Salisbury NHS Foundation Trust,22-Aug-14,TISSUES HAND TOWELS & TOILET PAPER,Surgery,NHS LOGISTICS,1015070077,0.37,
Department of Health,Salisbury NHS Foundation Trust,22-Aug-14,NON DISPOSABLE BED LINEN,Surgery,NHS LOGISTICS,1015070077,11.3,
Department of Health,Salisbury NHS Foundation Trust,22-Aug-14,PATIENT APPLIANCES,Surgery,NHS LOGISTICS,1015070077,5.49,
Department of Health,Salisbury NHS Foundation Trust,22-Aug-14,DISPOSABLE THEATRE DRAPES WIPES,Surgery,NHS LOGISTICS,1015070077,6.48,
Department of Health,Salisbury NHS Foundation Trust,22-Aug-14,OTHER MEDICAL SUPPLIES,Surgery,NHS LOGISTICS,1015070077,39.17,
Department of Health,Salisbury NHS Foundation Trust,22-Aug-14,MEDSURGCONS - OTHER,Surgery,NHS LOGISTICS,1015070077,7.44,
Department of Health,Salisbury NHS Foundation Trust,22-Aug-14,TISSUES HAND TOWELS & TOILET PAPER,Surgery,NHS LOGISTICS,1015070077,0.37,
Department of Health,Salisbury NHS Foundation Trust,22-Aug-14,NON DISPOSABLE BED LINEN,Surgery,NHS LOGISTICS,1015070077,11.3,
Department of Health,Salisbury NHS Foundation Trust,22-Aug-14,DRESSINGS - PRE STERILE,Surgery,NHS LOGISTICS,1015070077,420.27,
Department of Health,Salisbury NHS Foundation Trust,22-Aug-14,DRESSINGS - PRE STERILE,Surgery,NHS LOGISTICS,1015070077,165.08,
Department of Health,Salisbury NHS Foundation Trust,22-Aug-14,MEDSURGCONS-SUTURES,Surgery,NHS LOGISTICS,1015070077,324.18,
Department of Health,Salisbury NHS Foundation Trust,22-Aug-14,MEDSURGCONS-SUTURES,Surgery,NHS LOGISTICS,1015070077,27.87,
Department of Health,Salisbury NHS Foundation Trust,22-Aug-14,MEDSURGCONS-SUTURES,Surgery,NHS LOGISTICS,1015070077,45.65,
Department of Health,Salisbury NHS Foundation Trust,22-Aug-14,MEDSURGCONS-SUTURES,Surgery,NHS LOGISTICS,1015070077,22.27,
Department of Health,Salisbury NHS Foundation Trust,22-Aug-14,MEDSURGCONS-SUTURES,Surgery,NHS LOGISTICS,1015070077,27.38,
Department of Health,Salisbury NHS Foundation Trust,22-Aug-14,MEDSURGCONS-SUTURES,Surgery,NHS LOGISTICS,1015070077,29.64,
Department of Health,Salisbury NHS Foundation Trust,22-Aug-14,MEDSURGCONS-SUTURES,Surgery,NHS LOGISTICS,1015070077,61.52,
Department of Health,Salisbury NHS Foundation Trust,22-Aug-14,MEDSURGCONS-SUTURES,Surgery,NHS LOGISTICS,1015070077,62.01,
Department of Health,Salisbury NHS Foundation Trust,22-Aug-14,MEDSURGCONS-SUTURES,Surgery,NHS LOGISTICS,1015070077,56.11,
Department of Health,Salisbury NHS Foundation Trust,22-Aug-14,MEDSURGCONS-SUTURES,Surgery,NHS LOGISTICS,1015070077,123.25,
Department of Health,Salisbury NHS Foundation Trust,22-Aug-14,MEDSURGCONS-SUTURES,Surgery,NHS LOGISTICS,1015070077,70.68,
Department of Health,Salisbury NHS Foundation Trust,22-Aug-14,MEDSURGCONS-SUTURES,Surgery,NHS LOGISTICS,1015070077,89.18,
Department of Health,Salisbury NHS Foundation Trust,22-Aug-14,MEDSURGCONS-SUTURES,Surgery,NHS LOGISTICS,1015070077,141.73,
Department of Health,Salisbury NHS Foundation Trust,22-Aug-14,MEDSURGCONS-SUTURES,Surgery,NHS LOGISTICS,1015070077,47.14,
Department of Health,Salisbury NHS Foundation Trust,22-Aug-14,MEDSURGCONS-SUTURES,Surgery,NHS LOGISTICS,1015070077,47.68,
Department of Health,Salisbury NHS Foundation Trust,22-Aug-14,MEDSURGCONS-SUTURES,Surgery,NHS LOGISTICS,1015070077,22.68,
Department of Health,Salisbury NHS Foundation Trust,22-Aug-14,HEALTHCARE - WEAR,Surgery,NHS LOGISTICS,1015070077,5.42,
Department of Health,Salisbury NHS Foundation Trust,22-Aug-14,HEALTHCARE - WEAR,Surgery,NHS LOGISTICS,1015070077,24.3,
Department of Health,Salisbury NHS Foundation Trust,22-Aug-14,STATIONERY SUNDRIES,Critical care,NHS LOGISTICS,1015070077,6.6,
Department of Health,Salisbury NHS Foundation Trust,22-Aug-14,PAPER ITEMS GENERAL STATIONERY SUNDRIES,Critical care,NHS LOGISTICS,1015070077,15.97,
Department of Health,Salisbury NHS Foundation Trust,22-Aug-14,MEDSURGCONS - OTHER,Clinical Support and Family Services,NHS LOGISTICS,1015070077,20.83,
Department of Health,Salisbury NHS Foundation Trust,22-Aug-14,DENTAL SURGERY SUNDRIES,Corporate Directorate,NHS LOGISTICS,1015070077,6.9,
Department of Health,Salisbury NHS Foundation Trust,22-Aug-14,HEALTHCARE - WEAR,Surgery,NHS LOGISTICS,1015070077,77.84,
Department of Health,Salisbury NHS Foundation Trust,22-Aug-14,HEALTHCARE - WEAR,Surgery,NHS LOGISTICS,1015070077,73.34,
Department of Health,Salisbury NHS Foundation Trust,22-Aug-14,HEALTHCARE - WEAR,Surgery,NHS LOGISTICS,1015070077,81.3,
Department of Health,Salisbury NHS Foundation Trust,22-Aug-14,M & S EQUIPELECTEQUIPINST - OTHER,Clinical Support and Family Services,NHS LOGISTICS,1015070077,634.37,
Department of Health,Salisbury NHS Foundation Trust,22-Aug-14,M & S EQUIPELECTEQUIPINST - OTHER,Clinical Support and Family Services,NHS LOGISTICS,1015070077,200.63,
Department of Health,Salisbury NHS Foundation Trust,22-Aug-14,OTHER MEDICAL SUPPLIES,Clinical Support and Family Services,NHS LOGISTICS,1015070077,1.33,
Department of Health,Salisbury NHS Foundation Trust,22-Aug-14,MED SURG EQUIP REP MAINT CLEANING,Clinical Support and Family Services,NHS LOGISTICS,1015070077,137.75,
Department of Health,Salisbury NHS Foundation Trust,22-Aug-14,MEDSURGCONS - OTHER,Clinical Support and Family Services,NHS LOGISTICS,1015070077,30.42,
Department of Health,Salisbury NHS Foundation Trust,22-Aug-14,TISSUES HAND TOWELS & TOILET PAPER,Clinical Support and Family Services,NHS LOGISTICS,1015070077,0.93,
Department of Health,Salisbury NHS Foundation Trust,22-Aug-14,SURGICAL INSTRUMENTS: DISPOSABLE,Clinical Support and Family Services,NHS LOGISTICS,1015070077,13.63,
Department of Health,Salisbury NHS Foundation Trust,22-Aug-14,MEDSURGCONS - OTHER,Clinical Support and Family Services,NHS LOGISTICS,1015070077,5.21,
Department of Health,Salisbury NHS Foundation Trust,22-Aug-14,NON DISPOSABLE BED LINEN,Clinical Support and Family Services,NHS LOGISTICS,1015070077,8.48,
Department of Health,Salisbury NHS Foundation Trust,22-Aug-14,MEDSURGCONS - OTHER,Surgery,NHS LOGISTICS,1015070077,98.38,
Department of Health,Salisbury NHS Foundation Trust,22-Aug-14,ANAESTHETIC EQUIPMENT ACCESSORIES,Critical care,NHS LOGISTICS,1015070077,14,
Department of Health,Salisbury NHS Foundation Trust,22-Aug-14,ANAESTHETIC EQUIPMENT ACCESSORIES,Critical care,NHS LOGISTICS,1015070077,36.67,
Department of Health,Salisbury NHS Foundation Trust,22-Aug-14,TUBES,Critical care,NHS LOGISTICS,1015070077,7,
Department of Health,Salisbury NHS Foundation Trust,22-Aug-14,OTHER MEDICAL SUPPLIES,Medicine,NHS LOGISTICS,1015070077,22.08,
Department of Health,Salisbury NHS Foundation Trust,22-Aug-14,PATIENTS INCONTINENCE,Medicine,NHS LOGISTICS,1015070077,18.17,
Department of Health,Salisbury NHS Foundation Trust,22-Aug-14,OTHER MEDICAL SUPPLIES,Medicine,NHS LOGISTICS,1015070077,16.53,
Department of Health,Salisbury NHS Foundation Trust,22-Aug-14,MEDSURGCONS - OTHER,Medicine,NHS LOGISTICS,1015070077,30.42,
Department of Health,Salisbury NHS Foundation Trust,22-Aug-14,PATIENTS INCONTINENCE,Medicine,NHS LOGISTICS,1015070077,3.63,
Department of Health,Salisbury NHS Foundation Trust,22-Aug-14,PATIENTS INCONTINENCE,Medicine,NHS LOGISTICS,1015070077,4.29,
Department of Health,Salisbury NHS Foundation Trust,22-Aug-14,TUBES,Medicine,NHS LOGISTICS,1015070077,6.19,
Department of Health,Salisbury NHS Foundation Trust,22-Aug-14,PATIENTS INCONTINENCE,Medicine,NHS LOGISTICS,1015070077,9.08,
Department of Health,Salisbury NHS Foundation Trust,22-Aug-14,MEDSURGCONS - OTHER,Medicine,NHS LOGISTICS,1015070077,5.21,
Department of Health,Salisbury NHS Foundation Trust,22-Aug-14,MEDSURGCONS - OTHER,Medicine,NHS LOGISTICS,1015070077,22.32,
Department of Health,Salisbury NHS Foundation Trust,22-Aug-14,TISSUES HAND TOWELS & TOILET PAPER,Medicine,NHS LOGISTICS,1015070077,1.83,
Department of Health,Salisbury NHS Foundation Trust,22-Aug-14,SURGICAL INSTRUMENTS: GENERAL,Medicine,NHS LOGISTICS,1015070077,9.38,
Department of Health,Salisbury NHS Foundation Trust,22-Aug-14,NON DISPOSABLE BED LINEN,Medicine,NHS LOGISTICS,1015070077,8.48,
Department of Health,Salisbury NHS Foundation Trust,22-Aug-14,DISPOSABLE THEATRE DRAPES WIPES,Medicine,NHS LOGISTICS,1015070077,6.48,
Department of Health,Salisbury NHS Foundation Trust,22-Aug-14,OTHER MEDICAL SUPPLIES,Critical care,NHS LOGISTICS,1015070077,22.08,
Department of Health,Salisbury NHS Foundation Trust,22-Aug-14,HEALTHCARE - WEAR,Critical care,NHS LOGISTICS,1015070077,27.67,
Department of Health,Salisbury NHS Foundation Trust,22-Aug-14,HEALTHCARE - WEAR,Critical care,NHS LOGISTICS,1015070077,30.04,
Department of Health,Salisbury NHS Foundation Trust,22-Aug-14,OTHER MEDICAL SUPPLIES,Critical care,NHS LOGISTICS,1015070077,16.53,
Department of Health,Salisbury NHS Foundation Trust,22-Aug-14,MEDSURGCONS - OTHER,Critical care,NHS LOGISTICS,1015070077,21.47,
Department of Health,Salisbury NHS Foundation Trust,22-Aug-14,TISSUES HAND TOWELS & TOILET PAPER,Critical care,NHS LOGISTICS,1015070077,42.4,
Department of Health,Salisbury NHS Foundation Trust,22-Aug-14,NON DISPOSABLE BED LINEN,Critical care,NHS LOGISTICS,1015070077,15.06,
Department of Health,Salisbury NHS Foundation Trust,22-Aug-14,MEDSURGCONS - OTHER,Critical care,NHS LOGISTICS,1015070077,11.95,
Department of Health,Salisbury NHS Foundation Trust,22-Aug-14,MEDSURGCONS - OTHER,Critical care,NHS LOGISTICS,1015070077,14.88,
Department of Health,Salisbury NHS Foundation Trust,22-Aug-14,NON DISPOSABLE BED LINEN,Critical care,NHS LOGISTICS,1015070077,113,
Department of Health,Salisbury NHS Foundation Trust,22-Aug-14,PATIENT APPLIANCES,Critical care,NHS LOGISTICS,1015070077,164.75,
Department of Health,Salisbury NHS Foundation Trust,22-Aug-14,DISPOSABLE THEATRE DRAPES WIPES,Critical care,NHS LOGISTICS,1015070077,19.45,
Department of Health,Salisbury NHS Foundation Trust,22-Aug-14,DISPOSABLE THEATRE DRAPES WIPES,Critical care,NHS LOGISTICS,1015070077,3.8,
Department of Health,Salisbury NHS Foundation Trust,22-Aug-14,PAPER ITEMS GENERAL STATIONERY SUNDRIES,Nursing Directorate,NHS LOGISTICS,1015070077,30.42,
Department of Health,Salisbury NHS Foundation Trust,22-Aug-14,STATIONERY SUNDRIES,Nursing Directorate,NHS LOGISTICS,1015070077,0.85,
Department of Health,Salisbury NHS Foundation Trust,22-Aug-14,STATIONERY SUNDRIES,Nursing Directorate,NHS LOGISTICS,1015070077,4.33,
Department of Health,Salisbury NHS Foundation Trust,22-Aug-14,MEDSURGCONS - OTHER,Surgery,NHS LOGISTICS,1015070077,297.13,
Department of Health,Salisbury NHS Foundation Trust,22-Aug-14,ANAESTHETIC EQUIPMENT ACCESSORIES,Surgery,NHS LOGISTICS,1015070077,96.17,
Department of Health,Salisbury NHS Foundation Trust,22-Aug-14,OTHER MEDICAL SUPPLIES,Surgery,NHS LOGISTICS,1015070077,39.17,
Department of Health,Salisbury NHS Foundation Trust,22-Aug-14,MEDSURGCONS - OTHER,Surgery,NHS LOGISTICS,1015070077,12.5,
Department of Health,Salisbury NHS Foundation Trust,22-Aug-14,MEDSURGCONS - OTHER,Surgery,NHS LOGISTICS,1015070077,25,
Department of Health,Salisbury NHS Foundation Trust,22-Aug-14,MEDSURGCONS - OTHER,Surgery,NHS LOGISTICS,1015070077,30.42,
Department of Health,Salisbury NHS Foundation Trust,22-Aug-14,MEDSURGCONS - OTHER,Surgery,NHS LOGISTICS,1015070077,30.42,
Department of Health,Salisbury NHS Foundation Trust,22-Aug-14,MEDSURGCONS - OTHER,Surgery,NHS LOGISTICS,1015070077,60.83,
Department of Health,Salisbury NHS Foundation Trust,22-Aug-14,DRESSINGS - PRE STERILE,Surgery,NHS LOGISTICS,1015070077,34.8,
Department of Health,Salisbury NHS Foundation Trust,22-Aug-14,DRESSINGS - PRE STERILE,Surgery,NHS LOGISTICS,1015070077,76.07,
Department of Health,Salisbury NHS Foundation Trust,22-Aug-14,MEDSURGCONS - OTHER,Surgery,NHS LOGISTICS,1015070077,21.52,
Department of Health,Salisbury NHS Foundation Trust,22-Aug-14,OTHER MEDICAL SUPPLIES,Surgery,NHS LOGISTICS,1015070077,253.55,
Department of Health,Salisbury NHS Foundation Trust,22-Aug-14,DRUGS,Surgery,NHS LOGISTICS,1015070077,23.3,
Department of Health,Salisbury NHS Foundation Trust,22-Aug-14,DRESSINGS - PRE STERILE,Surgery,NHS LOGISTICS,1015070077,34.8,
Department of Health,Salisbury NHS Foundation Trust,22-Aug-14,DRESSINGS - PRE STERILE,Surgery,NHS LOGISTICS,1015070077,29.35,
Department of Health,Salisbury NHS Foundation Trust,22-Aug-14,PATIENT APPLIANCES,Surgery,NHS LOGISTICS,1015070077,5.49,
Department of Health,Salisbury NHS Foundation Trust,22-Aug-14,OTHER MEDICAL SUPPLIES,Critical care,NHS LOGISTICS,1015070077,17.67,
Department of Health,Salisbury NHS Foundation Trust,22-Aug-14,PATIENTS INCONTINENCE,Critical care,NHS LOGISTICS,1015070077,7.6,
Department of Health,Salisbury NHS Foundation Trust,22-Aug-14,PATIENTS INCONTINENCE,Critical care,NHS LOGISTICS,1015070077,9.12,
Department of Health,Salisbury NHS Foundation Trust,22-Aug-14,DRESSINGS - PRE STERILE,Critical care,NHS LOGISTICS,1015070077,15.28,
Department of Health,Salisbury NHS Foundation Trust,22-Aug-14,DRESSINGS - PRE STERILE,Critical care,NHS LOGISTICS,1015070077,6.16,
Department of Health,Salisbury NHS Foundation Trust,22-Aug-14,MEDSURGCONS - OTHER,Critical care,NHS LOGISTICS,1015070077,6.25,
Department of Health,Salisbury NHS Foundation Trust,22-Aug-14,PATIENTS INCONTINENCE,Critical care,NHS LOGISTICS,1015070077,4.54,
Department of Health,Salisbury NHS Foundation Trust,22-Aug-14,MEDSURGCONS - OTHER,Critical care,NHS LOGISTICS,1015070077,14.88,
Department of Health,Salisbury NHS Foundation Trust,22-Aug-14,TISSUES HAND TOWELS & TOILET PAPER,Critical care,NHS LOGISTICS,1015070077,0.37,
Department of Health,Salisbury NHS Foundation Trust,22-Aug-14,TOILETRIES PERSONAL HYGIENE PRODUCTS,Critical care,NHS LOGISTICS,1015070077,9.45,
Department of Health,Salisbury NHS Foundation Trust,22-Aug-14,NON DISPOSABLE BED LINEN,Critical care,NHS LOGISTICS,1015070077,5.65,
Department of Health,Salisbury NHS Foundation Trust,22-Aug-14,DISPOSABLE THEATRE DRAPES WIPES,Critical care,NHS LOGISTICS,1015070077,3.24,
Department of Health,Salisbury NHS Foundation Trust,22-Aug-14,MEDSURGCONS - OTHER,Medicine,NHS LOGISTICS,1015070077,10,
Department of Health,Salisbury NHS Foundation Trust,22-Aug-14,MEDSURGCONS - OTHER,Medicine,NHS LOGISTICS,1015070077,76.42,
Department of Health,Salisbury NHS Foundation Trust,22-Aug-14,MEDSURGCONS - OTHER,Medicine,NHS LOGISTICS,1015070077,26.55,
Department of Health,Salisbury NHS Foundation Trust,22-Aug-14,DISPOSABLE THEATRE DRAPES WIPES,Medicine,NHS LOGISTICS,1015070077,3.24,
Department of Health,Salisbury NHS Foundation Trust,22-Aug-14,DRESSINGS - PRE STERILE,Critical care,NHS LOGISTICS,1015070077,6.42,
Department of Health,Salisbury NHS Foundation Trust,22-Aug-14,PATIENTS FOOTWEAR,Critical care,NHS LOGISTICS,1015070077,38.29,
Department of Health,Salisbury NHS Foundation Trust,22-Aug-14,TISSUES HAND TOWELS & TOILET PAPER,Critical care,NHS LOGISTICS,1015070077,5.65,
Department of Health,Salisbury NHS Foundation Trust,22-Aug-14,DISPOSABLE BED LINEN,Critical care,NHS LOGISTICS,1015070077,22.44,
Department of Health,Salisbury NHS Foundation Trust,22-Aug-14,MEDSURGCONS - OTHER,Critical care,NHS LOGISTICS,1015070077,21.48,
Department of Health,Salisbury NHS Foundation Trust,22-Aug-14,DRESSINGS - PRE STERILE,Critical care,NHS LOGISTICS,1015070077,47.58,
Department of Health,Salisbury NHS Foundation Trust,22-Aug-14,DRESSINGS - PRE STERILE,Critical care,NHS LOGISTICS,1015070077,31.06,
Department of Health,Salisbury NHS Foundation Trust,22-Aug-14,DRESSINGS - PRE STERILE,Critical care,NHS LOGISTICS,1015070077,47.58,
Department of Health,Salisbury NHS Foundation Trust,22-Aug-14,DRESSINGS - PRE STERILE,Critical care,NHS LOGISTICS,1015070077,21.76,
Department of Health,Salisbury NHS Foundation Trust,22-Aug-14,DRESSINGS - PRE STERILE,Critical care,NHS LOGISTICS,1015070077,23.16,
Department of Health,Salisbury NHS Foundation Trust,22-Aug-14,DRESSINGS - PRE STERILE,Critical care,NHS LOGISTICS,1015070077,24.52,
Department of Health,Salisbury NHS Foundation Trust,22-Aug-14,NON DISPOSABLE BED LINEN,Critical care,NHS LOGISTICS,1015070077,2.83,
Department of Health,Salisbury NHS Foundation Trust,22-Aug-14,DISPOSABLE THEATRE DRAPES WIPES,Critical care,NHS LOGISTICS,1015070077,3.24,
Department of Health,Salisbury NHS Foundation Trust,22-Aug-14,OTHER MEDICAL SUPPLIES,Medicine,NHS LOGISTICS,1015070077,35.33,
Department of Health,Salisbury NHS Foundation Trust,22-Aug-14,MEDSURGCONS - OTHER,Medicine,NHS LOGISTICS,1015070077,12.5,
Department of Health,Salisbury NHS Foundation Trust,22-Aug-14,MEDSURGCONS - OTHER,Medicine,NHS LOGISTICS,1015070077,9.38,
Department of Health,Salisbury NHS Foundation Trust,22-Aug-14,PATIENTS INCONTINENCE,Medicine,NHS LOGISTICS,1015070077,4.29,
Department of Health,Salisbury NHS Foundation Trust,22-Aug-14,PATIENTS INCONTINENCE,Medicine,NHS LOGISTICS,1015070077,20.2,
Department of Health,Salisbury NHS Foundation Trust,22-Aug-14,PATIENT APPLIANCES,Medicine,NHS LOGISTICS,1015070077,3.35,
Department of Health,Salisbury NHS Foundation Trust,22-Aug-14,TOILETRIES PERSONAL HYGIENE PRODUCTS,Medicine,NHS LOGISTICS,1015070077,9.54,
Department of Health,Salisbury NHS Foundation Trust,22-Aug-14,MEDSURGCONS - OTHER,Medicine,NHS LOGISTICS,1015070077,14.88,
Department of Health,Salisbury NHS Foundation Trust,22-Aug-14,TISSUES HAND TOWELS & TOILET PAPER,Medicine,NHS LOGISTICS,1015070077,0.73,
Department of Health,Salisbury NHS Foundation Trust,22-Aug-14,NON DISPOSABLE BED LINEN,Medicine,NHS LOGISTICS,1015070077,5.65,
Department of Health,Salisbury NHS Foundation Trust,22-Aug-14,PATIENT APPLIANCES,Medicine,NHS LOGISTICS,1015070077,3.24,
Department of Health,Salisbury NHS Foundation Trust,22-Aug-14,OTHER MEDICAL SUPPLIES,Medicine,NHS LOGISTICS,1015070077,39.17,
Department of Health,Salisbury NHS Foundation Trust,22-Aug-14,PATIENTS INCONTINENCE,Medicine,NHS LOGISTICS,1015070077,9.08,
Department of Health,Salisbury NHS Foundation Trust,22-Aug-14,DRESSINGS - PRE STERILE,Medicine,NHS LOGISTICS,1015070077,7.64,
Department of Health,Salisbury NHS Foundation Trust,22-Aug-14,DRESSINGS - PRE STERILE,Medicine,NHS LOGISTICS,1015070077,4.52,
Department of Health,Salisbury NHS Foundation Trust,22-Aug-14,DRESSINGS - PRE STERILE,Medicine,NHS LOGISTICS,1015070077,2.8,
Department of Health,Salisbury NHS Foundation Trust,22-Aug-14,MEDSURGCONS - OTHER,Medicine,NHS LOGISTICS,1015070077,30.42,
Department of Health,Salisbury NHS Foundation Trust,22-Aug-14,MEDSURGCONS - OTHER,Medicine,NHS LOGISTICS,1015070077,60.83,
Department of Health,Salisbury NHS Foundation Trust,22-Aug-14,MEDSURGCONS - OTHER,Medicine,NHS LOGISTICS,1015070077,30.42,
Department of Health,Salisbury NHS Foundation Trust,22-Aug-14,PATIENT APPLIANCES,Medicine,NHS LOGISTICS,1015070077,5.47,
Department of Health,Salisbury NHS Foundation Trust,22-Aug-14,PATIENT APPLIANCES,Medicine,NHS LOGISTICS,1015070077,8.23,
Department of Health,Salisbury NHS Foundation Trust,22-Aug-14,PATIENT APPLIANCES,Medicine,NHS LOGISTICS,1015070077,12.35,
Department of Health,Salisbury NHS Foundation Trust,22-Aug-14,PATIENT APPLIANCES,Medicine,NHS LOGISTICS,1015070077,12.35,
Department of Health,Salisbury NHS Foundation Trust,22-Aug-14,PATIENT APPLIANCES,Medicine,NHS LOGISTICS,1015070077,4.12,
Department of Health,Salisbury NHS Foundation Trust,22-Aug-14,PATIENT APPLIANCES,Medicine,NHS LOGISTICS,1015070077,8.23,
Department of Health,Salisbury NHS Foundation Trust,22-Aug-14,PATIENT APPLIANCES,Medicine,NHS LOGISTICS,1015070077,8.23,
Department of Health,Salisbury NHS Foundation Trust,22-Aug-14,DRESSINGS - PRE STERILE,Medicine,NHS LOGISTICS,1015070077,5.26,
Department of Health,Salisbury NHS Foundation Trust,22-Aug-14,PATIENTS INCONTINENCE,Medicine,NHS LOGISTICS,1015070077,5.77,
Department of Health,Salisbury NHS Foundation Trust,22-Aug-14,MEDSURGCONS-SUTURES,Medicine,NHS LOGISTICS,1015070077,43.95,
Department of Health,Salisbury NHS Foundation Trust,22-Aug-14,MEDSURGCONS - OTHER,Medicine,NHS LOGISTICS,1015070077,59.78,
Department of Health,Salisbury NHS Foundation Trust,22-Aug-14,MEDSURGCONS - OTHER,Medicine,NHS LOGISTICS,1015070077,15.63,
Department of Health,Salisbury NHS Foundation Trust,22-Aug-14,MEDSURGCONS - OTHER,Medicine,NHS LOGISTICS,1015070077,7.44,
Department of Health,Salisbury NHS Foundation Trust,22-Aug-14,TISSUES HAND TOWELS & TOILET PAPER,Medicine,NHS LOGISTICS,1015070077,0.37,
Department of Health,Salisbury NHS Foundation Trust,22-Aug-14,LAB EQUIP-LABORATORY APPARATUS,Medicine,NHS LOGISTICS,1015070077,5.93,
Department of Health,Salisbury NHS Foundation Trust,22-Aug-14,SURGICAL INSTRUMENTS: GENERAL,Medicine,NHS LOGISTICS,1015070077,4.69,
Department of Health,Salisbury NHS Foundation Trust,22-Aug-14,NON DISPOSABLE BED LINEN,Medicine,NHS LOGISTICS,1015070077,11.3,
Department of Health,Salisbury NHS Foundation Trust,22-Aug-14,DISPOSABLE THEATRE DRAPES WIPES,Medicine,NHS LOGISTICS,1015070077,3.24,
Department of Health,Salisbury NHS Foundation Trust,22-Aug-14,DISPOSABLE THEATRE DRAPES WIPES,Medicine,NHS LOGISTICS,1015070077,6.33,
Department of Health,Salisbury NHS Foundation Trust,22-Aug-14,OTHER MEDICAL SUPPLIES,Surgery,NHS LOGISTICS,1015070077,39.17,
Department of Health,Salisbury NHS Foundation Trust,22-Aug-14,DRESSINGS - PRE STERILE,Surgery,NHS LOGISTICS,1015070077,7.64,
Department of Health,Salisbury NHS Foundation Trust,22-Aug-14,MEDSURGCONS - OTHER,Surgery,NHS LOGISTICS,1015070077,30.42,
Department of Health,Salisbury NHS Foundation Trust,22-Aug-14,MEDSURGCONS - OTHER,Surgery,NHS LOGISTICS,1015070077,6.25,
Department of Health,Salisbury NHS Foundation Trust,22-Aug-14,OTHER MEDICAL SUPPLIES,Surgery,NHS LOGISTICS,1015070077,5.68,
Department of Health,Salisbury NHS Foundation Trust,22-Aug-14,PATIENTS INCONTINENCE,Surgery,NHS LOGISTICS,1015070077,18.17,
Department of Health,Salisbury NHS Foundation Trust,22-Aug-14,MEDSURGCONS - OTHER,Surgery,NHS LOGISTICS,1015070077,14.88,
Department of Health,Salisbury NHS Foundation Trust,22-Aug-14,TISSUES HAND TOWELS & TOILET PAPER,Surgery,NHS LOGISTICS,1015070077,0.37,
Department of Health,Salisbury NHS Foundation Trust,22-Aug-14,NON DISPOSABLE BED LINEN,Surgery,NHS LOGISTICS,1015070077,11.3,
Department of Health,Salisbury NHS Foundation Trust,22-Aug-14,PATIENT APPLIANCES,Surgery,NHS LOGISTICS,1015070077,8.17,
Department of Health,Salisbury NHS Foundation Trust,22-Aug-14,ANAESTHETIC EQUIPMENT ACCESSORIES,Clinical Support and Family Services,NHS LOGISTICS,1015070077,133.17,
Department of Health,Salisbury NHS Foundation Trust,22-Aug-14,OTHER MEDICAL SUPPLIES,Clinical Support and Family Services,NHS LOGISTICS,1015070077,81.68,
Department of Health,Salisbury NHS Foundation Trust,22-Aug-14,OTHER MEDICAL SUPPLIES,Clinical Support and Family Services,NHS LOGISTICS,1015070077,81.68,
Department of Health,Salisbury NHS Foundation Trust,22-Aug-14,BABY TEXTURE MODIFIED FOODS,Clinical Support and Family Services,NHS LOGISTICS,1015070077,27.06,
Department of Health,Salisbury NHS Foundation Trust,22-Aug-14,BABY TEXTURE MODIFIED FOODS,Clinical Support and Family Services,NHS LOGISTICS,1015070077,14.77,
Department of Health,Salisbury NHS Foundation Trust,22-Aug-14,OTHER MEDICAL SUPPLIES,Surgery,NHS LOGISTICS,1015070077,26.5,
Department of Health,Salisbury NHS Foundation Trust,22-Aug-14,MEDSURGCONS - OTHER,Surgery,NHS LOGISTICS,1015070077,3.13,
Department of Health,Salisbury NHS Foundation Trust,22-Aug-14,MEDSURGCONS - OTHER,Medicine,NHS LOGISTICS,1015070077,9.38,
Department of Health,Salisbury NHS Foundation Trust,22-Aug-14,MEDSURGCONS - OTHER,Medicine,NHS LOGISTICS,1015070077,2,
Department of Health,Salisbury NHS Foundation Trust,22-Aug-14,MEDSURGCONS - OTHER,Medicine,NHS LOGISTICS,1015070077,5.21,
Department of Health,Salisbury NHS Foundation Trust,22-Aug-14,NON DISPOSABLE BED LINEN,Medicine,NHS LOGISTICS,1015070077,2.83,
Department of Health,Salisbury NHS Foundation Trust,22-Aug-14,MEDSURGCONS - OTHER,Clinical Support and Family Services,NHS LOGISTICS,1015070077,30.42,
Department of Health,Salisbury NHS Foundation Trust,22-Aug-14,TISSUES HAND TOWELS & TOILET PAPER,Clinical Support and Family Services,NHS LOGISTICS,1015070077,41.6,
Department of Health,Salisbury NHS Foundation Trust,22-Aug-14,NON DISPOSABLE BED LINEN,Clinical Support and Family Services,NHS LOGISTICS,1015070077,9.75,
Department of Health,Salisbury NHS Foundation Trust,22-Aug-14,NON DISPOSABLE BED LINEN,Clinical Support and Family Services,NHS LOGISTICS,1015070077,11.3,
Department of Health,Salisbury NHS Foundation Trust,22-Aug-14,ELECTRICAL EQUIPMENT x,Medicine,NHS LOGISTICS,1015070077,5,
Department of Health,Salisbury NHS Foundation Trust,22-Aug-14,STATIONERY SUNDRIES,Medicine,NHS LOGISTICS,1015070077,0.48,
Department of Health,Salisbury NHS Foundation Trust,22-Aug-14,MEDSURGCONS - OTHER,Medicine,NHS LOGISTICS,1015070077,6.25,
Department of Health,Salisbury NHS Foundation Trust,22-Aug-14,MEDSURGCONS - OTHER,Medicine,NHS LOGISTICS,1015070077,9.38,
Department of Health,Salisbury NHS Foundation Trust,22-Aug-14,PATIENTS INCONTINENCE,Medicine,NHS LOGISTICS,1015070077,4.29,
Department of Health,Salisbury NHS Foundation Trust,22-Aug-14,DISPOSABLE TABLE LINEN,Medicine,NHS LOGISTICS,1015070077,0.73,
Department of Health,Salisbury NHS Foundation Trust,22-Aug-14,PATIENT APPLIANCES,Medicine,NHS LOGISTICS,1015070077,4.15,
Department of Health,Salisbury NHS Foundation Trust,22-Aug-14,PATIENT APPLIANCES,Medicine,NHS LOGISTICS,1015070077,4.15,
Department of Health,Salisbury NHS Foundation Trust,22-Aug-14,MEDSURGCONS - OTHER,Medicine,NHS LOGISTICS,1015070077,7.44,
Department of Health,Salisbury NHS Foundation Trust,22-Aug-14,TISSUES HAND TOWELS & TOILET PAPER,Medicine,NHS LOGISTICS,1015070077,0.73,
Department of Health,Salisbury NHS Foundation Trust,22-Aug-14,NON DISPOSABLE BED LINEN,Medicine,NHS LOGISTICS,1015070077,11.3,
Department of Health,Salisbury NHS Foundation Trust,22-Aug-14,PATIENT APPLIANCES,Medicine,NHS LOGISTICS,1015070077,5.49,
Department of Health,Salisbury NHS Foundation Trust,22-Aug-14,PATIENT APPLIANCES,Medicine,NHS LOGISTICS,1015070077,1.83,
Department of Health,Salisbury NHS Foundation Trust,22-Aug-14,BAGS SACKS - OTHER,Surgery,NHS LOGISTICS,1015070077,29.3,
Department of Health,Salisbury NHS Foundation Trust,22-Aug-14,STATIONERY SUNDRIES,Medicine,NHS LOGISTICS,1015070077,2.53,
Department of Health,Salisbury NHS Foundation Trust,22-Aug-14,ANAESTHETIC EQUIPMENT ACCESSORIES,Surgery,NHS LOGISTICS,1015070077,775.83,
Department of Health,Salisbury NHS Foundation Trust,22-Aug-14,ELECTRICAL EQUIPMENT x,Critical care,NHS LOGISTICS,1015070077,3.33,
Department of Health,Salisbury NHS Foundation Trust,22-Aug-14,ELECTRICAL EQUIPMENT x,Critical care,NHS LOGISTICS,1015070077,2.67,
Department of Health,Salisbury NHS Foundation Trust,22-Aug-14,STATIONERY SUNDRIES,Critical care,NHS LOGISTICS,1015070077,6.8,
Department of Health,Salisbury NHS Foundation Trust,22-Aug-14,STATIONERY SUNDRIES,Critical care,NHS LOGISTICS,1015070077,5.33,
Department of Health,Salisbury NHS Foundation Trust,22-Aug-14,PAPER ITEMS GENERAL STATIONERY SUNDRIES,Critical care,NHS LOGISTICS,1015070077,2.8,
Department of Health,Salisbury NHS Foundation Trust,22-Aug-14,PAPER ITEMS GENERAL STATIONERY SUNDRIES,Critical care,NHS LOGISTICS,1015070077,6.25,
Department of Health,Salisbury NHS Foundation Trust,22-Aug-14,PAPER ITEMS GENERAL STATIONERY SUNDRIES,Critical care,NHS LOGISTICS,1015070077,7.93,
Department of Health,Salisbury NHS Foundation Trust,22-Aug-14,STATIONERY SUNDRIES,Critical care,NHS LOGISTICS,1015070077,9.1,
Department of Health,Salisbury NHS Foundation Trust,22-Aug-14,STATIONERY SUNDRIES,Critical care,NHS LOGISTICS,1015070077,6.67,
Department of Health,Salisbury NHS Foundation Trust,22-Aug-14,STATIONERY SUNDRIES,Critical care,NHS LOGISTICS,1015070077,0.44,
Department of Health,Salisbury NHS Foundation Trust,22-Aug-14,STATIONERY SUNDRIES,Critical care,NHS LOGISTICS,1015070077,1.63,
Department of Health,Salisbury NHS Foundation Trust,22-Aug-14,STATIONERY SUNDRIES,Critical care,NHS LOGISTICS,1015070077,2,
Department of Health,Salisbury NHS Foundation Trust,22-Aug-14,STATIONERY SUNDRIES,Critical care,NHS LOGISTICS,1015070077,3.5,
Department of Health,Salisbury NHS Foundation Trust,22-Aug-14,PAPER ITEMS GENERAL STATIONERY SUNDRIES,Critical care,NHS LOGISTICS,1015070077,4.35,
Department of Health,Salisbury NHS Foundation Trust,22-Aug-14,PAPER ITEMS GENERAL STATIONERY SUNDRIES,Critical care,NHS LOGISTICS,1015070077,3.42,
Department of Health,Salisbury NHS Foundation Trust,22-Aug-14,PAPER ITEMS GENERAL STATIONERY SUNDRIES,Critical care,NHS LOGISTICS,1015070077,6.13,
Department of Health,Salisbury NHS Foundation Trust,22-Aug-14,PAPER ITEMS GENERAL STATIONERY SUNDRIES,Critical care,NHS LOGISTICS,1015070077,2.05,
Department of Health,Salisbury NHS Foundation Trust,22-Aug-14,STATIONERY SUNDRIES,Critical care,NHS LOGISTICS,1015070077,2,
Department of Health,Salisbury NHS Foundation Trust,22-Aug-14,STATIONERY SUNDRIES,Critical care,NHS LOGISTICS,1015070077,4.65,
Department of Health,Salisbury NHS Foundation Trust,22-Aug-14,STATIONERY SUNDRIES,Critical care,NHS LOGISTICS,1015070077,6.07,
Department of Health,Salisbury NHS Foundation Trust,22-Aug-14,STATIONERY SUNDRIES,Critical care,NHS LOGISTICS,1015070077,1.34,
Department of Health,Salisbury NHS Foundation Trust,22-Aug-14,STATIONERY SUNDRIES,Critical care,NHS LOGISTICS,1015070077,9.8,
Department of Health,Salisbury NHS Foundation Trust,22-Aug-14,STATIONERY SUNDRIES,Critical care,NHS LOGISTICS,1015070077,4.13,
Department of Health,Salisbury NHS Foundation Trust,22-Aug-14,MEDSURGCONS - OTHER,Medicine,NHS LOGISTICS,1015070077,18.75,
Department of Health,Salisbury NHS Foundation Trust,22-Aug-14,PATIENTS INCONTINENCE,Medicine,NHS LOGISTICS,1015070077,1.85,
Department of Health,Salisbury NHS Foundation Trust,22-Aug-14,PATIENTS INCONTINENCE,Medicine,NHS LOGISTICS,1015070077,70.7,
Department of Health,Salisbury NHS Foundation Trust,22-Aug-14,MEDSURGCONS - OTHER,Medicine,NHS LOGISTICS,1015070077,7.44,
Department of Health,Salisbury NHS Foundation Trust,22-Aug-14,TISSUES HAND TOWELS & TOILET PAPER,Medicine,NHS LOGISTICS,1015070077,0.73,
Department of Health,Salisbury NHS Foundation Trust,22-Aug-14,NON DISPOSABLE BED LINEN,Medicine,NHS LOGISTICS,1015070077,39.55,
Department of Health,Salisbury NHS Foundation Trust,22-Aug-14,PATIENT APPLIANCES,Medicine,NHS LOGISTICS,1015070077,8.17,
Department of Health,Salisbury NHS Foundation Trust,22-Aug-14,PATIENT APPLIANCES,Medicine,NHS LOGISTICS,1015070077,5.49,
Department of Health,Salisbury NHS Foundation Trust,22-Aug-14,OTHER MEDICAL SUPPLIES,Medicine,NHS LOGISTICS,1015070077,4.42,
Department of Health,Salisbury NHS Foundation Trust,22-Aug-14,MEDSURGCONS - OTHER,Medicine,NHS LOGISTICS,1015070077,12.5,
Department of Health,Salisbury NHS Foundation Trust,22-Aug-14,MEDSURGCONS - OTHER,Medicine,NHS LOGISTICS,1015070077,30.42,
Department of Health,Salisbury NHS Foundation Trust,22-Aug-14,TISSUES HAND TOWELS & TOILET PAPER,Medicine,NHS LOGISTICS,1015070077,0.93,
Department of Health,Salisbury NHS Foundation Trust,22-Aug-14,MEDSURGCONS - OTHER,Medicine,NHS LOGISTICS,1015070077,4.53,
Department of Health,Salisbury NHS Foundation Trust,22-Aug-14,M & S EQUIPELECTEQUIPINST - OTHER,Medicine,NHS LOGISTICS,1015070077,0.63,
Department of Health,Salisbury NHS Foundation Trust,22-Aug-14,OTHER MEDICAL SUPPLIES,Medicine,NHS LOGISTICS,1015070077,2.98,
Department of Health,Salisbury NHS Foundation Trust,22-Aug-14,MEDSURGCONS - OTHER,Medicine,NHS LOGISTICS,1015070077,10.42,
Department of Health,Salisbury NHS Foundation Trust,22-Aug-14,MEDSURGCONS - OTHER,Medicine,NHS LOGISTICS,1015070077,7.44,
Department of Health,Salisbury NHS Foundation Trust,22-Aug-14,NON DISPOSABLE BED LINEN,Medicine,NHS LOGISTICS,1015070077,5.65,
Department of Health,Salisbury NHS Foundation Trust,22-Aug-14,DISPOSABLE THEATRE DRAPES WIPES,Medicine,NHS LOGISTICS,1015070077,6.48,
Department of Health,Salisbury NHS Foundation Trust,22-Aug-14,M & S EQUIPELECTEQUIPINST - OTHER,Clinical Support and Family Services,NHS LOGISTICS,1015070077,196.88,
Department of Health,Salisbury NHS Foundation Trust,22-Aug-14,M & S EQUIPELECTEQUIPINST - OTHER,Clinical Support and Family Services,NHS LOGISTICS,1015070077,105.23,
Department of Health,Salisbury NHS Foundation Trust,22-Aug-14,MED SURG EQUIP REP MAINT CLEANING,Critical care,NHS LOGISTICS,1015070077,60.53,
Department of Health,Salisbury NHS Foundation Trust,22-Aug-14,OTHER MEDICAL SUPPLIES,Clinical Support and Family Services,NHS LOGISTICS,1015070077,4.42,
Department of Health,Salisbury NHS Foundation Trust,22-Aug-14,PATIENTS BEDWEAR UNISEX,Clinical Support and Family Services,NHS LOGISTICS,1015070077,4.14,
Department of Health,Salisbury NHS Foundation Trust,22-Aug-14,M & S EQUIPELECTEQUIPINST - OTHER,Clinical Support and Family Services,NHS LOGISTICS,1015070077,19.42,
Department of Health,Salisbury NHS Foundation Trust,22-Aug-14,MEDSURGCONS-SUTURES,Clinical Support and Family Services,NHS LOGISTICS,1015070077,37.55,
Department of Health,Salisbury NHS Foundation Trust,22-Aug-14,MEDSURGCONS - OTHER,Clinical Support and Family Services,NHS LOGISTICS,1015070077,22.32,
Department of Health,Salisbury NHS Foundation Trust,22-Aug-14,NON DISPOSABLE BED LINEN,Clinical Support and Family Services,NHS LOGISTICS,1015070077,33.9,
Department of Health,Salisbury NHS Foundation Trust,22-Aug-14,SERVICES FROM NHS BODIES,Clinical Support and Family Services,NHS LOGISTICS,1015070077,156.9,
Department of Health,Salisbury NHS Foundation Trust,22-Aug-14,TISSUES HAND TOWELS & TOILET PAPER,Surgery,NHS LOGISTICS,1015070077,2.12,
Department of Health,Salisbury NHS Foundation Trust,22-Aug-14,TISSUES HAND TOWELS & TOILET PAPER,Surgery,NHS LOGISTICS,1015070077,5.65,
Department of Health,Salisbury NHS Foundation Trust,22-Aug-14,TISSUES HAND TOWELS & TOILET PAPER,Surgery,NHS LOGISTICS,1015070077,1.87,
Department of Health,Salisbury NHS Foundation Trust,22-Aug-14,TUBES,Surgery,NHS LOGISTICS,1015070077,6.19,
Department of Health,Salisbury NHS Foundation Trust,22-Aug-14,MEDSURGCONS-SUTURES,Surgery,NHS LOGISTICS,1015070077,36.3,
Department of Health,Salisbury NHS Foundation Trust,22-Aug-14,MEDSURGCONS-SUTURES,Surgery,NHS LOGISTICS,1015070077,18.18,
Department of Health,Salisbury NHS Foundation Trust,22-Aug-14,MEDSURGCONS-SUTURES,Surgery,NHS LOGISTICS,1015070077,17.72,
Department of Health,Salisbury NHS Foundation Trust,22-Aug-14,MEDSURGCONS-SUTURES,Surgery,NHS LOGISTICS,1015070077,52.55,
Department of Health,Salisbury NHS Foundation Trust,22-Aug-14,DRUGS,Surgery,NHS LOGISTICS,1015070077,11.38,
Department of Health,Salisbury NHS Foundation Trust,22-Aug-14,MEDSURGCONS-LAPAROSCOPIC EQUIPMENT,Surgery,NHS LOGISTICS,1015070077,134.72,
Department of Health,Salisbury NHS Foundation Trust,22-Aug-14,DRESSINGS - PRE STERILE,Surgery,NHS LOGISTICS,1015070077,1.73,
Department of Health,Salisbury NHS Foundation Trust,22-Aug-14,CLEANING MATERIALS PRODUCTS SUNDRIES,Surgery,NHS LOGISTICS,1015070077,6.9,
Department of Health,Salisbury NHS Foundation Trust,22-Aug-14,TISSUES HAND TOWELS & TOILET PAPER,Surgery,NHS LOGISTICS,1015070077,3.77,
Department of Health,Salisbury NHS Foundation Trust,22-Aug-14,COOKING & KITCHEN UTENSILS,Surgery,NHS LOGISTICS,1015070077,17.01,
Department of Health,Salisbury NHS Foundation Trust,22-Aug-14,DRESSINGS - PRE STERILE,Surgery,NHS LOGISTICS,1015070077,228.2,
Department of Health,Salisbury NHS Foundation Trust,22-Aug-14,DRUGS,Surgery,NHS LOGISTICS,1015070077,33.35,
Department of Health,Salisbury NHS Foundation Trust,22-Aug-14,M & S EQUIPELECTEQUIPINST - OTHER,Surgery,NHS LOGISTICS,1015070077,38.5,
Department of Health,Salisbury NHS Foundation Trust,22-Aug-14,MEDSURGCONS - OTHER,Surgery,NHS LOGISTICS,1015070077,21.52,
Department of Health,Salisbury NHS Foundation Trust,22-Aug-14,MEDSURGCONS - OTHER,Surgery,NHS LOGISTICS,1015070077,10.76,
Department of Health,Salisbury NHS Foundation Trust,22-Aug-14,OTHER MEDICAL SUPPLIES,Surgery,NHS LOGISTICS,1015070077,253.55,
Department of Health,Salisbury NHS Foundation Trust,22-Aug-14,BEVERAGES & AMBIENT FOOD,Surgery,NHS LOGISTICS,1015070077,29.46,
Department of Health,Salisbury NHS Foundation Trust,22-Aug-14,MEDSURGCONS - OTHER,Surgery,NHS LOGISTICS,1015070077,41.98,
Department of Health,Salisbury NHS Foundation Trust,22-Aug-14,BEVERAGES & AMBIENT FOOD,Surgery,NHS LOGISTICS,1015070077,4.35,
Department of Health,Salisbury NHS Foundation Trust,22-Aug-14,DRUGS,Surgery,NHS LOGISTICS,1015070077,23.3,
Department of Health,Salisbury NHS Foundation Trust,22-Aug-14,MEDSURGCONS-SUTURES,Surgery,NHS LOGISTICS,1015070077,146.93,
Department of Health,Salisbury NHS Foundation Trust,22-Aug-14,DRESSINGS - PRE STERILE,Surgery,NHS LOGISTICS,1015070077,16.4,
Department of Health,Salisbury NHS Foundation Trust,22-Aug-14,BEVERAGES & AMBIENT FOOD,Surgery,NHS LOGISTICS,1015070077,6.08,
Department of Health,Salisbury NHS Foundation Trust,22-Aug-14,PATIENT APPLIANCES,Surgery,NHS LOGISTICS,1015070077,16.48,
Department of Health,Salisbury NHS Foundation Trust,22-Aug-14,CLEANING MATERIALS PRODUCTS SUNDRIES,Surgery,NHS LOGISTICS,1015070077,3.55,
Department of Health,Salisbury NHS Foundation Trust,22-Aug-14,DISPOSABLE THEATRE DRAPES WIPES,Surgery,NHS LOGISTICS,1015070077,3.24,
Department of Health,Salisbury NHS Foundation Trust,22-Aug-14,SURGICAL INSTRUMENTS: DISPOSABLE,Surgery,NHS LOGISTICS,1015070077,628.28,
Department of Health,Salisbury NHS Foundation Trust,22-Aug-14,DRESSINGS - PRE STERILE,Critical care,NHS LOGISTICS,1015070077,7.64,
Department of Health,Salisbury NHS Foundation Trust,22-Aug-14,MEDSURGCONS - OTHER,Critical care,NHS LOGISTICS,1015070077,42.97,
Department of Health,Salisbury NHS Foundation Trust,22-Aug-14,PATIENTS INCONTINENCE,Critical care,NHS LOGISTICS,1015070077,18.17,
Department of Health,Salisbury NHS Foundation Trust,22-Aug-14,PATIENT APPLIANCES,Critical care,NHS LOGISTICS,1015070077,4.15,
Department of Health,Salisbury NHS Foundation Trust,22-Aug-14,TOILETRIES PERSONAL HYGIENE PRODUCTS,Critical care,NHS LOGISTICS,1015070077,6.82,
Department of Health,Salisbury NHS Foundation Trust,22-Aug-14,MEDSURGCONS - OTHER,Critical care,NHS LOGISTICS,1015070077,6.87,
Department of Health,Salisbury NHS Foundation Trust,22-Aug-14,MEDSURGCONS - OTHER,Critical care,NHS LOGISTICS,1015070077,15.63,
Department of Health,Salisbury NHS Foundation Trust,22-Aug-14,MEDSURGCONS - OTHER,Critical care,NHS LOGISTICS,1015070077,28.2,
Department of Health,Salisbury NHS Foundation Trust,22-Aug-14,TOILETRIES PERSONAL HYGIENE PRODUCTS,Critical care,NHS LOGISTICS,1015070077,3.22,
Department of Health,Salisbury NHS Foundation Trust,22-Aug-14,NON DISPOSABLE BED LINEN,Critical care,NHS LOGISTICS,1015070077,22.6,
Department of Health,Salisbury NHS Foundation Trust,22-Aug-14,PATIENT APPLIANCES,Critical care,NHS LOGISTICS,1015070077,5.49,
Department of Health,Salisbury NHS Foundation Trust,22-Aug-14,DISPOSABLE THEATRE DRAPES WIPES,Critical care,NHS LOGISTICS,1015070077,3.24,
Department of Health,Salisbury NHS Foundation Trust,22-Aug-14,MEDSURGCONS - OTHER,Clinical Support and Family Services,NHS LOGISTICS,1015070077,46.68,
Department of Health,Salisbury NHS Foundation Trust,22-Aug-14,MEDSURGCONS - OTHER,Clinical Support and Family Services,NHS LOGISTICS,1015070077,14.88,
Department of Health,Salisbury NHS Foundation Trust,22-Aug-14,NON DISPOSABLE BED LINEN,Clinical Support and Family Services,NHS LOGISTICS,1015070077,2.83,
Department of Health,Salisbury NHS Foundation Trust,22-Aug-14,DISPOSABLE THEATRE DRAPES WIPES,Clinical Support and Family Services,NHS LOGISTICS,1015070077,3.24,
Department of Health,Salisbury NHS Foundation Trust,22-Aug-14,MEDSURGCONS - OTHER,Medicine,NHS LOGISTICS,1015070077,30.42,
Department of Health,Salisbury NHS Foundation Trust,22-Aug-14,MEDSURGCONS - OTHER,Medicine,NHS LOGISTICS,1015070077,11.5,
Department of Health,Salisbury NHS Foundation Trust,22-Aug-14,OTHER MEDICAL SUPPLIES,Medicine,NHS LOGISTICS,1015070077,8.83,
Department of Health,Salisbury NHS Foundation Trust,22-Aug-14,MEDSURGCONS - OTHER,Medicine,NHS LOGISTICS,1015070077,3.13,
Department of Health,Salisbury NHS Foundation Trust,22-Aug-14,NON DISPOSABLE BED LINEN,Medicine,NHS LOGISTICS,1015070077,2.83,
Department of Health,Salisbury NHS Foundation Trust,22-Aug-14,CLEANING MATERIALS PRODUCTS SUNDRIES,Medicine,NHS LOGISTICS,1015070077,23.93,
Department of Health,Salisbury NHS Foundation Trust,22-Aug-14,OTHER MEDICAL SUPPLIES,Medicine,NHS LOGISTICS,1015070077,22.08,
Department of Health,Salisbury NHS Foundation Trust,22-Aug-14,MEDSURGCONS - OTHER,Medicine,NHS LOGISTICS,1015070077,6.25,
Department of Health,Salisbury NHS Foundation Trust,22-Aug-14,MEDSURGCONS - OTHER,Medicine,NHS LOGISTICS,1015070077,6.25,
Department of Health,Salisbury NHS Foundation Trust,22-Aug-14,PATIENTS INCONTINENCE,Medicine,NHS LOGISTICS,1015070077,4.29,
Department of Health,Salisbury NHS Foundation Trust,22-Aug-14,TUBES,Medicine,NHS LOGISTICS,1015070077,6.19,
Department of Health,Salisbury NHS Foundation Trust,22-Aug-14,PATIENTS INCONTINENCE,Medicine,NHS LOGISTICS,1015070077,1.85,
Department of Health,Salisbury NHS Foundation Trust,22-Aug-14,PATIENTS INCONTINENCE,Medicine,NHS LOGISTICS,1015070077,40.4,
Department of Health,Salisbury NHS Foundation Trust,22-Aug-14,PATIENT APPLIANCES,Medicine,NHS LOGISTICS,1015070077,3.35,
Department of Health,Salisbury NHS Foundation Trust,22-Aug-14,PATIENT APPLIANCES,Medicine,NHS LOGISTICS,1015070077,4.15,
Department of Health,Salisbury NHS Foundation Trust,22-Aug-14,PATIENT APPLIANCES,Medicine,NHS LOGISTICS,1015070077,4.15,
Department of Health,Salisbury NHS Foundation Trust,22-Aug-14,MEDSURGCONS - OTHER,Medicine,NHS LOGISTICS,1015070077,7.44,
Department of Health,Salisbury NHS Foundation Trust,22-Aug-14,NON DISPOSABLE BED LINEN,Medicine,NHS LOGISTICS,1015070077,33.9,
Department of Health,Salisbury NHS Foundation Trust,22-Aug-14,PATIENT APPLIANCES,Medicine,NHS LOGISTICS,1015070077,5.49,
Department of Health,Salisbury NHS Foundation Trust,22-Aug-14,PATIENT APPLIANCES,Medicine,NHS LOGISTICS,1015070077,1.83,
Department of Health,Salisbury NHS Foundation Trust,22-Aug-14,MEDSURGCONS - OTHER,Facilities Directorate,NHS LOGISTICS,1015070077,638.3,
Department of Health,Salisbury NHS Foundation Trust,22-Aug-14,DRESSINGS - PRE STERILE,Facilities Directorate,NHS LOGISTICS,1015070077,29.75,
Department of Health,Salisbury NHS Foundation Trust,22-Aug-14,MEDSURGCONS - OTHER,Facilities Directorate,NHS LOGISTICS,1015070077,13.39,
Department of Health,Salisbury NHS Foundation Trust,22-Aug-14,DRESSINGS - PRE STERILE,Facilities Directorate,NHS LOGISTICS,1015070077,61.58,
Department of Health,Salisbury NHS Foundation Trust,22-Aug-14,OTHER MEDICAL SUPPLIES,Surgery,NHS LOGISTICS,1015070077,39.17,
Department of Health,Salisbury NHS Foundation Trust,22-Aug-14,MEDSURGCONS - OTHER,Surgery,NHS LOGISTICS,1015070077,12.5,
Department of Health,Salisbury NHS Foundation Trust,22-Aug-14,PATIENTS INCONTINENCE,Surgery,NHS LOGISTICS,1015070077,3.63,
Department of Health,Salisbury NHS Foundation Trust,22-Aug-14,PATIENTS INCONTINENCE,Surgery,NHS LOGISTICS,1015070077,4.29,
Department of Health,Salisbury NHS Foundation Trust,22-Aug-14,DRESSINGS - PRE STERILE,Surgery,NHS LOGISTICS,1015070077,0.9,
Department of Health,Salisbury NHS Foundation Trust,22-Aug-14,PATIENTS INCONTINENCE,Surgery,NHS LOGISTICS,1015070077,9.08,
Department of Health,Salisbury NHS Foundation Trust,22-Aug-14,MEDSURGCONS - OTHER,Surgery,NHS LOGISTICS,1015070077,28.2,
Department of Health,Salisbury NHS Foundation Trust,22-Aug-14,TISSUES HAND TOWELS & TOILET PAPER,Surgery,NHS LOGISTICS,1015070077,0.37,
Department of Health,Salisbury NHS Foundation Trust,22-Aug-14,NON DISPOSABLE BED LINEN,Surgery,NHS LOGISTICS,1015070077,5.65,
Department of Health,Salisbury NHS Foundation Trust,22-Aug-14,DISPOSABLE THEATRE DRAPES WIPES,Surgery,NHS LOGISTICS,1015070077,3.24,
Department of Health,Salisbury NHS Foundation Trust,22-Aug-14,BAGS SACKS - OTHER,Clinical Support and Family Services,NHS LOGISTICS,1015070077,5.67,
Department of Health,Salisbury NHS Foundation Trust,22-Aug-14,STATIONERY SUNDRIES,Clinical Support and Family Services,NHS LOGISTICS,1015070077,1.4,
Department of Health,Salisbury NHS Foundation Trust,22-Aug-14,STATIONERY SUNDRIES,Clinical Support and Family Services,NHS LOGISTICS,1015070077,1.3,
Department of Health,Salisbury NHS Foundation Trust,22-Aug-14,STATIONERY SUNDRIES,Clinical Support and Family Services,NHS LOGISTICS,1015070077,7.29,
Department of Health,Salisbury NHS Foundation Trust,22-Aug-14,STATIONERY SUNDRIES,Clinical Support and Family Services,NHS LOGISTICS,1015070077,1.52,
Department of Health,Salisbury NHS Foundation Trust,22-Aug-14,MEDSURGCONS - OTHER,Clinical Support and Family Services,NHS LOGISTICS,1015070077,84.84,
Department of Health,Salisbury NHS Foundation Trust,22-Aug-14,OTHER MEDICAL SUPPLIES,Medicine,NHS LOGISTICS,1015070077,4.42,
Department of Health,Salisbury NHS Foundation Trust,22-Aug-14,DRESSINGS - PRE STERILE,Medicine,NHS LOGISTICS,1015070077,7.64,
Department of Health,Salisbury NHS Foundation Trust,22-Aug-14,MEDSURGCONS - OTHER,Medicine,NHS LOGISTICS,1015070077,3.13,
Department of Health,Salisbury NHS Foundation Trust,22-Aug-14,MEDSURGCONS - OTHER,Medicine,NHS LOGISTICS,1015070077,6.25,
Department of Health,Salisbury NHS Foundation Trust,22-Aug-14,TISSUES HAND TOWELS & TOILET PAPER,Medicine,NHS LOGISTICS,1015070077,1.88,
Department of Health,Salisbury NHS Foundation Trust,22-Aug-14,PATIENTS INCONTINENCE,Medicine,NHS LOGISTICS,1015070077,8.58,
Department of Health,Salisbury NHS Foundation Trust,22-Aug-14,PATIENTS INCONTINENCE,Medicine,NHS LOGISTICS,1015070077,20.2,
Department of Health,Salisbury NHS Foundation Trust,22-Aug-14,PATIENT APPLIANCES,Medicine,NHS LOGISTICS,1015070077,3.35,
Department of Health,Salisbury NHS Foundation Trust,22-Aug-14,PATIENT APPLIANCES,Medicine,NHS LOGISTICS,1015070077,3.35,
Department of Health,Salisbury NHS Foundation Trust,22-Aug-14,MEDSURGCONS - OTHER,Medicine,NHS LOGISTICS,1015070077,7.44,
Department of Health,Salisbury NHS Foundation Trust,22-Aug-14,TISSUES HAND TOWELS & TOILET PAPER,Medicine,NHS LOGISTICS,1015070077,0.73,
Department of Health,Salisbury NHS Foundation Trust,22-Aug-14,NON DISPOSABLE BED LINEN,Medicine,NHS LOGISTICS,1015070077,11.3,
Department of Health,Salisbury NHS Foundation Trust,22-Aug-14,PATIENT APPLIANCES,Medicine,NHS LOGISTICS,1015070077,1.83,
Department of Health,Salisbury NHS Foundation Trust,22-Aug-14,DRESSINGS - PRE STERILE,Surgery,NHS LOGISTICS,1015070077,420.27,
Department of Health,Salisbury NHS Foundation Trust,22-Aug-14,STATIONERY SUNDRIES,Medicine,NHS LOGISTICS,1015070077,7.58,
Department of Health,Salisbury NHS Foundation Trust,22-Aug-14,STATIONERY SUNDRIES,Medicine,NHS LOGISTICS,1015070077,3.5,
Department of Health,Salisbury NHS Foundation Trust,22-Aug-14,PAPER ITEMS GENERAL STATIONERY SUNDRIES,Medicine,NHS LOGISTICS,1015070077,41.7,
Department of Health,Salisbury NHS Foundation Trust,22-Aug-14,TISSUES HAND TOWELS & TOILET PAPER,Facilities Directorate,NHS LOGISTICS,1015070077,62.4,
Department of Health,Salisbury NHS Foundation Trust,22-Aug-14,MEDSURGCONS-SUTURES,Surgery,NHS LOGISTICS,1015070077,178.48,
Department of Health,Salisbury NHS Foundation Trust,22-Aug-14,MEDSURGCONS-SUTURES,Surgery,NHS LOGISTICS,1015070077,67.03,
Department of Health,Salisbury NHS Foundation Trust,22-Aug-14,MEDSURGCONS-SUTURES,Surgery,NHS LOGISTICS,1015070077,107.42,
Department of Health,Salisbury NHS Foundation Trust,22-Aug-14,MEDSURGCONS-SUTURES,Surgery,NHS LOGISTICS,1015070077,141.73,
Department of Health,Salisbury NHS Foundation Trust,22-Aug-14,MEDSURGCONS-SUTURES,Surgery,NHS LOGISTICS,1015070077,35.53,
Department of Health,Salisbury NHS Foundation Trust,22-Aug-14,MEDSURGCONS-SUTURES,Surgery,NHS LOGISTICS,1015070077,23.38,
Department of Health,Salisbury NHS Foundation Trust,22-Aug-14,MEDSURGCONS-SUTURES,Surgery,NHS LOGISTICS,1015070077,22.83,
Department of Health,Salisbury NHS Foundation Trust,22-Aug-14,MEDSURGCONS-SUTURES,Surgery,NHS LOGISTICS,1015070077,22.27,
Department of Health,Salisbury NHS Foundation Trust,22-Aug-14,MEDSURGCONS-SUTURES,Surgery,NHS LOGISTICS,1015070077,22.83,
Department of Health,Salisbury NHS Foundation Trust,22-Aug-14,MEDSURGCONS-SUTURES,Surgery,NHS LOGISTICS,1015070077,22.27,
Department of Health,Salisbury NHS Foundation Trust,22-Aug-14,MEDSURGCONS-SUTURES,Surgery,NHS LOGISTICS,1015070077,53.43,
Department of Health,Salisbury NHS Foundation Trust,22-Aug-14,MEDSURGCONS-SUTURES,Surgery,NHS LOGISTICS,1015070077,28.46,
Department of Health,Salisbury NHS Foundation Trust,22-Aug-14,MEDSURGCONS-SUTURES,Surgery,NHS LOGISTICS,1015070077,61.52,
Department of Health,Salisbury NHS Foundation Trust,22-Aug-14,MEDSURGCONS-SUTURES,Surgery,NHS LOGISTICS,1015070077,62.01,
Department of Health,Salisbury NHS Foundation Trust,22-Aug-14,MEDSURGCONS-SUTURES,Surgery,NHS LOGISTICS,1015070077,56.11,
Department of Health,Salisbury NHS Foundation Trust,22-Aug-14,MEDSURGCONS-SUTURES,Surgery,NHS LOGISTICS,1015070077,43.81,
Department of Health,Salisbury NHS Foundation Trust,22-Aug-14,MEDSURGCONS-SUTURES,Surgery,NHS LOGISTICS,1015070077,27.01,
Department of Health,Salisbury NHS Foundation Trust,22-Aug-14,MEDSURGCONS-SUTURES,Surgery,NHS LOGISTICS,1015070077,47.14,
Department of Health,Salisbury NHS Foundation Trust,22-Aug-14,MEDSURGCONS-SUTURES,Surgery,NHS LOGISTICS,1015070077,48.09,
Department of Health,Salisbury NHS Foundation Trust,22-Aug-14,MEDSURGCONS-SUTURES,Surgery,NHS LOGISTICS,1015070077,58.39,
Department of Health,Salisbury NHS Foundation Trust,22-Aug-14,DRESSINGS - PRE STERILE,Surgery,NHS LOGISTICS,1015070077,50.67,
Department of Health,Salisbury NHS Foundation Trust,22-Aug-14,TISSUES HAND TOWELS & TOILET PAPER,Surgery,NHS LOGISTICS,1015070077,4,
Department of Health,Salisbury NHS Foundation Trust,22-Aug-14,DRESSINGS - PRE STERILE,Surgery,NHS LOGISTICS,1015070077,6.7,
Department of Health,Salisbury NHS Foundation Trust,22-Aug-14,STATIONERY SUNDRIES,Surgery,NHS LOGISTICS,1015070077,0.98,
Department of Health,Salisbury NHS Foundation Trust,22-Aug-14,TOILETRIES PERSONAL HYGIENE PRODUCTS,Surgery,NHS LOGISTICS,1015070077,9.54,
Department of Health,Salisbury NHS Foundation Trust,22-Aug-14,DRESSINGS - PRE STERILE,Surgery,NHS LOGISTICS,1015070077,6,
Department of Health,Salisbury NHS Foundation Trust,22-Aug-14,M & S EQUIPELECTEQUIPINST - OTHER,Surgery,NHS LOGISTICS,1015070077,5.97,
Department of Health,Salisbury NHS Foundation Trust,22-Aug-14,OTHER MEDICAL SUPPLIES,Surgery,NHS LOGISTICS,1015070077,44.98,
Department of Health,Salisbury NHS Foundation Trust,22-Aug-14,NON DISPOSABLE BED LINEN,Surgery,NHS LOGISTICS,1015070077,90.4,
Department of Health,Salisbury NHS Foundation Trust,22-Aug-14,DISPOSABLE THEATRE DRAPES WIPES,Surgery,NHS LOGISTICS,1015070077,19.45,
Department of Health,Salisbury NHS Foundation Trust,22-Aug-14,PATIENT APPLIANCES,Medicine,NHS LOGISTICS,1015070077,34.1,
Department of Health,Salisbury NHS Foundation Trust,22-Aug-14,OTHER MEDICAL SUPPLIES,Critical care,NHS LOGISTICS,1015070077,13.25,
Department of Health,Salisbury NHS Foundation Trust,22-Aug-14,MEDSURGCONS - OTHER,Critical care,NHS LOGISTICS,1015070077,3.13,
Department of Health,Salisbury NHS Foundation Trust,22-Aug-14,MEDSURGCONS - OTHER,Critical care,NHS LOGISTICS,1015070077,3.13,
Department of Health,Salisbury NHS Foundation Trust,22-Aug-14,PAPER ITEMS GENERAL STATIONERY SUNDRIES,Surgery,NHS LOGISTICS,1015070077,7.91,
Department of Health,Salisbury NHS Foundation Trust,22-Aug-14,PAPER ITEMS GENERAL STATIONERY SUNDRIES,Surgery,NHS LOGISTICS,1015070077,3.07,
Department of Health,Salisbury NHS Foundation Trust,22-Aug-14,STATIONERY SUNDRIES,Surgery,NHS LOGISTICS,1015070077,2.95,
Department of Health,Salisbury NHS Foundation Trust,22-Aug-14,STATIONERY SUNDRIES,Surgery,NHS LOGISTICS,1015070077,2,
Department of Health,Salisbury NHS Foundation Trust,22-Aug-14,STATIONERY SUNDRIES,Surgery,NHS LOGISTICS,1015070077,2.74,
Department of Health,Salisbury NHS Foundation Trust,22-Aug-14,STATIONERY SUNDRIES,Surgery,NHS LOGISTICS,1015070077,2.9,
Department of Health,Salisbury NHS Foundation Trust,22-Aug-14,MEDSURGCONS - OTHER,Critical care,NHS LOGISTICS,1015070077,3.13,
Department of Health,Salisbury NHS Foundation Trust,22-Aug-14,STATIONERY SUNDRIES,Clinical Support and Family Services,NHS LOGISTICS,1015070077,25,
Department of Health,Salisbury NHS Foundation Trust,22-Aug-14,STATIONERY SUNDRIES,Clinical Support and Family Services,NHS LOGISTICS,1015070077,0.38,
Department of Health,Salisbury NHS Foundation Trust,22-Aug-14,STATIONERY SUNDRIES,Clinical Support and Family Services,NHS LOGISTICS,1015070077,4.55,
Department of Health,Salisbury NHS Foundation Trust,22-Aug-14,MED SURG EQUIP REP MAINT CLEANING,Clinical Support and Family Services,NHS LOGISTICS,1015070077,91.83,
Department of Health,Salisbury NHS Foundation Trust,22-Aug-14,MEDSURGCONS - OTHER,Clinical Support and Family Services,NHS LOGISTICS,1015070077,30.42,
Department of Health,Salisbury NHS Foundation Trust,22-Aug-14,TISSUES HAND TOWELS & TOILET PAPER,Clinical Support and Family Services,NHS LOGISTICS,1015070077,3.77,
Department of Health,Salisbury NHS Foundation Trust,22-Aug-14,NON DISPOSABLE BED LINEN,Clinical Support and Family Services,NHS LOGISTICS,1015070077,11.3,
Department of Health,Salisbury NHS Foundation Trust,22-Aug-14,PATIENT APPLIANCES,Clinical Support and Family Services,NHS LOGISTICS,1015070077,1.83,
Department of Health,Salisbury NHS Foundation Trust,22-Aug-14,OTHER MEDICAL SUPPLIES,Critical care,NHS LOGISTICS,1015070077,17.67,
Department of Health,Salisbury NHS Foundation Trust,22-Aug-14,MEDSURGCONS - OTHER,Critical care,NHS LOGISTICS,1015070077,1.88,
Department of Health,Salisbury NHS Foundation Trust,22-Aug-14,MEDSURGCONS - OTHER,Critical care,NHS LOGISTICS,1015070077,6.25,
Department of Health,Salisbury NHS Foundation Trust,22-Aug-14,MEDSURGCONS - OTHER,Critical care,NHS LOGISTICS,1015070077,7.44,
Department of Health,Salisbury NHS Foundation Trust,22-Aug-14,TISSUES HAND TOWELS & TOILET PAPER,Critical care,NHS LOGISTICS,1015070077,0.73,
Department of Health,Salisbury NHS Foundation Trust,22-Aug-14,NON DISPOSABLE BED LINEN,Critical care,NHS LOGISTICS,1015070077,2.83,
Department of Health,Salisbury NHS Foundation Trust,22-Aug-14,PATIENT APPLIANCES,Critical care,NHS LOGISTICS,1015070077,5.49,
Department of Health,Salisbury NHS Foundation Trust,22-Aug-14,MEDSURGCONS - OTHER,Clinical Support and Family Services,NHS LOGISTICS,1015070077,115,
Department of Health,Salisbury NHS Foundation Trust,22-Aug-14,TISSUES HAND TOWELS & TOILET PAPER,Clinical Support and Family Services,NHS LOGISTICS,1015070077,20.8,
Department of Health,Salisbury NHS Foundation Trust,22-Aug-14,MEDSURGCONS - OTHER,Clinical Support and Family Services,NHS LOGISTICS,1015070077,20.83,
Department of Health,Salisbury NHS Foundation Trust,22-Aug-14,NON DISPOSABLE BED LINEN,Clinical Support and Family Services,NHS LOGISTICS,1015070077,9.75,
Department of Health,Salisbury NHS Foundation Trust,22-Aug-14,NON DISPOSABLE BED LINEN,Clinical Support and Family Services,NHS LOGISTICS,1015070077,11.3,
Department of Health,Salisbury NHS Foundation Trust,22-Aug-14,MEDSURGCONS - OTHER,Clinical Support and Family Services,NHS LOGISTICS,1015070077,115.2,
Department of Health,Salisbury NHS Foundation Trust,22-Aug-14,OTHER MEDICAL SUPPLIES,Clinical Support and Family Services,NHS LOGISTICS,1015070077,51,
Department of Health,Salisbury NHS Foundation Trust,22-Aug-14,DRESSINGS - PRE STERILE,Critical care,NHS LOGISTICS,1015070077,152.83,
Department of Health,Salisbury NHS Foundation Trust,22-Aug-14,DRUGS,Critical care,NHS LOGISTICS,1015070077,6.18,
Department of Health,Salisbury NHS Foundation Trust,22-Aug-14,PATIENTS INCONTINENCE,Critical care,NHS LOGISTICS,1015070077,4.29,
Department of Health,Salisbury NHS Foundation Trust,22-Aug-14,MEDSURGCONS - OTHER,Critical care,NHS LOGISTICS,1015070077,7.44,
Department of Health,Salisbury NHS Foundation Trust,22-Aug-14,NON DISPOSABLE BED LINEN,Critical care,NHS LOGISTICS,1015070077,5.65,
Department of Health,Salisbury NHS Foundation Trust,22-Aug-14,OTHER MEDICAL SUPPLIES,Surgery,NHS LOGISTICS,1015070077,22.08,
Department of Health,Salisbury NHS Foundation Trust,22-Aug-14,DRESSINGS - PRE STERILE,Surgery,NHS LOGISTICS,1015070077,7.64,
Department of Health,Salisbury NHS Foundation Trust,22-Aug-14,MEDSURGCONS - OTHER,Surgery,NHS LOGISTICS,1015070077,6.25,
Department of Health,Salisbury NHS Foundation Trust,22-Aug-14,MEDSURGCONS - OTHER,Surgery,NHS LOGISTICS,1015070077,6.25,
Department of Health,Salisbury NHS Foundation Trust,22-Aug-14,PATIENTS INCONTINENCE,Surgery,NHS LOGISTICS,1015070077,8.58,
Department of Health,Salisbury NHS Foundation Trust,22-Aug-14,TISSUES HAND TOWELS & TOILET PAPER,Surgery,NHS LOGISTICS,1015070077,0.37,
Department of Health,Salisbury NHS Foundation Trust,22-Aug-14,NON DISPOSABLE BED LINEN,Surgery,NHS LOGISTICS,1015070077,11.3,
Department of Health,Salisbury NHS Foundation Trust,22-Aug-14,DISPOSABLE THEATRE DRAPES WIPES,Surgery,NHS LOGISTICS,1015070077,3.24,
Department of Health,Salisbury NHS Foundation Trust,22-Aug-14,MEDSURGCONS - OTHER,Surgery,NHS LOGISTICS,1015070077,275.4,
Department of Health,Salisbury NHS Foundation Trust,22-Aug-14,MEDSURGCONS - OTHER,Surgery,NHS LOGISTICS,1015070077,59.78,
Department of Health,Salisbury NHS Foundation Trust,22-Aug-14,OTHER MEDICAL SUPPLIES,Surgery,NHS LOGISTICS,1015070077,49.07,
Department of Health,Salisbury NHS Foundation Trust,22-Aug-14,OTHER MEDICAL SUPPLIES,Medicine,NHS LOGISTICS,1015070077,17.67,
Department of Health,Salisbury NHS Foundation Trust,22-Aug-14,DRESSINGS - PRE STERILE,Medicine,NHS LOGISTICS,1015070077,7.64,
Department of Health,Salisbury NHS Foundation Trust,22-Aug-14,MEDSURGCONS - OTHER,Medicine,NHS LOGISTICS,1015070077,9.38,
Department of Health,Salisbury NHS Foundation Trust,22-Aug-14,CLEANING MATERIALS PRODUCTS SUNDRIES,Medicine,NHS LOGISTICS,1015070077,8.39,
Department of Health,Salisbury NHS Foundation Trust,22-Aug-14,OTHER MEDICAL SUPPLIES,Medicine,NHS LOGISTICS,1015070077,5.68,
Department of Health,Salisbury NHS Foundation Trust,22-Aug-14,PATIENTS INCONTINENCE,Medicine,NHS LOGISTICS,1015070077,4.54,
Department of Health,Salisbury NHS Foundation Trust,22-Aug-14,PATIENT APPLIANCES,Medicine,NHS LOGISTICS,1015070077,3.35,
Department of Health,Salisbury NHS Foundation Trust,22-Aug-14,PATIENT APPLIANCES,Medicine,NHS LOGISTICS,1015070077,4.15,
Department of Health,Salisbury NHS Foundation Trust,22-Aug-14,MEDSURGCONS - OTHER,Medicine,NHS LOGISTICS,1015070077,10.42,
Department of Health,Salisbury NHS Foundation Trust,22-Aug-14,MEDSURGCONS - OTHER,Medicine,NHS LOGISTICS,1015070077,7.44,
Department of Health,Salisbury NHS Foundation Trust,22-Aug-14,TISSUES HAND TOWELS & TOILET PAPER,Medicine,NHS LOGISTICS,1015070077,0.73,
Department of Health,Salisbury NHS Foundation Trust,22-Aug-14,SURGICAL INSTRUMENTS: GENERAL,Medicine,NHS LOGISTICS,1015070077,4.69,
Department of Health,Salisbury NHS Foundation Trust,22-Aug-14,NON DISPOSABLE BED LINEN,Medicine,NHS LOGISTICS,1015070077,8.48,
Department of Health,Salisbury NHS Foundation Trust,22-Aug-14,DISPOSABLE THEATRE DRAPES WIPES,Medicine,NHS LOGISTICS,1015070077,3.24,
Department of Health,Salisbury NHS Foundation Trust,22-Aug-14,MEDSURGCONS - OTHER,Surgery,NHS LOGISTICS,1015070077,18.75,
Department of Health,Salisbury NHS Foundation Trust,22-Aug-14,SURGICAL INSTRUMENTS: GENERAL,Surgery,NHS LOGISTICS,1015070077,70.13,
Department of Health,Salisbury NHS Foundation Trust,22-Aug-14,OTHER MEDICAL SUPPLIES,Surgery,NHS LOGISTICS,1015070077,17.67,
Department of Health,Salisbury NHS Foundation Trust,22-Aug-14,OTHER MEDICAL SUPPLIES,Medicine,NHS LOGISTICS,1015070077,22.08,
Department of Health,Salisbury NHS Foundation Trust,22-Aug-14,PATIENTS INCONTINENCE,Medicine,NHS LOGISTICS,1015070077,9.08,
Department of Health,Salisbury NHS Foundation Trust,22-Aug-14,MEDSURGCONS - OTHER,Medicine,NHS LOGISTICS,1015070077,12.5,
Department of Health,Salisbury NHS Foundation Trust,22-Aug-14,MEDSURGCONS - OTHER,Medicine,NHS LOGISTICS,1015070077,6.25,
Department of Health,Salisbury NHS Foundation Trust,22-Aug-14,PATIENTS INCONTINENCE,Medicine,NHS LOGISTICS,1015070077,3.63,
Department of Health,Salisbury NHS Foundation Trust,22-Aug-14,TUBES,Medicine,NHS LOGISTICS,1015070077,6.19,
Department of Health,Salisbury NHS Foundation Trust,22-Aug-14,PATIENTS INCONTINENCE,Medicine,NHS LOGISTICS,1015070077,4.54,
Department of Health,Salisbury NHS Foundation Trust,22-Aug-14,NON DISPOSABLE BED LINEN,Medicine,NHS LOGISTICS,1015070077,7.95,
Department of Health,Salisbury NHS Foundation Trust,22-Aug-14,MEDSURGCONS - OTHER,Medicine,NHS LOGISTICS,1015070077,5.21,
Department of Health,Salisbury NHS Foundation Trust,22-Aug-14,MEDSURGCONS - OTHER,Medicine,NHS LOGISTICS,1015070077,14.88,
Department of Health,Salisbury NHS Foundation Trust,22-Aug-14,TISSUES HAND TOWELS & TOILET PAPER,Medicine,NHS LOGISTICS,1015070077,1.83,
Department of Health,Salisbury NHS Foundation Trust,22-Aug-14,M & S EQUIPELECTEQUIPINST - OTHER,Medicine,NHS LOGISTICS,1015070077,1.49,
Department of Health,Salisbury NHS Foundation Trust,22-Aug-14,NON DISPOSABLE BED LINEN,Medicine,NHS LOGISTICS,1015070077,11.3,
Department of Health,Salisbury NHS Foundation Trust,22-Aug-14,DISPOSABLE THEATRE DRAPES WIPES,Medicine,NHS LOGISTICS,1015070077,3.24,
Department of Health,Salisbury NHS Foundation Trust,22-Aug-14,DISPOSABLE THEATRE DRAPES WIPES,Medicine,NHS LOGISTICS,1015070077,5.07,
Department of Health,Salisbury NHS Foundation Trust,22-Aug-14,DISPOSABLE THEATRE DRAPES WIPES,Medicine,NHS LOGISTICS,1015070077,7.3,
Department of Health,Salisbury NHS Foundation Trust,22-Aug-14,STATIONERY SUNDRIES,Clinical Support and Family Services,NHS LOGISTICS,1015070077,1.13,
Department of Health,Salisbury NHS Foundation Trust,22-Aug-14,STATIONERY SUNDRIES,Clinical Support and Family Services,NHS LOGISTICS,1015070077,3.25,
Department of Health,Salisbury NHS Foundation Trust,22-Aug-14,PAPER ITEMS GENERAL STATIONERY SUNDRIES,Clinical Support and Family Services,NHS LOGISTICS,1015070077,6.08,
Department of Health,Salisbury NHS Foundation Trust,22-Aug-14,STATIONERY SUNDRIES,Clinical Support and Family Services,NHS LOGISTICS,1015070077,0.73,
Department of Health,Salisbury NHS Foundation Trust,22-Aug-14,STATIONERY SUNDRIES,Clinical Support and Family Services,NHS LOGISTICS,1015070077,2.15,
Department of Health,Salisbury NHS Foundation Trust,22-Aug-14,STATIONERY SUNDRIES,Clinical Support and Family Services,NHS LOGISTICS,1015070077,3.47,
Department of Health,Salisbury NHS Foundation Trust,22-Aug-14,OTHER MEDICAL SUPPLIES,Medicine,NHS LOGISTICS,1015070077,39.17,
Department of Health,Salisbury NHS Foundation Trust,22-Aug-14,DRESSINGS - PRE STERILE,Medicine,NHS LOGISTICS,1015070077,7.37,
Department of Health,Salisbury NHS Foundation Trust,22-Aug-14,DRESSINGS - PRE STERILE,Medicine,NHS LOGISTICS,1015070077,2.8,
Department of Health,Salisbury NHS Foundation Trust,22-Aug-14,MEDSURGCONS - OTHER,Medicine,NHS LOGISTICS,1015070077,6.25,
Department of Health,Salisbury NHS Foundation Trust,22-Aug-14,MEDSURGCONS - OTHER,Medicine,NHS LOGISTICS,1015070077,60.83,
Department of Health,Salisbury NHS Foundation Trust,22-Aug-14,MEDSURGCONS - OTHER,Medicine,NHS LOGISTICS,1015070077,30.42,
Department of Health,Salisbury NHS Foundation Trust,22-Aug-14,PATIENT APPLIANCES,Medicine,NHS LOGISTICS,1015070077,5.47,
Department of Health,Salisbury NHS Foundation Trust,22-Aug-14,PATIENT APPLIANCES,Medicine,NHS LOGISTICS,1015070077,8.23,
Department of Health,Salisbury NHS Foundation Trust,22-Aug-14,PATIENT APPLIANCES,Medicine,NHS LOGISTICS,1015070077,12.35,
Department of Health,Salisbury NHS Foundation Trust,22-Aug-14,PATIENT APPLIANCES,Medicine,NHS LOGISTICS,1015070077,12.35,
Department of Health,Salisbury NHS Foundation Trust,22-Aug-14,PATIENT APPLIANCES,Medicine,NHS LOGISTICS,1015070077,4.12,
Department of Health,Salisbury NHS Foundation Trust,22-Aug-14,PATIENT APPLIANCES,Medicine,NHS LOGISTICS,1015070077,4.12,
Department of Health,Salisbury NHS Foundation Trust,22-Aug-14,PATIENT APPLIANCES,Medicine,NHS LOGISTICS,1015070077,4.12,
Department of Health,Salisbury NHS Foundation Trust,22-Aug-14,TUBES,Medicine,NHS LOGISTICS,1015070077,6.19,
Department of Health,Salisbury NHS Foundation Trust,22-Aug-14,HABERDASHERY,Medicine,NHS LOGISTICS,1015070077,1.73,
Department of Health,Salisbury NHS Foundation Trust,22-Aug-14,PATIENTS INCONTINENCE,Medicine,NHS LOGISTICS,1015070077,4.54,
Department of Health,Salisbury NHS Foundation Trust,22-Aug-14,MEDSURGCONS-SUTURES,Medicine,NHS LOGISTICS,1015070077,43.81,
Department of Health,Salisbury NHS Foundation Trust,22-Aug-14,MEDSURGCONS-SUTURES,Medicine,NHS LOGISTICS,1015070077,13.75,
Department of Health,Salisbury NHS Foundation Trust,22-Aug-14,MEDSURGCONS-SUTURES,Medicine,NHS LOGISTICS,1015070077,26.83,
Department of Health,Salisbury NHS Foundation Trust,22-Aug-14,MEDSURGCONS - OTHER,Medicine,NHS LOGISTICS,1015070077,59.78,
Department of Health,Salisbury NHS Foundation Trust,22-Aug-14,MEDSURGCONS - OTHER,Medicine,NHS LOGISTICS,1015070077,15.63,
Department of Health,Salisbury NHS Foundation Trust,22-Aug-14,LAB EQUIP-LABORATORY APPARATUS,Medicine,NHS LOGISTICS,1015070077,3.95,
Department of Health,Salisbury NHS Foundation Trust,22-Aug-14,SURGICAL INSTRUMENTS: GENERAL,Medicine,NHS LOGISTICS,1015070077,4.69,
Department of Health,Salisbury NHS Foundation Trust,22-Aug-14,NON DISPOSABLE BED LINEN,Medicine,NHS LOGISTICS,1015070077,8.48,
Department of Health,Salisbury NHS Foundation Trust,22-Aug-14,DISPOSABLE THEATRE DRAPES WIPES,Medicine,NHS LOGISTICS,1015070077,3.24,
Department of Health,Salisbury NHS Foundation Trust,22-Aug-14,DISPOSABLE THEATRE DRAPES WIPES,Medicine,NHS LOGISTICS,1015070077,1.27,
Department of Health,Salisbury NHS Foundation Trust,22-Aug-14,DEBTORS HOLDING CODE,Medicine,NHS LOGISTICS,1015070077,100,
Department of Health,Salisbury NHS Foundation Trust,22-Aug-14,PAPER ITEMS GENERAL STATIONERY SUNDRIES,Surgery,NHS LOGISTICS,1015070077,14.58,
Department of Health,Salisbury NHS Foundation Trust,22-Aug-14,STATIONERY SUNDRIES,Surgery,NHS LOGISTICS,1015070077,10.97,
Department of Health,Salisbury NHS Foundation Trust,22-Aug-14,M & S EQUIPELECTEQUIPINST - OTHER,Clinical Support and Family Services,NHS LOGISTICS,1015070077,120.73,
Department of Health,Salisbury NHS Foundation Trust,22-Aug-14,DENTAL SURGERY SUNDRIES,Corporate Directorate,NHS LOGISTICS,1015070077,10.35,
Department of Health,Salisbury NHS Foundation Trust,22-Aug-14,NON DISPOSABLE THEATRE DRAPES WIPES,Surgery,NHS LOGISTICS,1015070077,159.97,
Department of Health,Salisbury NHS Foundation Trust,22-Aug-14,HEALTHCARE - WEAR,Surgery,NHS LOGISTICS,1015070077,31.18,
Department of Health,Salisbury NHS Foundation Trust,22-Aug-14,MEDSURGCONS - OTHER,Clinical Support and Family Services,NHS LOGISTICS,1015070077,3.37,
Department of Health,Salisbury NHS Foundation Trust,22-Aug-14,SURGICAL INSTRUMENTS: DISPOSABLE,Critical care,NHS LOGISTICS,1015070077,73.92,
Department of Health,Salisbury NHS Foundation Trust,22-Aug-14,DRESSINGS - PRE STERILE,Critical care,NHS LOGISTICS,1015070077,20.6,
Department of Health,Salisbury NHS Foundation Trust,22-Aug-14,MEDSURGCONS - OTHER,Medicine,NHS LOGISTICS,1015070077,5.31,
Department of Health,Salisbury NHS Foundation Trust,22-Aug-14,MEDSURGCONS - OTHER,Facilities Directorate,NHS LOGISTICS,1015070077,5.31,
Department of Health,Salisbury NHS Foundation Trust,22-Aug-14,PATIENTS BEDWEAR UNISEX,Surgery,NHS LOGISTICS,1015070077,24.85,
Department of Health,Salisbury NHS Foundation Trust,22-Aug-14,ELECTRICAL EQUIPMENT x,Surgery,NHS LOGISTICS,1015070077,1.33,
Department of Health,Salisbury NHS Foundation Trust,22-Aug-14,DRESSINGS - PRE STERILE,Surgery,NHS LOGISTICS,1015070077,59.25,
Department of Health,Salisbury NHS Foundation Trust,22-Aug-14,EGGS MILK OTHER DAIRY PRODUCTS,Facilities Directorate,NHS LOGISTICS,1015070077,157.44,
Department of Health,Salisbury NHS Foundation Trust,22-Aug-14,FRUIT & VEGETABLES,Facilities Directorate,NHS LOGISTICS,1015070077,20.08,
Department of Health,Salisbury NHS Foundation Trust,22-Aug-14,BEVERAGES & AMBIENT FOOD,Facilities Directorate,NHS LOGISTICS,1015070077,41.36,
Department of Health,Salisbury NHS Foundation Trust,22-Aug-14,BEVERAGES & AMBIENT FOOD,Facilities Directorate,NHS LOGISTICS,1015070077,24.57,
Department of Health,Salisbury NHS Foundation Trust,22-Aug-14,BEVERAGES & AMBIENT FOOD,Facilities Directorate,NHS LOGISTICS,1015070077,54,
Department of Health,Salisbury NHS Foundation Trust,22-Aug-14,BEVERAGES & AMBIENT FOOD,Facilities Directorate,NHS LOGISTICS,1015070077,15.42,
Department of Health,Salisbury NHS Foundation Trust,22-Aug-14,BEVERAGES & AMBIENT FOOD,Facilities Directorate,NHS LOGISTICS,1015070077,30.48,
Department of Health,Salisbury NHS Foundation Trust,22-Aug-14,BEVERAGES & AMBIENT FOOD,Facilities Directorate,NHS LOGISTICS,1015070077,14.34,
Department of Health,Salisbury NHS Foundation Trust,22-Aug-14,BEVERAGES & AMBIENT FOOD,Facilities Directorate,NHS LOGISTICS,1015070077,28.32,
Department of Health,Salisbury NHS Foundation Trust,22-Aug-14,BEVERAGES & AMBIENT FOOD,Facilities Directorate,NHS LOGISTICS,1015070077,4.7,
Department of Health,Salisbury NHS Foundation Trust,22-Aug-14,BEVERAGES & AMBIENT FOOD,Facilities Directorate,NHS LOGISTICS,1015070077,5.4,
Department of Health,Salisbury NHS Foundation Trust,22-Aug-14,BEVERAGES & AMBIENT FOOD,Facilities Directorate,NHS LOGISTICS,1015070077,11.27,
Department of Health,Salisbury NHS Foundation Trust,22-Aug-14,BEVERAGES & AMBIENT FOOD,Facilities Directorate,NHS LOGISTICS,1015070077,15.64,
Department of Health,Salisbury NHS Foundation Trust,22-Aug-14,BEVERAGES & AMBIENT FOOD,Facilities Directorate,NHS LOGISTICS,1015070077,18.48,
Department of Health,Salisbury NHS Foundation Trust,22-Aug-14,FRUIT & VEGETABLES,Facilities Directorate,NHS LOGISTICS,1015070077,21.84,
Department of Health,Salisbury NHS Foundation Trust,22-Aug-14,EGGS MILK OTHER DAIRY PRODUCTS,Facilities Directorate,NHS LOGISTICS,1015070077,37.2,
Department of Health,Salisbury NHS Foundation Trust,22-Aug-14,LIQUID REFRESHMENTS,Facilities Directorate,NHS LOGISTICS,1015070077,88.83,
Department of Health,Salisbury NHS Foundation Trust,22-Aug-14,LIQUID REFRESHMENTS,Facilities Directorate,NHS LOGISTICS,1015070077,75.17,
Department of Health,Salisbury NHS Foundation Trust,22-Aug-14,BEVERAGES & AMBIENT FOOD,Facilities Directorate,NHS LOGISTICS,1015070077,43.65,
Department of Health,Salisbury NHS Foundation Trust,22-Aug-14,BEVERAGES & AMBIENT FOOD,Facilities Directorate,NHS LOGISTICS,1015070077,58.92,
Department of Health,Salisbury NHS Foundation Trust,22-Aug-14,BEVERAGES & AMBIENT FOOD,Facilities Directorate,NHS LOGISTICS,1015070077,20.52,
Department of Health,Salisbury NHS Foundation Trust,22-Aug-14,BAGS SACKS - OTHER,Facilities Directorate,NHS LOGISTICS,1015070077,16.66,
Department of Health,Salisbury NHS Foundation Trust,22-Aug-14,FRUIT & VEGETABLES,Facilities Directorate,NHS LOGISTICS,1015070077,56.4,
Department of Health,Salisbury NHS Foundation Trust,22-Aug-14,FRUIT & VEGETABLES,Facilities Directorate,NHS LOGISTICS,1015070077,11.94,
Department of Health,Salisbury NHS Foundation Trust,22-Aug-14,FRUIT & VEGETABLES,Facilities Directorate,NHS LOGISTICS,1015070077,55.8,
Department of Health,Salisbury NHS Foundation Trust,22-Aug-14,TUBES,Surgery,NHS LOGISTICS,1015070077,387.92,
Department of Health,Salisbury NHS Foundation Trust,22-Aug-14,HARD/SOFTWARE-MEDIA  TAPES  DISCS,Surgery,NHS LOGISTICS,1015070077,21.92,
Department of Health,Salisbury NHS Foundation Trust,22-Aug-14,OTHER MEDICAL SUPPLIES,Surgery,NHS LOGISTICS,1015070077,41.63,
Department of Health,Salisbury NHS Foundation Trust,22-Aug-14,HEALTHCARE - WEAR,Surgery,NHS LOGISTICS,1015070077,5.23,
Department of Health,Salisbury NHS Foundation Trust,22-Aug-14,HEALTHCARE - WEAR,Surgery,NHS LOGISTICS,1015070077,30.4,
Department of Health,Salisbury NHS Foundation Trust,22-Aug-14,OTHER MEDICAL SUPPLIES,Surgery,NHS LOGISTICS,1015070077,39.08,
Department of Health,Salisbury NHS Foundation Trust,22-Aug-14,OTHER MEDICAL SUPPLIES,Surgery,NHS LOGISTICS,1015070077,11.31,
Department of Health,Salisbury NHS Foundation Trust,22-Aug-14,MEDSURGCONS - OTHER,Surgery,NHS LOGISTICS,1015070077,5.31,
Department of Health,Salisbury NHS Foundation Trust,22-Aug-14,MEDSURGCONS - OTHER,Medicine,NHS LOGISTICS,1015070077,10.62,
Department of Health,Salisbury NHS Foundation Trust,22-Aug-14,SURGICAL INSTRUMENTS: GENERAL,Surgery,NHS LOGISTICS,1015070077,9.39,
Department of Health,Salisbury NHS Foundation Trust,22-Aug-14,PATIENT APPLIANCES,Critical care,NHS LOGISTICS,1015070077,29.55,
Department of Health,Salisbury NHS Foundation Trust,22-Aug-14,PATIENT APPLIANCES,Surgery,NHS LOGISTICS,1015070077,24.63,
Department of Health,Salisbury NHS Foundation Trust,22-Aug-14,MEDSURGCONS - OTHER,Surgery,NHS LOGISTICS,1015070077,26.54,
Department of Health,Salisbury NHS Foundation Trust,22-Aug-14,MEDSURGCONS - OTHER,Medicine,NHS LOGISTICS,1015070077,5.31,
Department of Health,Salisbury NHS Foundation Trust,22-Aug-14,COOKING & KITCHEN UTENSILS,Directorate of Finance and Procurement,NHS LOGISTICS,1015070077,100,
Department of Health,Salisbury NHS Foundation Trust,22-Aug-14,COOKING & KITCHEN UTENSILS,Directorate of Finance and Procurement,NHS LOGISTICS,1015070077,28.3,
Department of Health,Salisbury NHS Foundation Trust,22-Aug-14,COOKING & KITCHEN UTENSILS,Directorate of Finance and Procurement,NHS LOGISTICS,1015070077,32.17,
Department of Health,Salisbury NHS Foundation Trust,22-Aug-14,NON DISPOSABLE BED LINEN,Directorate of Finance and Procurement,NHS LOGISTICS,1015070077,33.9,
Department of Health,Salisbury NHS Foundation Trust,22-Aug-14,EGGS MILK OTHER DAIRY PRODUCTS,Facilities Directorate,NHS LOGISTICS,1015070077,78.72,
Department of Health,Salisbury NHS Foundation Trust,22-Aug-14,FRUIT & VEGETABLES,Facilities Directorate,NHS LOGISTICS,1015070077,40.16,
Department of Health,Salisbury NHS Foundation Trust,22-Aug-14,BEVERAGES & AMBIENT FOOD,Facilities Directorate,NHS LOGISTICS,1015070077,20.68,
Department of Health,Salisbury NHS Foundation Trust,22-Aug-14,BEVERAGES & AMBIENT FOOD,Facilities Directorate,NHS LOGISTICS,1015070077,16.38,
Department of Health,Salisbury NHS Foundation Trust,22-Aug-14,BEVERAGES & AMBIENT FOOD,Facilities Directorate,NHS LOGISTICS,1015070077,36,
Department of Health,Salisbury NHS Foundation Trust,22-Aug-14,BEVERAGES & AMBIENT FOOD,Facilities Directorate,NHS LOGISTICS,1015070077,9.6,
Department of Health,Salisbury NHS Foundation Trust,22-Aug-14,BEVERAGES & AMBIENT FOOD,Facilities Directorate,NHS LOGISTICS,1015070077,3.7,
Department of Health,Salisbury NHS Foundation Trust,22-Aug-14,BEVERAGES & AMBIENT FOOD,Facilities Directorate,NHS LOGISTICS,1015070077,2.65,
Department of Health,Salisbury NHS Foundation Trust,22-Aug-14,BEVERAGES & AMBIENT FOOD,Facilities Directorate,NHS LOGISTICS,1015070077,5.18,
Department of Health,Salisbury NHS Foundation Trust,22-Aug-14,BEVERAGES & AMBIENT FOOD,Facilities Directorate,NHS LOGISTICS,1015070077,7.92,
Department of Health,Salisbury NHS Foundation Trust,22-Aug-14,BEVERAGES & AMBIENT FOOD,Facilities Directorate,NHS LOGISTICS,1015070077,12.8,
Department of Health,Salisbury NHS Foundation Trust,22-Aug-14,BEVERAGES & AMBIENT FOOD,Facilities Directorate,NHS LOGISTICS,1015070077,3.3,
Department of Health,Salisbury NHS Foundation Trust,22-Aug-14,BEVERAGES & AMBIENT FOOD,Facilities Directorate,NHS LOGISTICS,1015070077,5.4,
Department of Health,Salisbury NHS Foundation Trust,22-Aug-14,BEVERAGES & AMBIENT FOOD,Facilities Directorate,NHS LOGISTICS,1015070077,10.54,
Department of Health,Salisbury NHS Foundation Trust,22-Aug-14,BEVERAGES & AMBIENT FOOD,Facilities Directorate,NHS LOGISTICS,1015070077,8.98,
Department of Health,Salisbury NHS Foundation Trust,22-Aug-14,FLAVOURINGS HERBS SPICES,Facilities Directorate,NHS LOGISTICS,1015070077,4.74,
Department of Health,Salisbury NHS Foundation Trust,22-Aug-14,FLAVOURINGS HERBS SPICES,Facilities Directorate,NHS LOGISTICS,1015070077,2.69,
Department of Health,Salisbury NHS Foundation Trust,22-Aug-14,BEVERAGES & AMBIENT FOOD,Facilities Directorate,NHS LOGISTICS,1015070077,7.55,
Department of Health,Salisbury NHS Foundation Trust,22-Aug-14,COOKING & KITCHEN UTENSILS,Facilities Directorate,NHS LOGISTICS,1015070077,24.17,
Department of Health,Salisbury NHS Foundation Trust,22-Aug-14,BEVERAGES & AMBIENT FOOD,Facilities Directorate,NHS LOGISTICS,1015070077,11.27,
Department of Health,Salisbury NHS Foundation Trust,22-Aug-14,BEVERAGES & AMBIENT FOOD,Facilities Directorate,NHS LOGISTICS,1015070077,31.28,
Department of Health,Salisbury NHS Foundation Trust,22-Aug-14,BEVERAGES & AMBIENT FOOD,Facilities Directorate,NHS LOGISTICS,1015070077,15.72,
Department of Health,Salisbury NHS Foundation Trust,22-Aug-14,FRUIT & VEGETABLES,Facilities Directorate,NHS LOGISTICS,1015070077,7.6,
Department of Health,Salisbury NHS Foundation Trust,22-Aug-14,LIQUID REFRESHMENTS,Facilities Directorate,NHS LOGISTICS,1015070077,3.83,
Department of Health,Salisbury NHS Foundation Trust,22-Aug-14,BEVERAGES & AMBIENT FOOD,Facilities Directorate,NHS LOGISTICS,1015070077,19.68,
Department of Health,Salisbury NHS Foundation Trust,22-Aug-14,BEVERAGES & AMBIENT FOOD,Facilities Directorate,NHS LOGISTICS,1015070077,1.98,
Department of Health,Salisbury NHS Foundation Trust,22-Aug-14,FLAVOURINGS HERBS SPICES,Facilities Directorate,NHS LOGISTICS,1015070077,24.14,
Department of Health,Salisbury NHS Foundation Trust,22-Aug-14,FRUIT & VEGETABLES,Facilities Directorate,NHS LOGISTICS,1015070077,21.84,
Department of Health,Salisbury NHS Foundation Trust,22-Aug-14,EGGS MILK OTHER DAIRY PRODUCTS,Facilities Directorate,NHS LOGISTICS,1015070077,74.4,
Department of Health,Salisbury NHS Foundation Trust,22-Aug-14,LIQUID REFRESHMENTS,Facilities Directorate,NHS LOGISTICS,1015070077,164,
Department of Health,Salisbury NHS Foundation Trust,22-Aug-14,BEVERAGES & AMBIENT FOOD,Facilities Directorate,NHS LOGISTICS,1015070077,29.1,
Department of Health,Salisbury NHS Foundation Trust,22-Aug-14,BEVERAGES & AMBIENT FOOD,Facilities Directorate,NHS LOGISTICS,1015070077,98.2,
Department of Health,Salisbury NHS Foundation Trust,22-Aug-14,BABY TEXTURE MODIFIED FOODS,Facilities Directorate,NHS LOGISTICS,1015070077,42.1,
Department of Health,Salisbury NHS Foundation Trust,22-Aug-14,FRUIT & VEGETABLES,Facilities Directorate,NHS LOGISTICS,1015070077,56.4,
Department of Health,Salisbury NHS Foundation Trust,22-Aug-14,FRUIT & VEGETABLES,Facilities Directorate,NHS LOGISTICS,1015070077,11.4,
Department of Health,Salisbury NHS Foundation Trust,22-Aug-14,FRUIT & VEGETABLES,Facilities Directorate,NHS LOGISTICS,1015070077,13.92,
Department of Health,Salisbury NHS Foundation Trust,22-Aug-14,FRUIT & VEGETABLES,Facilities Directorate,NHS LOGISTICS,1015070077,11.94,
Department of Health,Salisbury NHS Foundation Trust,22-Aug-14,FRUIT & VEGETABLES,Facilities Directorate,NHS LOGISTICS,1015070077,44.64,
Department of Health,Salisbury NHS Foundation Trust,22-Aug-14,FRUIT & VEGETABLES,Facilities Directorate,NHS LOGISTICS,1015070077,35.04,
Department of Health,Salisbury NHS Foundation Trust,22-Aug-14,FRUIT & VEGETABLES,Facilities Directorate,NHS LOGISTICS,1015070077,48.84,
Department of Health,Salisbury NHS Foundation Trust,22-Aug-14,FRUIT & VEGETABLES,Facilities Directorate,NHS LOGISTICS,1015070077,7.5,
Department of Health,Salisbury NHS Foundation Trust,22-Aug-14,FRUIT & VEGETABLES,Facilities Directorate,NHS LOGISTICS,1015070077,16.74,
Department of Health,Salisbury NHS Foundation Trust,22-Aug-14,FRUIT & VEGETABLES,Facilities Directorate,NHS LOGISTICS,1015070077,15.6,
Department of Health,Salisbury NHS Foundation Trust,22-Aug-14,FRUIT & VEGETABLES,Facilities Directorate,NHS LOGISTICS,1015070077,18.72,
Department of Health,Salisbury NHS Foundation Trust,22-Aug-14,LIQUID REFRESHMENTS,Facilities Directorate,NHS LOGISTICS,1015070077,15.35,
Department of Health,Salisbury NHS Foundation Trust,22-Aug-14,LIQUID REFRESHMENTS,Facilities Directorate,NHS LOGISTICS,1015070077,16.98,
Department of Health,Salisbury NHS Foundation Trust,22-Aug-14,BEVERAGES & AMBIENT FOOD,Facilities Directorate,NHS LOGISTICS,1015070077,6.72,
Department of Health,Salisbury NHS Foundation Trust,22-Aug-14,LIQUID REFRESHMENTS,Facilities Directorate,NHS LOGISTICS,1015070077,10.7,
Department of Health,Salisbury NHS Foundation Trust,22-Aug-14,LIQUID REFRESHMENTS,Facilities Directorate,NHS LOGISTICS,1015070077,41.9,
Department of Health,Salisbury NHS Foundation Trust,22-Aug-14,LIQUID REFRESHMENTS,Facilities Directorate,NHS LOGISTICS,1015070077,36.8,
Department of Health,Salisbury NHS Foundation Trust,22-Aug-14,LIQUID REFRESHMENTS,Facilities Directorate,NHS LOGISTICS,1015070077,12.92,
Department of Health,Salisbury NHS Foundation Trust,22-Aug-14,LIQUID REFRESHMENTS,Facilities Directorate,NHS LOGISTICS,1015070077,12.92,
Department of Health,Salisbury NHS Foundation Trust,22-Aug-14,BEVERAGES & AMBIENT FOOD,Facilities Directorate,NHS LOGISTICS,1015070077,18.84,
Department of Health,Salisbury NHS Foundation Trust,22-Aug-14,BEVERAGES & AMBIENT FOOD,Facilities Directorate,NHS LOGISTICS,1015070077,25.02,
Department of Health,Salisbury NHS Foundation Trust,22-Aug-14,BEVERAGES & AMBIENT FOOD,Facilities Directorate,NHS LOGISTICS,1015070077,19.46,
Department of Health,Salisbury NHS Foundation Trust,22-Aug-14,BEVERAGES & AMBIENT FOOD,Facilities Directorate,NHS LOGISTICS,1015070077,16.28,
Department of Health,Salisbury NHS Foundation Trust,22-Aug-14,COOKING & KITCHEN UTENSILS,Facilities Directorate,NHS LOGISTICS,1015070077,19.73,
Department of Health,Salisbury NHS Foundation Trust,22-Aug-14,COOKING & KITCHEN UTENSILS,Facilities Directorate,NHS LOGISTICS,1015070077,33.6,
Department of Health,Salisbury NHS Foundation Trust,22-Aug-14,BEVERAGES & AMBIENT FOOD,Facilities Directorate,NHS LOGISTICS,1015070077,72.9,
Department of Health,Salisbury NHS Foundation Trust,22-Aug-14,BEVERAGES & AMBIENT FOOD,Facilities Directorate,NHS LOGISTICS,1015070077,6.78,
Department of Health,Salisbury NHS Foundation Trust,22-Aug-14,FLAVOURINGS HERBS SPICES,Facilities Directorate,NHS LOGISTICS,1015070077,2.96,
Department of Health,Salisbury NHS Foundation Trust,22-Aug-14,FLAVOURINGS HERBS SPICES,Facilities Directorate,NHS LOGISTICS,1015070077,5.08,
Department of Health,Salisbury NHS Foundation Trust,22-Aug-14,BEVERAGES & AMBIENT FOOD,Facilities Directorate,NHS LOGISTICS,1015070077,5.94,
Department of Health,Salisbury NHS Foundation Trust,22-Aug-14,BEVERAGES & AMBIENT FOOD,Facilities Directorate,NHS LOGISTICS,1015070077,11.6,
Department of Health,Salisbury NHS Foundation Trust,22-Aug-14,BEVERAGES & AMBIENT FOOD,Facilities Directorate,NHS LOGISTICS,1015070077,12.8,
Department of Health,Salisbury NHS Foundation Trust,22-Aug-14,BEVERAGES & AMBIENT FOOD,Facilities Directorate,NHS LOGISTICS,1015070077,7.46,
Department of Health,Salisbury NHS Foundation Trust,22-Aug-14,FLAVOURINGS HERBS SPICES,Facilities Directorate,NHS LOGISTICS,1015070077,1.35,
Department of Health,Salisbury NHS Foundation Trust,22-Aug-14,BEVERAGES & AMBIENT FOOD,Facilities Directorate,NHS LOGISTICS,1015070077,6.86,
Department of Health,Salisbury NHS Foundation Trust,22-Aug-14,BEVERAGES & AMBIENT FOOD,Facilities Directorate,NHS LOGISTICS,1015070077,4.01,
Department of Health,Salisbury NHS Foundation Trust,22-Aug-14,FLAVOURINGS HERBS SPICES,Facilities Directorate,NHS LOGISTICS,1015070077,2.46,
Department of Health,Salisbury NHS Foundation Trust,22-Aug-14,FLAVOURINGS HERBS SPICES,Facilities Directorate,NHS LOGISTICS,1015070077,2.21,
Department of Health,Salisbury NHS Foundation Trust,22-Aug-14,FLAVOURINGS HERBS SPICES,Facilities Directorate,NHS LOGISTICS,1015070077,2.46,
Department of Health,Salisbury NHS Foundation Trust,22-Aug-14,FLAVOURINGS HERBS SPICES,Facilities Directorate,NHS LOGISTICS,1015070077,6.15,
Department of Health,Salisbury NHS Foundation Trust,22-Aug-14,BEVERAGES & AMBIENT FOOD,Facilities Directorate,NHS LOGISTICS,1015070077,12.42,
Department of Health,Salisbury NHS Foundation Trust,22-Aug-14,LIQUID REFRESHMENTS,Facilities Directorate,NHS LOGISTICS,1015070077,23,
Department of Health,Salisbury NHS Foundation Trust,22-Aug-14,LIQUID REFRESHMENTS,Facilities Directorate,NHS LOGISTICS,1015070077,27.6,
Department of Health,Salisbury NHS Foundation Trust,22-Aug-14,LIQUID REFRESHMENTS,Facilities Directorate,NHS LOGISTICS,1015070077,5.95,
Department of Health,Salisbury NHS Foundation Trust,22-Aug-14,LIQUID REFRESHMENTS,Facilities Directorate,NHS LOGISTICS,1015070077,7.93,
Department of Health,Salisbury NHS Foundation Trust,22-Aug-14,LIQUID REFRESHMENTS,Facilities Directorate,NHS LOGISTICS,1015070077,11.08,
Department of Health,Salisbury NHS Foundation Trust,22-Aug-14,BABY TEXTURE MODIFIED FOODS,Facilities Directorate,NHS LOGISTICS,1015070077,70.72,
Department of Health,Salisbury NHS Foundation Trust,22-Aug-14,BABY TEXTURE MODIFIED FOODS,Facilities Directorate,NHS LOGISTICS,1015070077,30.96,
Department of Health,Salisbury NHS Foundation Trust,22-Aug-14,BABY TEXTURE MODIFIED FOODS,Facilities Directorate,NHS LOGISTICS,1015070077,38.35,
Department of Health,Salisbury NHS Foundation Trust,22-Aug-14,BEVERAGES & AMBIENT FOOD,Facilities Directorate,NHS LOGISTICS,1015070077,15.19,
Department of Health,Salisbury NHS Foundation Trust,22-Aug-14,BEVERAGES & AMBIENT FOOD,Facilities Directorate,NHS LOGISTICS,1015070077,15.2,
Department of Health,Salisbury NHS Foundation Trust,22-Aug-14,BEVERAGES & AMBIENT FOOD,Facilities Directorate,NHS LOGISTICS,1015070077,15.2,
Department of Health,Salisbury NHS Foundation Trust,22-Aug-14,BEVERAGES & AMBIENT FOOD,Facilities Directorate,NHS LOGISTICS,1015070077,69.84,
Department of Health,Salisbury NHS Foundation Trust,22-Aug-14,BEVERAGES & AMBIENT FOOD,Facilities Directorate,NHS LOGISTICS,1015070077,13.2,
Department of Health,Salisbury NHS Foundation Trust,22-Aug-14,COOKING & KITCHEN UTENSILS,Facilities Directorate,NHS LOGISTICS,1015070077,19.5,
Department of Health,Salisbury NHS Foundation Trust,22-Aug-14,COOKING & KITCHEN UTENSILS,Facilities Directorate,NHS LOGISTICS,1015070077,19.5,
Department of Health,Salisbury NHS Foundation Trust,22-Aug-14,TISSUES HAND TOWELS & TOILET PAPER,Facilities Directorate,NHS LOGISTICS,1015070077,10.4,
Department of Health,Salisbury NHS Foundation Trust,22-Aug-14,FRUIT & VEGETABLES,Facilities Directorate,NHS LOGISTICS,1015070077,7.68,
Department of Health,Salisbury NHS Foundation Trust,22-Aug-14,FRUIT & VEGETABLES,Facilities Directorate,NHS LOGISTICS,1015070077,30.6,
Department of Health,Salisbury NHS Foundation Trust,22-Aug-14,FRUIT & VEGETABLES,Facilities Directorate,NHS LOGISTICS,1015070077,21.66,
Department of Health,Salisbury NHS Foundation Trust,22-Aug-14,HEALTHCARE - WEAR,Facilities Directorate,NHS LOGISTICS,1015070077,80,
Department of Health,Salisbury NHS Foundation Trust,22-Aug-14,HEALTHCARE - WEAR,Facilities Directorate,NHS LOGISTICS,1015070077,110.2,
Department of Health,Salisbury NHS Foundation Trust,22-Aug-14,COOKING & KITCHEN UTENSILS,Facilities Directorate,NHS LOGISTICS,1015070077,12.51,
Department of Health,Salisbury NHS Foundation Trust,22-Aug-14,FRUIT & VEGETABLES,Facilities Directorate,NHS LOGISTICS,1015070077,23.88,
Department of Health,Salisbury NHS Foundation Trust,22-Aug-14,BEVERAGES & AMBIENT FOOD,Facilities Directorate,NHS LOGISTICS,1015070077,8.78,
Department of Health,Salisbury NHS Foundation Trust,22-Aug-14,FRUIT & VEGETABLES,Facilities Directorate,NHS LOGISTICS,1015070077,1.19,
Department of Health,Salisbury NHS Foundation Trust,22-Aug-14,ADULTS HEARING AIDS,Surgery,NHS LOGISTICS,1015070077,174.53,
Department of Health,Salisbury NHS Foundation Trust,22-Aug-14,MEDSURGCONS - OTHER,Clinical Support and Family Services,NHS LOGISTICS,1015070077,7.68,
Department of Health,Salisbury NHS Foundation Trust,22-Aug-14,DRUGS,Clinical Support and Family Services,NHS LOGISTICS,1015070077,22.29,
Department of Health,Salisbury NHS Foundation Trust,22-Aug-14,PATIENT APPLIANCES,Surgery,NHS LOGISTICS,1015070077,6.63,
Department of Health,Salisbury NHS Foundation Trust,22-Aug-14,STATIONERY SUNDRIES,Human Resources,NHS LOGISTICS,1015070077,1.65,
Department of Health,Salisbury NHS Foundation Trust,22-Aug-14,OTHER MEDICAL SUPPLIES,Clinical Support and Family Services,NHS LOGISTICS,1015070077,7.74,
Department of Health,Salisbury NHS Foundation Trust,22-Aug-14,MEDSURGCONS - OTHER,Human Resources,NHS LOGISTICS,1015070077,0.53,
Department of Health,Salisbury NHS Foundation Trust,22-Aug-14,OTHER MEDICAL SUPPLIES,Medicine,NHS LOGISTICS,1015070077,26.49,
Department of Health,Salisbury NHS Foundation Trust,22-Aug-14,TISSUES HAND TOWELS & TOILET PAPER,Human Resources,NHS LOGISTICS,1015070077,0.93,
Department of Health,Salisbury NHS Foundation Trust,22-Aug-14,STATIONERY SUNDRIES,Corporate Directorate,NHS LOGISTICS,1015070077,0.06,
Department of Health,Salisbury NHS Foundation Trust,22-Aug-14,PAPER ITEMS GENERAL STATIONERY SUNDRIES,Clinical Support and Family Services,NHS LOGISTICS,1015070077,2.78,
Department of Health,Salisbury NHS Foundation Trust,22-Aug-14,STATIONERY SUNDRIES,Critical care,NHS LOGISTICS,1015070077,0.45,
Department of Health,Salisbury NHS Foundation Trust,22-Aug-14,PAPER ITEMS GENERAL STATIONERY SUNDRIES,Clinical Effctiveness Directorate,NHS LOGISTICS,1015070077,0.56,
Department of Health,Salisbury NHS Foundation Trust,22-Aug-14,PAPER ITEMS GENERAL STATIONERY SUNDRIES,Clinical Effctiveness Directorate,NHS LOGISTICS,1015070077,0.45,
Department of Health,Salisbury NHS Foundation Trust,22-Aug-14,PAPER ITEMS GENERAL STATIONERY SUNDRIES,Clinical Effctiveness Directorate,NHS LOGISTICS,1015070077,0.18,
Department of Health,Salisbury NHS Foundation Trust,22-Aug-14,PAPER ITEMS GENERAL STATIONERY SUNDRIES,Human Resources,NHS LOGISTICS,1015070077,7.11,
Department of Health,Salisbury NHS Foundation Trust,22-Aug-14,STATIONERY SUNDRIES,Human Resources,NHS LOGISTICS,1015070077,1.76,
Department of Health,Salisbury NHS Foundation Trust,22-Aug-14,STATIONERY SUNDRIES,Human Resources,NHS LOGISTICS,1015070077,3.29,
Department of Health,Salisbury NHS Foundation Trust,22-Aug-14,MEDSURGCONS - OTHER,Clinical Support and Family Services,NHS LOGISTICS,1015070077,9.35,
Department of Health,Salisbury NHS Foundation Trust,22-Aug-14,PAPER ITEMS GENERAL STATIONERY SUNDRIES,Clinical Support and Family Services,NHS LOGISTICS,1015070077,9.81,
Department of Health,Salisbury NHS Foundation Trust,22-Aug-14,PAPER ITEMS GENERAL STATIONERY SUNDRIES,Clinical Support and Family Services,NHS LOGISTICS,1015070077,4.6,
Department of Health,Salisbury NHS Foundation Trust,22-Aug-14,ANAESTHETIC EQUIPMENT ACCESSORIES,Surgery,NHS LOGISTICS,1015070077,11.17,
Department of Health,Salisbury NHS Foundation Trust,22-Aug-14,STATIONERY SUNDRIES,Medicine,NHS LOGISTICS,1015070077,0.29,
Department of Health,Salisbury NHS Foundation Trust,22-Aug-14,STATIONERY SUNDRIES,Medicine,NHS LOGISTICS,1015070077,0.19,
Department of Health,Salisbury NHS Foundation Trust,22-Aug-14,STATIONERY SUNDRIES,Medicine,NHS LOGISTICS,1015070077,0.11,
Department of Health,Salisbury NHS Foundation Trust,22-Aug-14,PATIENTS BEDWEAR UNISEX,Medicine,NHS LOGISTICS,1015070077,13.09,
Department of Health,Salisbury NHS Foundation Trust,22-Aug-14,PATIENTS BEDWEAR UNISEX,Medicine,NHS LOGISTICS,1015070077,13.09,
Department of Health,Salisbury NHS Foundation Trust,22-Aug-14,LAB EQUIP-LABORATORY APPARATUS,Clinical Support and Family Services,NHS LOGISTICS,1015070077,9.1,
Department of Health,Salisbury NHS Foundation Trust,22-Aug-14,PAPER ITEMS GENERAL STATIONERY SUNDRIES,Surgery,NHS LOGISTICS,1015070077,1.96,
Department of Health,Salisbury NHS Foundation Trust,22-Aug-14,MEDSURGCONS - OTHER,Critical care,NHS LOGISTICS,1015070077,6.08,
Department of Health,Salisbury NHS Foundation Trust,22-Aug-14,TISSUES HAND TOWELS & TOILET PAPER,Critical care,NHS LOGISTICS,1015070077,0.75,
Department of Health,Salisbury NHS Foundation Trust,22-Aug-14,DISPOSABLE THEATRE DRAPES WIPES,Critical care,NHS LOGISTICS,1015070077,0.65,
Department of Health,Salisbury NHS Foundation Trust,22-Aug-14,PAPER ITEMS GENERAL STATIONERY SUNDRIES,Critical care,NHS LOGISTICS,1015070077,0.56,
Department of Health,Salisbury NHS Foundation Trust,22-Aug-14,PAPER ITEMS GENERAL STATIONERY SUNDRIES,Critical care,NHS LOGISTICS,1015070077,0.53,
Department of Health,Salisbury NHS Foundation Trust,22-Aug-14,PAPER ITEMS GENERAL STATIONERY SUNDRIES,Critical care,NHS LOGISTICS,1015070077,5.56,
Department of Health,Salisbury NHS Foundation Trust,22-Aug-14,MEDSURGCONS - OTHER,Clinical Support and Family Services,NHS LOGISTICS,1015070077,5.54,
Department of Health,Salisbury NHS Foundation Trust,22-Aug-14,STATIONERY SUNDRIES,Clinical Support and Family Services,NHS LOGISTICS,1015070077,0.76,
Department of Health,Salisbury NHS Foundation Trust,22-Aug-14,PAPER ITEMS GENERAL STATIONERY SUNDRIES,Medicine,NHS LOGISTICS,1015070077,6.74,
Department of Health,Salisbury NHS Foundation Trust,22-Aug-14,PAPER ITEMS GENERAL STATIONERY SUNDRIES,Medicine,NHS LOGISTICS,1015070077,2.38,
Department of Health,Salisbury NHS Foundation Trust,22-Aug-14,STATIONERY SUNDRIES,Critical care,NHS LOGISTICS,1015070077,0.21,
Department of Health,Salisbury NHS Foundation Trust,22-Aug-14,DRESSINGS - PRE STERILE,Critical care,NHS LOGISTICS,1015070077,20.42,
Department of Health,Salisbury NHS Foundation Trust,22-Aug-14,STATIONERY SUNDRIES,Critical care,NHS LOGISTICS,1015070077,0.23,
Department of Health,Salisbury NHS Foundation Trust,22-Aug-14,STATIONERY SUNDRIES,Medicine,NHS LOGISTICS,1015070077,0.33,
Department of Health,Salisbury NHS Foundation Trust,22-Aug-14,STATIONERY SUNDRIES,Medicine,NHS LOGISTICS,1015070077,0.82,
Department of Health,Salisbury NHS Foundation Trust,22-Aug-14,STATIONERY SUNDRIES,Medicine,NHS LOGISTICS,1015070077,0.26,
Department of Health,Salisbury NHS Foundation Trust,22-Aug-14,PAPER ITEMS GENERAL STATIONERY SUNDRIES,Medicine,NHS LOGISTICS,1015070077,0.79,
Department of Health,Salisbury NHS Foundation Trust,22-Aug-14,STATIONERY SUNDRIES,Medicine,NHS LOGISTICS,1015070077,0.58,
Department of Health,Salisbury NHS Foundation Trust,22-Aug-14,STATIONERY SUNDRIES,Medicine,NHS LOGISTICS,1015070077,0.58,
Department of Health,Salisbury NHS Foundation Trust,22-Aug-14,STATIONERY SUNDRIES,Medicine,NHS LOGISTICS,1015070077,0.49,
Department of Health,Salisbury NHS Foundation Trust,22-Aug-14,STATIONERY SUNDRIES,Medicine,NHS LOGISTICS,1015070077,0.64,
Department of Health,Salisbury NHS Foundation Trust,22-Aug-14,STATIONERY SUNDRIES,Medicine,NHS LOGISTICS,1015070077,0.44,
Department of Health,Salisbury NHS Foundation Trust,22-Aug-14,STATIONERY SUNDRIES,Medicine,NHS LOGISTICS,1015070077,0.17,
Department of Health,Salisbury NHS Foundation Trust,22-Aug-14,STATIONERY SUNDRIES,Medicine,NHS LOGISTICS,1015070077,0.42,
Department of Health,Salisbury NHS Foundation Trust,22-Aug-14,STATIONERY SUNDRIES,Medicine,NHS LOGISTICS,1015070077,0.24,
Department of Health,Salisbury NHS Foundation Trust,22-Aug-14,STATIONERY SUNDRIES,Medicine,NHS LOGISTICS,1015070077,0.2,
Department of Health,Salisbury NHS Foundation Trust,22-Aug-14,PAPER ITEMS GENERAL STATIONERY SUNDRIES,Clinical Support and Family Services,NHS LOGISTICS,1015070077,0.42,
Department of Health,Salisbury NHS Foundation Trust,22-Aug-14,PAPER ITEMS GENERAL STATIONERY SUNDRIES,Clinical Support and Family Services,NHS LOGISTICS,1015070077,0.7,
Department of Health,Salisbury NHS Foundation Trust,22-Aug-14,STATIONERY SUNDRIES,Clinical Support and Family Services,NHS LOGISTICS,1015070077,3.99,
Department of Health,Salisbury NHS Foundation Trust,22-Aug-14,STATIONERY SUNDRIES,Clinical Support and Family Services,NHS LOGISTICS,1015070077,0.21,
Department of Health,Salisbury NHS Foundation Trust,22-Aug-14,PAPER ITEMS GENERAL STATIONERY SUNDRIES,Facilities Directorate,NHS LOGISTICS,1015070077,2.25,
Department of Health,Salisbury NHS Foundation Trust,22-Aug-14,STATIONERY SUNDRIES,Facilities Directorate,NHS LOGISTICS,1015070077,0.4,
Department of Health,Salisbury NHS Foundation Trust,22-Aug-14,STATIONERY SUNDRIES,Facilities Directorate,NHS LOGISTICS,1015070077,0.55,
Department of Health,Salisbury NHS Foundation Trust,22-Aug-14,STATIONERY SUNDRIES,Facilities Directorate,NHS LOGISTICS,1015070077,4.07,
Department of Health,Salisbury NHS Foundation Trust,22-Aug-14,STATIONERY SUNDRIES,Facilities Directorate,NHS LOGISTICS,1015070077,0.23,
Department of Health,Salisbury NHS Foundation Trust,22-Aug-14,M & S EQUIPELECTEQUIPINST - OTHER,Medicine,NHS LOGISTICS,1015070077,19.81,
Department of Health,Salisbury NHS Foundation Trust,22-Aug-14,DRESSINGS - PRE STERILE,Critical care,NHS LOGISTICS,1015070077,10.67,
Department of Health,Salisbury NHS Foundation Trust,22-Aug-14,DRESSINGS - PRE STERILE,Critical care,NHS LOGISTICS,1015070077,5.82,
Department of Health,Salisbury NHS Foundation Trust,22-Aug-14,SEATING GENERAL,Critical care,NHS LOGISTICS,1015070077,11.96,
Department of Health,Salisbury NHS Foundation Trust,22-Aug-14,NON DISPOSABLE THEATRE DRAPES WIPES,Clinical Support and Family Services,NHS LOGISTICS,1015070077,7.07,
Department of Health,Salisbury NHS Foundation Trust,22-Aug-14,PATIENT APPLIANCES,Medicine,NHS LOGISTICS,1015070077,2.43,
Department of Health,Salisbury NHS Foundation Trust,22-Aug-14,PATIENT APPLIANCES,Medicine,NHS LOGISTICS,1015070077,2.43,
Department of Health,Salisbury NHS Foundation Trust,22-Aug-14,PATIENT APPLIANCES,Medicine,NHS LOGISTICS,1015070077,2.43,
Department of Health,Salisbury NHS Foundation Trust,22-Aug-14,PATIENT APPLIANCES,Critical care,NHS LOGISTICS,1015070077,6.56,
Department of Health,Salisbury NHS Foundation Trust,22-Aug-14,PATIENT APPLIANCES,Critical care,NHS LOGISTICS,1015070077,1.09,
Department of Health,Salisbury NHS Foundation Trust,22-Aug-14,PATIENT APPLIANCES,Critical care,NHS LOGISTICS,1015070077,6.56,
Department of Health,Salisbury NHS Foundation Trust,22-Aug-14,PATIENT APPLIANCES,Critical care,NHS LOGISTICS,1015070077,6.56,
Department of Health,Salisbury NHS Foundation Trust,22-Aug-14,PATIENT APPLIANCES,Critical care,NHS LOGISTICS,1015070077,6.56,
Department of Health,Salisbury NHS Foundation Trust,22-Aug-14,PATIENT APPLIANCES,Critical care,NHS LOGISTICS,1015070077,6.56,
Department of Health,Salisbury NHS Foundation Trust,22-Aug-14,PATIENT APPLIANCES,Critical care,NHS LOGISTICS,1015070077,4.94,
Department of Health,Salisbury NHS Foundation Trust,22-Aug-14,PATIENT APPLIANCES,Critical care,NHS LOGISTICS,1015070077,4.94,
Department of Health,Salisbury NHS Foundation Trust,22-Aug-14,PATIENT APPLIANCES,Critical care,NHS LOGISTICS,1015070077,4.94,
Department of Health,Salisbury NHS Foundation Trust,22-Aug-14,PATIENT APPLIANCES,Critical care,NHS LOGISTICS,1015070077,4.94,
Department of Health,Salisbury NHS Foundation Trust,22-Aug-14,STATIONERY SUNDRIES,Clinical Effctiveness Directorate,NHS LOGISTICS,1015070077,0.04,
Department of Health,Salisbury NHS Foundation Trust,22-Aug-14,ELECTRICAL EQUIPMENT x,Clinical Effctiveness Directorate,NHS LOGISTICS,1015070077,0.33,
Department of Health,Salisbury NHS Foundation Trust,22-Aug-14,STATIONERY SUNDRIES,Clinical Effctiveness Directorate,NHS LOGISTICS,1015070077,0.04,
Department of Health,Salisbury NHS Foundation Trust,22-Aug-14,STATIONERY SUNDRIES,Clinical Effctiveness Directorate,NHS LOGISTICS,1015070077,0.25,
Department of Health,Salisbury NHS Foundation Trust,22-Aug-14,PAPER ITEMS GENERAL STATIONERY SUNDRIES,Clinical Effctiveness Directorate,NHS LOGISTICS,1015070077,1.05,
Department of Health,Salisbury NHS Foundation Trust,22-Aug-14,STATIONERY SUNDRIES,Clinical Effctiveness Directorate,NHS LOGISTICS,1015070077,0.21,
Department of Health,Salisbury NHS Foundation Trust,22-Aug-14,CLEANING MATERIALS PRODUCTS SUNDRIES,Clinical Effctiveness Directorate,NHS LOGISTICS,1015070077,1.68,
Department of Health,Salisbury NHS Foundation Trust,22-Aug-14,STATIONERY SUNDRIES,Clinical Effctiveness Directorate,NHS LOGISTICS,1015070077,0.21,
Department of Health,Salisbury NHS Foundation Trust,22-Aug-14,STATIONERY SUNDRIES,Clinical Effctiveness Directorate,NHS LOGISTICS,1015070077,0.21,
Department of Health,Salisbury NHS Foundation Trust,22-Aug-14,STATIONERY SUNDRIES,Clinical Effctiveness Directorate,NHS LOGISTICS,1015070077,0.08,
Department of Health,Salisbury NHS Foundation Trust,22-Aug-14,NON DISPOSABLE BED LINEN,Clinical Support and Family Services,NHS LOGISTICS,1015070077,2.26,
Department of Health,Salisbury NHS Foundation Trust,22-Aug-14,STATIONERY SUNDRIES,Human Resources,NHS LOGISTICS,1015070077,1.48,
Department of Health,Salisbury NHS Foundation Trust,22-Aug-14,REFUSE DISPOSAL - CLINICAL CONT SERVICES,Facilities Directorate,NHS LOGISTICS,1015070077,36.86,
Department of Health,Salisbury NHS Foundation Trust,22-Aug-14,TISSUES HAND TOWELS & TOILET PAPER,Clinical Support and Family Services,NHS LOGISTICS,1015070077,4.16,
Department of Health,Salisbury NHS Foundation Trust,22-Aug-14,MEDSURGCONS - OTHER,Clinical Support and Family Services,NHS LOGISTICS,1015070077,4.53,
Department of Health,Salisbury NHS Foundation Trust,22-Aug-14,ELECTRICAL EQUIPMENT x,Human Resources,NHS LOGISTICS,1015070077,0.33,
Department of Health,Salisbury NHS Foundation Trust,22-Aug-14,ELECTRICAL EQUIPMENT x,Human Resources,NHS LOGISTICS,1015070077,0.27,
Department of Health,Salisbury NHS Foundation Trust,22-Aug-14,STATIONERY SUNDRIES,Human Resources,NHS LOGISTICS,1015070077,0.23,
Department of Health,Salisbury NHS Foundation Trust,22-Aug-14,PAPER ITEMS GENERAL STATIONERY SUNDRIES,Medicine,NHS LOGISTICS,1015070077,2,
Department of Health,Salisbury NHS Foundation Trust,22-Aug-14,PAPER ITEMS GENERAL STATIONERY SUNDRIES,Critical care,NHS LOGISTICS,1015070077,3.8,
Department of Health,Salisbury NHS Foundation Trust,22-Aug-14,PATIENT APPLIANCES,Surgery,NHS LOGISTICS,1015070077,6.64,
Department of Health,Salisbury NHS Foundation Trust,22-Aug-14,PATIENT APPLIANCES,Surgery,NHS LOGISTICS,1015070077,5.01,
Department of Health,Salisbury NHS Foundation Trust,22-Aug-14,PATIENT APPLIANCES,Surgery,NHS LOGISTICS,1015070077,11.82,
Department of Health,Salisbury NHS Foundation Trust,22-Aug-14,BAGS SACKS - OTHER,Facilities Directorate,NHS LOGISTICS,1015070077,4.05,
Department of Health,Salisbury NHS Foundation Trust,22-Aug-14,CLEANING MATERIALS PRODUCTS SUNDRIES,Facilities Directorate,NHS LOGISTICS,1015070077,14.94,
Department of Health,Salisbury NHS Foundation Trust,22-Aug-14,LIQUID REFRESHMENTS,Facilities Directorate,NHS LOGISTICS,1015070077,1.53,
Department of Health,Salisbury NHS Foundation Trust,22-Aug-14,CLEANING MATERIALS PRODUCTS SUNDRIES,Facilities Directorate,NHS LOGISTICS,1015070077,5.71,
Department of Health,Salisbury NHS Foundation Trust,22-Aug-14,CLEANING MATERIALS PRODUCTS SUNDRIES,Facilities Directorate,NHS LOGISTICS,1015070077,1.41,
Department of Health,Salisbury NHS Foundation Trust,22-Aug-14,DRUGS,Facilities Directorate,NHS LOGISTICS,1015070077,6.67,
Department of Health,Salisbury NHS Foundation Trust,22-Aug-14,CLEANING MATERIALS PRODUCTS SUNDRIES,Facilities Directorate,NHS LOGISTICS,1015070077,5.85,
Department of Health,Salisbury NHS Foundation Trust,22-Aug-14,MEDSURGCONS - OTHER,Facilities Directorate,NHS LOGISTICS,1015070077,0.91,
Department of Health,Salisbury NHS Foundation Trust,22-Aug-14,MEDSURGCONS - OTHER,Facilities Directorate,NHS LOGISTICS,1015070077,0.91,
Department of Health,Salisbury NHS Foundation Trust,22-Aug-14,DISPOSABLE THEATRE DRAPES WIPES,Facilities Directorate,NHS LOGISTICS,1015070077,14.19,
Department of Health,Salisbury NHS Foundation Trust,22-Aug-14,PAPER ITEMS GENERAL STATIONERY SUNDRIES,Clinical Support and Family Services,NHS LOGISTICS,1015070077,4.6,
Department of Health,Salisbury NHS Foundation Trust,22-Aug-14,REFUSE DISPOSAL - CLINICAL CONT SERVICES,Facilities Directorate,NHS LOGISTICS,1015070077,36.86,
Department of Health,Salisbury NHS Foundation Trust,22-Aug-14,DRESSINGS - PRE STERILE,Critical care,NHS LOGISTICS,1015070077,0.45,
Department of Health,Salisbury NHS Foundation Trust,22-Aug-14,MEDSURGCONS-SUTURES,Critical care,NHS LOGISTICS,1015070077,5.39,
Department of Health,Salisbury NHS Foundation Trust,22-Aug-14,MEDSURGCONS-SUTURES,Critical care,NHS LOGISTICS,1015070077,11.2,
Department of Health,Salisbury NHS Foundation Trust,22-Aug-14,DRESSINGS - PRE STERILE,Critical care,NHS LOGISTICS,1015070077,1.3,
Department of Health,Salisbury NHS Foundation Trust,22-Aug-14,MEDSURGCONS-SUTURES,Critical care,NHS LOGISTICS,1015070077,18.04,
Department of Health,Salisbury NHS Foundation Trust,22-Aug-14,LAB EQUIP-LABORATORY APPARATUS,Critical care,NHS LOGISTICS,1015070077,0.45,
Department of Health,Salisbury NHS Foundation Trust,22-Aug-14,OTHER MEDICAL SUPPLIES,Clinical Support and Family Services,NHS LOGISTICS,1015070077,3.31,
Department of Health,Salisbury NHS Foundation Trust,22-Aug-14,MEDSURGCONS - OTHER,Clinical Support and Family Services,NHS LOGISTICS,1015070077,1.73,
Department of Health,Salisbury NHS Foundation Trust,22-Aug-14,DRUGS,Clinical Support and Family Services,NHS LOGISTICS,1015070077,1.98,
Department of Health,Salisbury NHS Foundation Trust,22-Aug-14,DISPOSABLE THEATRE DRAPES WIPES,Clinical Support and Family Services,NHS LOGISTICS,1015070077,0.65,
Department of Health,Salisbury NHS Foundation Trust,22-Aug-14,OTHER MEDICAL SUPPLIES,Medicine,NHS LOGISTICS,1015070077,7.83,
Department of Health,Salisbury NHS Foundation Trust,22-Aug-14,PATIENTS INCONTINENCE,Medicine,NHS LOGISTICS,1015070077,1.76,
Department of Health,Salisbury NHS Foundation Trust,22-Aug-14,MEDSURGCONS - OTHER,Medicine,NHS LOGISTICS,1015070077,1.25,
Department of Health,Salisbury NHS Foundation Trust,22-Aug-14,MEDSURGCONS - OTHER,Medicine,NHS LOGISTICS,1015070077,2.5,
Department of Health,Salisbury NHS Foundation Trust,22-Aug-14,MEDSURGCONS - OTHER,Medicine,NHS LOGISTICS,1015070077,1.49,
Department of Health,Salisbury NHS Foundation Trust,22-Aug-14,TISSUES HAND TOWELS & TOILET PAPER,Medicine,NHS LOGISTICS,1015070077,0.07,
Department of Health,Salisbury NHS Foundation Trust,22-Aug-14,SURGICAL INSTRUMENTS: GENERAL,Medicine,NHS LOGISTICS,1015070077,0.94,
Department of Health,Salisbury NHS Foundation Trust,22-Aug-14,NON DISPOSABLE BED LINEN,Medicine,NHS LOGISTICS,1015070077,2.26,
Department of Health,Salisbury NHS Foundation Trust,22-Aug-14,PATIENT APPLIANCES,Medicine,NHS LOGISTICS,1015070077,1.63,
Department of Health,Salisbury NHS Foundation Trust,22-Aug-14,LAB EQUIP-LABORATORY APPARATUS,Clinical Support and Family Services,NHS LOGISTICS,1015070077,7.57,
Department of Health,Salisbury NHS Foundation Trust,22-Aug-14,LAB EQUIP-LABORATORY APPARATUS,Clinical Support and Family Services,NHS LOGISTICS,1015070077,59.33,
Department of Health,Salisbury NHS Foundation Trust,22-Aug-14,LAB EQUIP-LABORATORY APPARATUS,Clinical Support and Family Services,NHS LOGISTICS,1015070077,18.11,
Department of Health,Salisbury NHS Foundation Trust,22-Aug-14,LAB EQUIP-LABORATORY APPARATUS,Clinical Support and Family Services,NHS LOGISTICS,1015070077,1.29,
Department of Health,Salisbury NHS Foundation Trust,22-Aug-14,LAB EQUIP-LABORATORY APPARATUS,Clinical Support and Family Services,NHS LOGISTICS,1015070077,131.02,
Department of Health,Salisbury NHS Foundation Trust,22-Aug-14,LAB EQUIP-LABORATORY APPARATUS,Clinical Support and Family Services,NHS LOGISTICS,1015070077,12.32,
Department of Health,Salisbury NHS Foundation Trust,22-Aug-14,LAB EQUIP-LABORATORY APPARATUS,Clinical Support and Family Services,NHS LOGISTICS,1015070077,18.84,
Department of Health,Salisbury NHS Foundation Trust,22-Aug-14,LAB EQUIP-ANALYSERS,Clinical Support and Family Services,NHS LOGISTICS,1015070077,2.04,
Department of Health,Salisbury NHS Foundation Trust,22-Aug-14,LAB EQUIP-LABORATORY APPARATUS,Clinical Support and Family Services,NHS LOGISTICS,1015070077,46.88,
Department of Health,Salisbury NHS Foundation Trust,22-Aug-14,LAB EQUIP-LABORATORY APPARATUS,Clinical Support and Family Services,NHS LOGISTICS,1015070077,14.77,
Department of Health,Salisbury NHS Foundation Trust,22-Aug-14,OTHER MEDICAL SUPPLIES,Clinical Support and Family Services,NHS LOGISTICS,1015070077,100.1,
Department of Health,Salisbury NHS Foundation Trust,22-Aug-14,OTHER MEDICAL SUPPLIES,Clinical Support and Family Services,NHS LOGISTICS,1015070077,18.2,
Department of Health,Salisbury NHS Foundation Trust,22-Aug-14,OTHER MEDICAL SUPPLIES,Medicine,NHS LOGISTICS,1015070077,4.42,
Department of Health,Salisbury NHS Foundation Trust,22-Aug-14,MEDSURGCONS - OTHER,Medicine,NHS LOGISTICS,1015070077,1.25,
Department of Health,Salisbury NHS Foundation Trust,22-Aug-14,MEDSURGCONS - OTHER,Medicine,NHS LOGISTICS,1015070077,1.25,
Department of Health,Salisbury NHS Foundation Trust,22-Aug-14,PATIENTS INCONTINENCE,Medicine,NHS LOGISTICS,1015070077,0.86,
Department of Health,Salisbury NHS Foundation Trust,22-Aug-14,TUBES,Medicine,NHS LOGISTICS,1015070077,1.24,
Department of Health,Salisbury NHS Foundation Trust,22-Aug-14,PATIENTS INCONTINENCE,Medicine,NHS LOGISTICS,1015070077,2.02,
Department of Health,Salisbury NHS Foundation Trust,22-Aug-14,MEDSURGCONS - OTHER,Medicine,NHS LOGISTICS,1015070077,1.49,
Department of Health,Salisbury NHS Foundation Trust,22-Aug-14,TISSUES HAND TOWELS & TOILET PAPER,Medicine,NHS LOGISTICS,1015070077,0.15,
Department of Health,Salisbury NHS Foundation Trust,22-Aug-14,NON DISPOSABLE BED LINEN,Medicine,NHS LOGISTICS,1015070077,1.13,
Department of Health,Salisbury NHS Foundation Trust,22-Aug-14,PATIENT APPLIANCES,Medicine,NHS LOGISTICS,1015070077,0.37,
Department of Health,Salisbury NHS Foundation Trust,22-Aug-14,DISPOSABLE THEATRE DRAPES WIPES,Medicine,NHS LOGISTICS,1015070077,0.65,
Department of Health,Salisbury NHS Foundation Trust,22-Aug-14,OTHER MEDICAL SUPPLIES,Clinical Support and Family Services,NHS LOGISTICS,1015070077,16.34,
Department of Health,Salisbury NHS Foundation Trust,22-Aug-14,BABY TEXTURE MODIFIED FOODS,Clinical Support and Family Services,NHS LOGISTICS,1015070077,5.91,
Department of Health,Salisbury NHS Foundation Trust,22-Aug-14,MEDSURGCONS - OTHER,Clinical Support and Family Services,NHS LOGISTICS,1015070077,2.98,
Department of Health,Salisbury NHS Foundation Trust,22-Aug-14,NON DISPOSABLE BED LINEN,Clinical Support and Family Services,NHS LOGISTICS,1015070077,2.26,
Department of Health,Salisbury NHS Foundation Trust,22-Aug-14,TISSUES HAND TOWELS & TOILET PAPER,Clinical Support and Family Services,NHS LOGISTICS,1015070077,2.08,
Department of Health,Salisbury NHS Foundation Trust,22-Aug-14,DRESSINGS - PRE STERILE,Clinical Support and Family Services,NHS LOGISTICS,1015070077,0.14,
Department of Health,Salisbury NHS Foundation Trust,22-Aug-14,MEDSURGCONS - OTHER,Clinical Support and Family Services,NHS LOGISTICS,1015070077,1.49,
Department of Health,Salisbury NHS Foundation Trust,22-Aug-14,TISSUES HAND TOWELS & TOILET PAPER,Clinical Support and Family Services,NHS LOGISTICS,1015070077,1.13,
Department of Health,Salisbury NHS Foundation Trust,22-Aug-14,TISSUES HAND TOWELS & TOILET PAPER,Clinical Support and Family Services,NHS LOGISTICS,1015070077,0.19,
Department of Health,Salisbury NHS Foundation Trust,22-Aug-14,OTHER MEDICAL SUPPLIES,Clinical Support and Family Services,NHS LOGISTICS,1015070077,0.94,
Department of Health,Salisbury NHS Foundation Trust,22-Aug-14,DRESSINGS - PRE STERILE,Clinical Support and Family Services,NHS LOGISTICS,1015070077,0.27,
Department of Health,Salisbury NHS Foundation Trust,22-Aug-14,DRESSINGS - PRE STERILE,Clinical Support and Family Services,NHS LOGISTICS,1015070077,0.14,
Department of Health,Salisbury NHS Foundation Trust,22-Aug-14,NON DISPOSABLE BED LINEN,Clinical Support and Family Services,NHS LOGISTICS,1015070077,1.13,
Department of Health,Salisbury NHS Foundation Trust,22-Aug-14,OTHER MEDICAL SUPPLIES,Medicine,NHS LOGISTICS,1015070077,1.77,
Department of Health,Salisbury NHS Foundation Trust,22-Aug-14,TISSUES HAND TOWELS & TOILET PAPER,Medicine,NHS LOGISTICS,1015070077,0.19,
Department of Health,Salisbury NHS Foundation Trust,22-Aug-14,MEDSURGCONS - OTHER,Medicine,NHS LOGISTICS,1015070077,0.91,
Department of Health,Salisbury NHS Foundation Trust,22-Aug-14,MEDSURGCONS - OTHER,Medicine,NHS LOGISTICS,1015070077,0.91,
Department of Health,Salisbury NHS Foundation Trust,22-Aug-14,MEDSURGCONS - OTHER,Medicine,NHS LOGISTICS,1015070077,3.13,
Department of Health,Salisbury NHS Foundation Trust,22-Aug-14,MEDSURGCONS - OTHER,Medicine,NHS LOGISTICS,1015070077,1.49,
Department of Health,Salisbury NHS Foundation Trust,22-Aug-14,NON DISPOSABLE BED LINEN,Medicine,NHS LOGISTICS,1015070077,0.57,
Department of Health,Salisbury NHS Foundation Trust,22-Aug-14,TOILETRIES PERSONAL HYGIENE PRODUCTS,Clinical Support and Family Services,NHS LOGISTICS,1015070077,0.15,
Department of Health,Salisbury NHS Foundation Trust,22-Aug-14,PATIENT APPLIANCES,Clinical Support and Family Services,NHS LOGISTICS,1015070077,4.57,
Department of Health,Salisbury NHS Foundation Trust,22-Aug-14,TISSUES HAND TOWELS & TOILET PAPER,Clinical Support and Family Services,NHS LOGISTICS,1015070077,1.13,
Department of Health,Salisbury NHS Foundation Trust,22-Aug-14,PATIENT APPLIANCES,Clinical Support and Family Services,NHS LOGISTICS,1015070077,3.62,
Department of Health,Salisbury NHS Foundation Trust,22-Aug-14,OTHER MEDICAL SUPPLIES,Clinical Support and Family Services,NHS LOGISTICS,1015070077,0.94,
Department of Health,Salisbury NHS Foundation Trust,22-Aug-14,OTHER MEDICAL SUPPLIES,Clinical Support and Family Services,NHS LOGISTICS,1015070077,0.94,
Department of Health,Salisbury NHS Foundation Trust,22-Aug-14,PAPER ITEMS GENERAL STATIONERY SUNDRIES,Clinical Support and Family Services,NHS LOGISTICS,1015070077,1.6,
Department of Health,Salisbury NHS Foundation Trust,22-Aug-14,PAPER ITEMS GENERAL STATIONERY SUNDRIES,Clinical Support and Family Services,NHS LOGISTICS,1015070077,1.23,
Department of Health,Salisbury NHS Foundation Trust,22-Aug-14,PAPER ITEMS GENERAL STATIONERY SUNDRIES,Clinical Support and Family Services,NHS LOGISTICS,1015070077,2.48,
Department of Health,Salisbury NHS Foundation Trust,22-Aug-14,DRESSINGS - PRE STERILE,Clinical Support and Family Services,NHS LOGISTICS,1015070077,2.02,
Department of Health,Salisbury NHS Foundation Trust,22-Aug-14,TISSUES HAND TOWELS & TOILET PAPER,Surgery,NHS LOGISTICS,1015070077,2.08,
Department of Health,Salisbury NHS Foundation Trust,22-Aug-14,SURGICAL INSTRUMENTS: DISPOSABLE,Surgery,NHS LOGISTICS,1015070077,26.08,
Department of Health,Salisbury NHS Foundation Trust,22-Aug-14,OTHER MEDICAL SUPPLIES,Medicine,NHS LOGISTICS,1015070077,3.53,
Department of Health,Salisbury NHS Foundation Trust,22-Aug-14,M & S EQUIPELECTEQUIPINST - OTHER,Medicine,NHS LOGISTICS,1015070077,3.23,
Department of Health,Salisbury NHS Foundation Trust,22-Aug-14,PATIENTS INCONTINENCE,Medicine,NHS LOGISTICS,1015070077,1.72,
Department of Health,Salisbury NHS Foundation Trust,22-Aug-14,PATIENTS INCONTINENCE,Medicine,NHS LOGISTICS,1015070077,8.08,
Department of Health,Salisbury NHS Foundation Trust,22-Aug-14,PATIENT APPLIANCES,Medicine,NHS LOGISTICS,1015070077,0.67,
Department of Health,Salisbury NHS Foundation Trust,22-Aug-14,PATIENT APPLIANCES,Medicine,NHS LOGISTICS,1015070077,0.67,
Department of Health,Salisbury NHS Foundation Trust,22-Aug-14,PATIENT APPLIANCES,Medicine,NHS LOGISTICS,1015070077,0.67,
Department of Health,Salisbury NHS Foundation Trust,22-Aug-14,PATIENT APPLIANCES,Medicine,NHS LOGISTICS,1015070077,0.83,
Department of Health,Salisbury NHS Foundation Trust,22-Aug-14,PATIENT APPLIANCES,Medicine,NHS LOGISTICS,1015070077,0.83,
Department of Health,Salisbury NHS Foundation Trust,22-Aug-14,NON DISPOSABLE BED LINEN,Medicine,NHS LOGISTICS,1015070077,2.26,
Department of Health,Salisbury NHS Foundation Trust,22-Aug-14,PATIENT APPLIANCES,Medicine,NHS LOGISTICS,1015070077,1.63,
Department of Health,Salisbury NHS Foundation Trust,22-Aug-14,PATIENT APPLIANCES,Medicine,NHS LOGISTICS,1015070077,1.63,
Department of Health,Salisbury NHS Foundation Trust,22-Aug-14,PATIENT APPLIANCES,Medicine,NHS LOGISTICS,1015070077,1.47,
Department of Health,Salisbury NHS Foundation Trust,22-Aug-14,DISPOSABLE THEATRE DRAPES WIPES,Medicine,NHS LOGISTICS,1015070077,0.65,
Department of Health,Salisbury NHS Foundation Trust,22-Aug-14,OTHER MEDICAL SUPPLIES,Medicine,NHS LOGISTICS,1015070077,0.35,
Department of Health,Salisbury NHS Foundation Trust,22-Aug-14,M & S EQUIPELECTEQUIPINST - OTHER,Medicine,NHS LOGISTICS,1015070077,21.03,
Department of Health,Salisbury NHS Foundation Trust,22-Aug-14,MEDSURGCONS - OTHER,Medicine,NHS LOGISTICS,1015070077,0.6,
Department of Health,Salisbury NHS Foundation Trust,22-Aug-14,MED SURG EQUIP REP MAINT CLEANING,Medicine,NHS LOGISTICS,1015070077,8.27,
Department of Health,Salisbury NHS Foundation Trust,22-Aug-14,MEDSURGCONS - OTHER,Medicine,NHS LOGISTICS,1015070077,1.04,
Department of Health,Salisbury NHS Foundation Trust,22-Aug-14,NON DISPOSABLE BED LINEN,Medicine,NHS LOGISTICS,1015070077,1.13,
Department of Health,Salisbury NHS Foundation Trust,22-Aug-14,DISPOSABLE THEATRE DRAPES WIPES,Medicine,NHS LOGISTICS,1015070077,2.52,
Department of Health,Salisbury NHS Foundation Trust,22-Aug-14,STATIONERY SUNDRIES,Human Resources,NHS LOGISTICS,1015070077,2.64,
Department of Health,Salisbury NHS Foundation Trust,22-Aug-14,OTHER MEDICAL SUPPLIES,Medicine,NHS LOGISTICS,1015070077,1.77,
Department of Health,Salisbury NHS Foundation Trust,22-Aug-14,MEDSURGCONS - OTHER,Medicine,NHS LOGISTICS,1015070077,1.25,
Department of Health,Salisbury NHS Foundation Trust,22-Aug-14,MEDSURGCONS - OTHER,Medicine,NHS LOGISTICS,1015070077,1.88,
Department of Health,Salisbury NHS Foundation Trust,22-Aug-14,TISSUES HAND TOWELS & TOILET PAPER,Medicine,NHS LOGISTICS,1015070077,0.38,
Department of Health,Salisbury NHS Foundation Trust,22-Aug-14,PATIENTS INCONTINENCE,Medicine,NHS LOGISTICS,1015070077,4.04,
Department of Health,Salisbury NHS Foundation Trust,22-Aug-14,PATIENT APPLIANCES,Medicine,NHS LOGISTICS,1015070077,0.67,
Department of Health,Salisbury NHS Foundation Trust,22-Aug-14,PATIENT APPLIANCES,Medicine,NHS LOGISTICS,1015070077,0.67,
Department of Health,Salisbury NHS Foundation Trust,22-Aug-14,PATIENT APPLIANCES,Medicine,NHS LOGISTICS,1015070077,0.67,
Department of Health,Salisbury NHS Foundation Trust,22-Aug-14,TISSUES HAND TOWELS & TOILET PAPER,Medicine,NHS LOGISTICS,1015070077,0.07,
Department of Health,Salisbury NHS Foundation Trust,22-Aug-14,NON DISPOSABLE BED LINEN,Medicine,NHS LOGISTICS,1015070077,2.82,
Department of Health,Salisbury NHS Foundation Trust,22-Aug-14,PATIENT APPLIANCES,Medicine,NHS LOGISTICS,1015070077,1.1,
Department of Health,Salisbury NHS Foundation Trust,22-Aug-14,COOKING & KITCHEN UTENSILS,Surgery,NHS LOGISTICS,1015070077,3.4,
Department of Health,Salisbury NHS Foundation Trust,22-Aug-14,DRUGS,Surgery,NHS LOGISTICS,1015070077,3.42,
Department of Health,Salisbury NHS Foundation Trust,22-Aug-14,M & S EQUIPELECTEQUIPINST - OTHER,Surgery,NHS LOGISTICS,1015070077,7.7,
Department of Health,Salisbury NHS Foundation Trust,22-Aug-14,MEDSURGCONS - OTHER,Surgery,NHS LOGISTICS,1015070077,2.15,
Department of Health,Salisbury NHS Foundation Trust,22-Aug-14,MEDSURGCONS - OTHER,Surgery,NHS LOGISTICS,1015070077,2.15,
Department of Health,Salisbury NHS Foundation Trust,22-Aug-14,MEDSURGCONS - OTHER,Surgery,NHS LOGISTICS,1015070077,2.15,
Department of Health,Salisbury NHS Foundation Trust,22-Aug-14,MEDSURGCONS - OTHER,Surgery,NHS LOGISTICS,1015070077,4.2,
Department of Health,Salisbury NHS Foundation Trust,22-Aug-14,CLEANING MATERIALS PRODUCTS SUNDRIES,Surgery,NHS LOGISTICS,1015070077,0.71,
Department of Health,Salisbury NHS Foundation Trust,22-Aug-14,DISPOSABLE THEATRE DRAPES WIPES,Surgery,NHS LOGISTICS,1015070077,1.3,
Department of Health,Salisbury NHS Foundation Trust,22-Aug-14,MEDSURGCONS - OTHER,Medicine,NHS LOGISTICS,1015070077,0.3,
Department of Health,Salisbury NHS Foundation Trust,22-Aug-14,OTHER MEDICAL SUPPLIES,Surgery,NHS LOGISTICS,1015070077,4.42,
Department of Health,Salisbury NHS Foundation Trust,22-Aug-14,MEDSURGCONS - OTHER,Surgery,NHS LOGISTICS,1015070077,2.5,
Department of Health,Salisbury NHS Foundation Trust,22-Aug-14,MEDSURGCONS - OTHER,Surgery,NHS LOGISTICS,1015070077,12.17,
Department of Health,Salisbury NHS Foundation Trust,22-Aug-14,DRESSINGS - PRE STERILE,Surgery,NHS LOGISTICS,1015070077,0.8,
Department of Health,Salisbury NHS Foundation Trust,22-Aug-14,OPTICAL  -  OTHER,Surgery,NHS LOGISTICS,1015070077,10.6,
Department of Health,Salisbury NHS Foundation Trust,22-Aug-14,NON DISPOSABLE THEATRE DRAPES WIPES,Surgery,NHS LOGISTICS,1015070077,8.35,
Department of Health,Salisbury NHS Foundation Trust,22-Aug-14,BEVERAGES & AMBIENT FOOD,Surgery,NHS LOGISTICS,1015070077,0.17,
Department of Health,Salisbury NHS Foundation Trust,22-Aug-14,DRUGS,Surgery,NHS LOGISTICS,1015070077,2.33,
Department of Health,Salisbury NHS Foundation Trust,22-Aug-14,MEDSURGCONS-SUTURES,Surgery,NHS LOGISTICS,1015070077,5.34,
Department of Health,Salisbury NHS Foundation Trust,22-Aug-14,MEDSURGCONS-SUTURES,Surgery,NHS LOGISTICS,1015070077,4.86,
Department of Health,Salisbury NHS Foundation Trust,22-Aug-14,PATIENT APPLIANCES,Surgery,NHS LOGISTICS,1015070077,1.63,
Department of Health,Salisbury NHS Foundation Trust,22-Aug-14,PATIENT APPLIANCES,Surgery,NHS LOGISTICS,1015070077,1.63,
Department of Health,Salisbury NHS Foundation Trust,22-Aug-14,DRESSINGS - PRE STERILE,Surgery,NHS LOGISTICS,1015070077,0.07,
Department of Health,Salisbury NHS Foundation Trust,22-Aug-14,NON DISPOSABLE BED LINEN,Clinical Support and Family Services,NHS LOGISTICS,1015070077,2.93,
Department of Health,Salisbury NHS Foundation Trust,22-Aug-14,OTHER MEDICAL SUPPLIES,Clinical Support and Family Services,NHS LOGISTICS,1015070077,0.88,
Department of Health,Salisbury NHS Foundation Trust,22-Aug-14,MED SURG EQUIP REP MAINT CLEANING,Clinical Support and Family Services,NHS LOGISTICS,1015070077,2.22,
Department of Health,Salisbury NHS Foundation Trust,22-Aug-14,NON DISPOSABLE BED LINEN,Clinical Support and Family Services,NHS LOGISTICS,1015070077,4.52,
Department of Health,Salisbury NHS Foundation Trust,22-Aug-14,PATIENT APPLIANCES,Clinical Support and Family Services,NHS LOGISTICS,1015070077,1.1,
Department of Health,Salisbury NHS Foundation Trust,22-Aug-14,DISPOSABLE THEATRE DRAPES WIPES,Clinical Support and Family Services,NHS LOGISTICS,1015070077,0.65,
Department of Health,Salisbury NHS Foundation Trust,22-Aug-14,DRESSINGS - PRE STERILE,Surgery,NHS LOGISTICS,1015070077,1.9,
Department of Health,Salisbury NHS Foundation Trust,22-Aug-14,DRESSINGS - PRE STERILE,Surgery,NHS LOGISTICS,1015070077,0.46,
Department of Health,Salisbury NHS Foundation Trust,22-Aug-14,DRESSINGS - PRE STERILE,Surgery,NHS LOGISTICS,1015070077,0.67,
Department of Health,Salisbury NHS Foundation Trust,22-Aug-14,DRESSINGS - PRE STERILE,Surgery,NHS LOGISTICS,1015070077,2.04,
Department of Health,Salisbury NHS Foundation Trust,22-Aug-14,DRESSINGS - PRE STERILE,Surgery,NHS LOGISTICS,1015070077,2.04,
Department of Health,Salisbury NHS Foundation Trust,22-Aug-14,TISSUES HAND TOWELS & TOILET PAPER,Surgery,NHS LOGISTICS,1015070077,1.13,
Department of Health,Salisbury NHS Foundation Trust,22-Aug-14,TISSUES HAND TOWELS & TOILET PAPER,Surgery,NHS LOGISTICS,1015070077,2.08,
Department of Health,Salisbury NHS Foundation Trust,22-Aug-14,PATIENT APPLIANCES,Surgery,NHS LOGISTICS,1015070077,4.28,
Department of Health,Salisbury NHS Foundation Trust,22-Aug-14,MEDSURGCONS - OTHER,Medicine,NHS LOGISTICS,1015070077,1.32,
Department of Health,Salisbury NHS Foundation Trust,22-Aug-14,MEDSURGCONS - OTHER,Medicine,NHS LOGISTICS,1015070077,1.97,
Department of Health,Salisbury NHS Foundation Trust,22-Aug-14,MEDSURGCONS - OTHER,Clinical Support and Family Services,NHS LOGISTICS,1015070077,1.25,
Department of Health,Salisbury NHS Foundation Trust,22-Aug-14,MEDSURGCONS - OTHER,Clinical Support and Family Services,NHS LOGISTICS,1015070077,1.25,
Department of Health,Salisbury NHS Foundation Trust,22-Aug-14,TOILETRIES PERSONAL HYGIENE PRODUCTS,Clinical Support and Family Services,NHS LOGISTICS,1015070077,0.77,
Department of Health,Salisbury NHS Foundation Trust,22-Aug-14,TISSUES HAND TOWELS & TOILET PAPER,Surgery,NHS LOGISTICS,1015070077,0.75,
Department of Health,Salisbury NHS Foundation Trust,22-Aug-14,OTHER MEDICAL SUPPLIES,Critical care,NHS LOGISTICS,1015070077,7.83,
Department of Health,Salisbury NHS Foundation Trust,22-Aug-14,MEDSURGCONS - OTHER,Critical care,NHS LOGISTICS,1015070077,3.75,
Department of Health,Salisbury NHS Foundation Trust,22-Aug-14,OTHER MEDICAL SUPPLIES,Critical care,NHS LOGISTICS,1015070077,1.14,
Department of Health,Salisbury NHS Foundation Trust,22-Aug-14,PATIENTS INCONTINENCE,Critical care,NHS LOGISTICS,1015070077,3.63,
Department of Health,Salisbury NHS Foundation Trust,22-Aug-14,PATIENT APPLIANCES,Critical care,NHS LOGISTICS,1015070077,0.83,
Department of Health,Salisbury NHS Foundation Trust,22-Aug-14,MEDSURGCONS - OTHER,Critical care,NHS LOGISTICS,1015070077,3.58,
Department of Health,Salisbury NHS Foundation Trust,22-Aug-14,MEDSURGCONS - OTHER,Critical care,NHS LOGISTICS,1015070077,1.49,
Department of Health,Salisbury NHS Foundation Trust,22-Aug-14,TOILETRIES PERSONAL HYGIENE PRODUCTS,Critical care,NHS LOGISTICS,1015070077,0.64,
Department of Health,Salisbury NHS Foundation Trust,22-Aug-14,NON DISPOSABLE BED LINEN,Critical care,NHS LOGISTICS,1015070077,6.78,
Department of Health,Salisbury NHS Foundation Trust,22-Aug-14,PATIENT APPLIANCES,Critical care,NHS LOGISTICS,1015070077,1.1,
Department of Health,Salisbury NHS Foundation Trust,22-Aug-14,DISPOSABLE THEATRE DRAPES WIPES,Critical care,NHS LOGISTICS,1015070077,0.65,
Department of Health,Salisbury NHS Foundation Trust,22-Aug-14,DISPOSABLE THEATRE DRAPES WIPES,Critical care,NHS LOGISTICS,1015070077,2.92,
Department of Health,Salisbury NHS Foundation Trust,22-Aug-14,OTHER MEDICAL SUPPLIES,Medicine,NHS LOGISTICS,1015070077,0.88,
Department of Health,Salisbury NHS Foundation Trust,22-Aug-14,PATIENTS INCONTINENCE,Medicine,NHS LOGISTICS,1015070077,1.82,
Department of Health,Salisbury NHS Foundation Trust,22-Aug-14,TISSUES HAND TOWELS & TOILET PAPER,Medicine,NHS LOGISTICS,1015070077,1.13,
Department of Health,Salisbury NHS Foundation Trust,22-Aug-14,TISSUES HAND TOWELS & TOILET PAPER,Medicine,NHS LOGISTICS,1015070077,0.28,
Department of Health,Salisbury NHS Foundation Trust,22-Aug-14,PATIENTS INCONTINENCE,Medicine,NHS LOGISTICS,1015070077,1.01,
Department of Health,Salisbury NHS Foundation Trust,22-Aug-14,PATIENT APPLIANCES,Medicine,NHS LOGISTICS,1015070077,0.67,
Department of Health,Salisbury NHS Foundation Trust,22-Aug-14,PATIENT APPLIANCES,Medicine,NHS LOGISTICS,1015070077,0.83,
Department of Health,Salisbury NHS Foundation Trust,22-Aug-14,PATIENT APPLIANCES,Medicine,NHS LOGISTICS,1015070077,0.83,
Department of Health,Salisbury NHS Foundation Trust,22-Aug-14,PATIENT APPLIANCES,Medicine,NHS LOGISTICS,1015070077,0.83,
Department of Health,Salisbury NHS Foundation Trust,22-Aug-14,MEDSURGCONS - OTHER,Medicine,NHS LOGISTICS,1015070077,3.58,
Department of Health,Salisbury NHS Foundation Trust,22-Aug-14,MEDSURGCONS - OTHER,Medicine,NHS LOGISTICS,1015070077,2.81,
Department of Health,Salisbury NHS Foundation Trust,22-Aug-14,NON DISPOSABLE BED LINEN,Medicine,NHS LOGISTICS,1015070077,2.26,
Department of Health,Salisbury NHS Foundation Trust,22-Aug-14,PATIENT APPLIANCES,Medicine,NHS LOGISTICS,1015070077,0.73,
Department of Health,Salisbury NHS Foundation Trust,22-Aug-14,DISPOSABLE THEATRE DRAPES WIPES,Medicine,NHS LOGISTICS,1015070077,0.65,
Department of Health,Salisbury NHS Foundation Trust,22-Aug-14,DRESSINGS - PRE STERILE,Medicine,NHS LOGISTICS,1015070077,21.96,
Department of Health,Salisbury NHS Foundation Trust,22-Aug-14,OTHER MEDICAL SUPPLIES,Critical care,NHS LOGISTICS,1015070077,4.42,
Department of Health,Salisbury NHS Foundation Trust,22-Aug-14,DRESSINGS - PRE STERILE,Critical care,NHS LOGISTICS,1015070077,3.06,
Department of Health,Salisbury NHS Foundation Trust,22-Aug-14,DRESSINGS - PRE STERILE,Critical care,NHS LOGISTICS,1015070077,1.81,
Department of Health,Salisbury NHS Foundation Trust,22-Aug-14,DRESSINGS - PRE STERILE,Critical care,NHS LOGISTICS,1015070077,1.23,
Department of Health,Salisbury NHS Foundation Trust,22-Aug-14,MEDSURGCONS - OTHER,Critical care,NHS LOGISTICS,1015070077,0.63,
Department of Health,Salisbury NHS Foundation Trust,22-Aug-14,MEDSURGCONS - OTHER,Critical care,NHS LOGISTICS,1015070077,0.63,
Department of Health,Salisbury NHS Foundation Trust,22-Aug-14,TISSUES HAND TOWELS & TOILET PAPER,Critical care,NHS LOGISTICS,1015070077,0.38,
Department of Health,Salisbury NHS Foundation Trust,22-Aug-14,ELECTRICAL EQUIPMENT x,Medicine,NHS LOGISTICS,1015070077,1,
Department of Health,Salisbury NHS Foundation Trust,22-Aug-14,ELECTRICAL EQUIPMENT x,Medicine,NHS LOGISTICS,1015070077,0.8,
Department of Health,Salisbury NHS Foundation Trust,22-Aug-14,STATIONERY SUNDRIES,Medicine,NHS LOGISTICS,1015070077,0.12,
Department of Health,Salisbury NHS Foundation Trust,22-Aug-14,STATIONERY SUNDRIES,Medicine,NHS LOGISTICS,1015070077,0.06,
Department of Health,Salisbury NHS Foundation Trust,22-Aug-14,M & S EQUIPELECTEQUIPINST - OTHER,Clinical Support and Family Services,NHS LOGISTICS,1015070077,24.1,
Department of Health,Salisbury NHS Foundation Trust,22-Aug-14,TISSUES HAND TOWELS & TOILET PAPER,Human Resources,NHS LOGISTICS,1015070077,1.49,
Department of Health,Salisbury NHS Foundation Trust,22-Aug-14,DRESSINGS - PRE STERILE,Clinical Support and Family Services,NHS LOGISTICS,1015070077,41.67,
Department of Health,Salisbury NHS Foundation Trust,22-Aug-14,DRESSINGS - PRE STERILE,Clinical Support and Family Services,NHS LOGISTICS,1015070077,28.61,
Department of Health,Salisbury NHS Foundation Trust,22-Aug-14,DRESSINGS - PRE STERILE,Clinical Support and Family Services,NHS LOGISTICS,1015070077,18.7,
Department of Health,Salisbury NHS Foundation Trust,22-Aug-14,DRESSINGS - PRE STERILE,Clinical Support and Family Services,NHS LOGISTICS,1015070077,7.22,
Department of Health,Salisbury NHS Foundation Trust,22-Aug-14,DRESSINGS - PRE STERILE,Clinical Support and Family Services,NHS LOGISTICS,1015070077,57.65,
Department of Health,Salisbury NHS Foundation Trust,22-Aug-14,DRESSINGS - PRE STERILE,Clinical Support and Family Services,NHS LOGISTICS,1015070077,9.04,
Department of Health,Salisbury NHS Foundation Trust,22-Aug-14,DRESSINGS - PRE STERILE,Clinical Support and Family Services,NHS LOGISTICS,1015070077,40.9,
Department of Health,Salisbury NHS Foundation Trust,22-Aug-14,DRESSINGS - PRE STERILE,Clinical Support and Family Services,NHS LOGISTICS,1015070077,6.27,
Department of Health,Salisbury NHS Foundation Trust,22-Aug-14,MED SURG EQUIP REP MAINT CLEANING,Clinical Support and Family Services,NHS LOGISTICS,1015070077,20.07,
Department of Health,Salisbury NHS Foundation Trust,22-Aug-14,DRUGS,Clinical Support and Family Services,NHS LOGISTICS,1015070077,15.6,
Department of Health,Salisbury NHS Foundation Trust,22-Aug-14,SERVICES FROM NHS BODIES,Clinical Support and Family Services,NHS LOGISTICS,1015070077,43.2,
Department of Health,Salisbury NHS Foundation Trust,22-Aug-14,DISPOSABLE THEATRE DRAPES WIPES,Clinical Support and Family Services,NHS LOGISTICS,1015070077,1.3,
Department of Health,Salisbury NHS Foundation Trust,22-Aug-14,DRESSINGS - PRE STERILE,Clinical Support and Family Services,NHS LOGISTICS,1015070077,88.53,
Department of Health,Salisbury NHS Foundation Trust,22-Aug-14,DRESSINGS - PRE STERILE,Medicine,NHS LOGISTICS,1015070077,0.46,
Department of Health,Salisbury NHS Foundation Trust,22-Aug-14,TISSUES HAND TOWELS & TOILET PAPER,Medicine,NHS LOGISTICS,1015070077,1.51,
Department of Health,Salisbury NHS Foundation Trust,22-Aug-14,TISSUES HAND TOWELS & TOILET PAPER,Medicine,NHS LOGISTICS,1015070077,0.28,
Department of Health,Salisbury NHS Foundation Trust,22-Aug-14,TISSUES HAND TOWELS & TOILET PAPER,Surgery,NHS LOGISTICS,1015070077,1.51,
Department of Health,Salisbury NHS Foundation Trust,22-Aug-14,PATIENTS INCONTINENCE,Surgery,NHS LOGISTICS,1015070077,3.63,
Department of Health,Salisbury NHS Foundation Trust,22-Aug-14,OTHER MEDICAL SUPPLIES,Medicine,NHS LOGISTICS,1015070077,4.42,
Department of Health,Salisbury NHS Foundation Trust,22-Aug-14,MEDSURGCONS - OTHER,Medicine,NHS LOGISTICS,1015070077,1.25,
Department of Health,Salisbury NHS Foundation Trust,22-Aug-14,MEDSURGCONS - OTHER,Medicine,NHS LOGISTICS,1015070077,1.25,
Department of Health,Salisbury NHS Foundation Trust,22-Aug-14,PATIENTS INCONTINENCE,Medicine,NHS LOGISTICS,1015070077,0.86,
Department of Health,Salisbury NHS Foundation Trust,22-Aug-14,PATIENTS INCONTINENCE,Medicine,NHS LOGISTICS,1015070077,8.08,
Department of Health,Salisbury NHS Foundation Trust,22-Aug-14,PATIENT APPLIANCES,Medicine,NHS LOGISTICS,1015070077,0.67,
Department of Health,Salisbury NHS Foundation Trust,22-Aug-14,PATIENT APPLIANCES,Medicine,NHS LOGISTICS,1015070077,0.67,
Department of Health,Salisbury NHS Foundation Trust,22-Aug-14,PATIENT APPLIANCES,Medicine,NHS LOGISTICS,1015070077,0.83,
Department of Health,Salisbury NHS Foundation Trust,22-Aug-14,PATIENT APPLIANCES,Medicine,NHS LOGISTICS,1015070077,0.83,
Department of Health,Salisbury NHS Foundation Trust,22-Aug-14,MEDSURGCONS - OTHER,Medicine,NHS LOGISTICS,1015070077,1.49,
Department of Health,Salisbury NHS Foundation Trust,22-Aug-14,NON DISPOSABLE BED LINEN,Medicine,NHS LOGISTICS,1015070077,4.52,
Department of Health,Salisbury NHS Foundation Trust,22-Aug-14,PATIENT APPLIANCES,Medicine,NHS LOGISTICS,1015070077,1.63,
Department of Health,Salisbury NHS Foundation Trust,22-Aug-14,PATIENT APPLIANCES,Medicine,NHS LOGISTICS,1015070077,0.37,
Department of Health,Salisbury NHS Foundation Trust,22-Aug-14,DISPOSABLE THEATRE DRAPES WIPES,Medicine,NHS LOGISTICS,1015070077,0.65,
Department of Health,Salisbury NHS Foundation Trust,22-Aug-14,OTHER MEDICAL SUPPLIES,Surgery,NHS LOGISTICS,1015070077,7.83,
Department of Health,Salisbury NHS Foundation Trust,22-Aug-14,MEDSURGCONS - OTHER,Surgery,NHS LOGISTICS,1015070077,2.5,
Department of Health,Salisbury NHS Foundation Trust,22-Aug-14,CLEANING MATERIALS PRODUCTS SUNDRIES,Surgery,NHS LOGISTICS,1015070077,1.3,
Department of Health,Salisbury NHS Foundation Trust,22-Aug-14,PATIENTS INCONTINENCE,Surgery,NHS LOGISTICS,1015070077,0.73,
Department of Health,Salisbury NHS Foundation Trust,22-Aug-14,PATIENTS INCONTINENCE,Surgery,NHS LOGISTICS,1015070077,0.86,
Department of Health,Salisbury NHS Foundation Trust,22-Aug-14,PATIENTS INCONTINENCE,Surgery,NHS LOGISTICS,1015070077,1.82,
Department of Health,Salisbury NHS Foundation Trust,22-Aug-14,MEDSURGCONS - OTHER,Surgery,NHS LOGISTICS,1015070077,1.49,
